Department Family,Entity,Date of Payment,Expense Type,Expense Area,Supplier,Voluntary & Community Sector,SME Class,Sole Trader,Transaction number,Narrative,Postal Code,Amount in Sterling,Grant?
Communities & Local Government,DCLG,01/09/2011,Work In Progress Pre-Cert 40373 Spend,Neighbourhoods,MIDDLESBROUGH COUNCIL,,,,2100207159,NE ERDF Project - NE004084,TS1 2XG,"17,692.87",
Communities & Local Government,DCLG,01/09/2011,Work In Progress Pre-Cert 40373 Spend,Neighbourhoods,CATALYST SCIENCE DISCOVERY CENTRE,,,,2100207211,NW ERDF Project X001364PR,WA8 0DF,"5,400.89",
Communities & Local Government,DCLG,01/09/2011,Work In Progress Pre-Cert 40373 Spend,Neighbourhoods,CUMBRIA TOURISM,,,,2100207212,NW ERDF Project X01563PR,LA8 9PL,"112,783.57",
Communities & Local Government,DCLG,01/09/2011,Work In Progress Pre-Cert 40373 Spend,Neighbourhoods,CUMBRIA TOURISM,,,,2100207219,NW ERDF Project X01563PR,LA8 9PL,"66,517.95",
Communities & Local Government,DCLG,01/09/2011,Work In Progress Pre-Cert 40373 Spend,Neighbourhoods,LANCASTER UNIVERISTY,,,,2100207213,NW ERDF Project X02148PR,LA1 4YW,"108,805.61",
Communities & Local Government,DCLG,01/09/2011,Work In Progress Pre-Cert 40373 Spend,Neighbourhoods,NORTH WEST VISION & MEDIA,,,,2100207214,NW ERDF Project X01064PR,M50 2UW,"104,832.33",
Communities & Local Government,DCLG,01/09/2011,Work In Progress Pre-Cert 40373 Spend,Neighbourhoods,SOCIAL ENTERPRISE NORTH WEST,,,,2100207215,NW ERDF Project X00678PR,L2 2AH,"69,122.57",
Communities & Local Government,DCLG,01/09/2011,Work In Progress Pre-Cert 40373 Spend,Neighbourhoods,MANCHESTER UNIVERSITY,,,,2100207218,NW ERDF Project X00658PR,M13 9PL,"48,954.82",
Communities & Local Government,DCLG,01/09/2011,Work In Progress Pre-Cert 40373 Spend,Neighbourhoods,COVENTRY UNIVERSITY ENTERPRISES LTD,,Medium,,2100207203,WM ERDF  Project 080/XBG/IN1022,CV1 2TT,"29,840.55",
Communities & Local Government,DCLG,01/09/2011,Work In Progress Pre-Cert 40373 Spend,Neighbourhoods,COVENTRY UNIVERSITY ENTERPRISES LTD,,Medium,,2100207204,WM ERDF  Project 080/XBG/IN1022,CV1 2TT,"4,124.72",
Communities & Local Government,DCLG,01/09/2011,Work In Progress Pre-Cert 40373 Spend,Neighbourhoods,WEST MIDLANDS EUROPEAN NETWORK,,Small,,2100207206,WM ERDF  Project 080/ER/EI1002,B9 4AA,"4,975.22",
Communities & Local Government,DCLG,01/09/2011,Work In Progress Pre-Cert 40373 Spend,Neighbourhoods,WEST MIDLANDS EUROPEAN NETWORK,,Small,,2100207207,WM ERDF  Project 080/ER/EI1002,B9 4AA,"4,262.56",
Communities & Local Government,DCLG,01/09/2011,Work In Progress Pre-Cert 40373 Spend,Neighbourhoods,STAFFORDSHIRE & BLACK COUNTRY BIC L,,Small,,2100207209,WM ERDF  Project 080/XBG/BE1024,ST18 0AR,"12,671.95",
Communities & Local Government,DCLG,01/09/2011,Work In Progress Pre-Cert 40373 Spend,Neighbourhoods,CENTRO,,Large,,2100207208,WM ERDF  Project 080/XDP/RC1002,B19 3SD,"107,573.12",
Communities & Local Government,DCLG,01/09/2011,Work In Progress Pre-Cert 40373 Spend,Neighbourhoods,COVENTRY CITY COUNCIL,,Large,,2100207205,WM ERDF  Project 080/XDP/RD1003,CV1 5RR,"3,000.00",
Communities & Local Government,DCLG,01/09/2011,Work In Progress Pre-Cert 40467 Spend,Neighbourhoods,BALTIC CREATIVE CIC,,,,2100207210,NW ERDF Project X00695PR,L2 3YL,"30,666.37",
Communities & Local Government,DCLG,01/09/2011,Work In Progress Pre-Cert 40467 Spend,Neighbourhoods,FLORENCE INSTITUTE TRUST LTD,,,,2100207216,NW ERDF Project X01913PR,L8 8DX,"135,948.11",
Communities & Local Government,DCLG,01/09/2011,Work In Progress Pre-Cert 40467 Spend,Neighbourhoods,FLORENCE INSTITUTE TRUST LTD,,,,2100207217,NW ERDF Project X01913PR,L8 8DX,"147,349.24",
Communities & Local Government,DCLG,01/09/2011,NNDR Billing Authorities Receipts,Treasury,BARKING & DAGENHAM LB,,,,5000173395,Grant Payable by Exchequer,RM10 7BY,"-2,408,326.00",Yes
Communities & Local Government,DCLG,01/09/2011,NNDR Billing Authorities Receipts,Treasury,BARNSLEY MBC,,,,5000173399,Grant Payable by Exchequer,S70 2AQ,"-2,232,759.00",Yes
Communities & Local Government,DCLG,01/09/2011,NNDR Billing Authorities Receipts,Treasury,BIRMINGHAM CITY CNCL,,,,5000173416,Grant Payable by Exchequer,B3 3AB,"-18,024,100.00",Yes
Communities & Local Government,DCLG,01/09/2011,NNDR Billing Authorities Receipts,Treasury,BLACKBURN WITH DARWEN BC,,,,5000173420,Grant Payable by Exchequer,BB1 7DY,"-2,001,481.00",Yes
Communities & Local Government,DCLG,01/09/2011,NNDR Billing Authorities Receipts,Treasury,BLACKPOOL BC,,,,5000173422,Grant Payable by Exchequer,FY1 1NA,"-2,162,889.00",Yes
Communities & Local Government,DCLG,01/09/2011,NNDR Billing Authorities Receipts,Treasury,BOLTON MBC,,,,5000173426,Grant Payable by Exchequer,BL1 1RU,"-3,923,366.00",Yes
Communities & Local Government,DCLG,01/09/2011,NNDR Billing Authorities Receipts,Treasury,BRADFORD MBC,,,,5000173434,Grant Payable by Exchequer,BD1 1HX,"-6,106,844.00",Yes
Communities & Local Government,DCLG,01/09/2011,NNDR Billing Authorities Receipts,Treasury,BRENT LB,,,,5000173441,Grant Payable by Exchequer,HA9 9EZ,"-4,394,201.00",Yes
Communities & Local Government,DCLG,01/09/2011,NNDR Billing Authorities Receipts,Treasury,BRENT LB,,,,5000173442,Grant Payable by Exchequer,HA9 9EZ,"-23,648.00",Yes
Communities & Local Government,DCLG,01/09/2011,NNDR Billing Authorities Receipts,Treasury,BURY MBC,,,,5000173463,Grant Payable by Exchequer,BL9 0SP,"-2,314,743.00",Yes
Communities & Local Government,DCLG,01/09/2011,NNDR Billing Authorities Receipts,Treasury,CALDERDALE MBC,,,,5000173466,Grant Payable by Exchequer,HX1 1YP,"-2,568,220.00",Yes
Communities & Local Government,DCLG,01/09/2011,NNDR Billing Authorities Receipts,Treasury,COVENTRY CITY CNCL,,,,5000173517,Grant Payable by Exchequer,CV1 2QL,"-5,031,816.00",Yes
Communities & Local Government,DCLG,01/09/2011,NNDR Billing Authorities Receipts,Treasury,DARLINGTON BC,,,,5000172777,Grant Payable by Exchequer,TS19 1JA,"-1,474,367.00",Yes
Communities & Local Government,DCLG,01/09/2011,NNDR Billing Authorities Receipts,Treasury,DERBY CITY CNCL,,,,5000172804,Grant Payable by Exchequer,DE1 2FS,"-3,837,423.00",Yes
Communities & Local Government,DCLG,01/09/2011,NNDR Billing Authorities Receipts,Treasury,DONCASTER MBC,,,,5000172840,Grant Payable by Exchequer,DN1 2PN,"-3,711,175.00",Yes
Communities & Local Government,DCLG,01/09/2011,NNDR Billing Authorities Receipts,Treasury,DUDLEY MBC,,,,5000172868,Grant Payable by Exchequer,DY1 1HF,"-4,202,725.00",Yes
Communities & Local Government,DCLG,01/09/2011,NNDR Billing Authorities Receipts,Treasury,EAST RIDING OF YORKS,,,,5000172948,Grant Payable by Exchequer,HU17 9AB,"-3,621,166.00",Yes
Communities & Local Government,DCLG,01/09/2011,NNDR Billing Authorities Receipts,Treasury,ENFIELD LB,,,,5000173005,Grant Payable by Exchequer,EN1 3XF,"-4,526,974.00",Yes
Communities & Local Government,DCLG,01/09/2011,NNDR Billing Authorities Receipts,Treasury,GATESHEAD MBC,,,,5000173100,Grant Payable by Exchequer,NE8 1HH,"-3,810,435.00",Yes
Communities & Local Government,DCLG,01/09/2011,NNDR Billing Authorities Receipts,Treasury,GREENWICH LB,,,,5000173156,Grant Payable by Exchequer,SE18 6RA,"-2,701,499.00",Yes
Communities & Local Government,DCLG,01/09/2011,NNDR Billing Authorities Receipts,Treasury,LONDON BOROUGH OF HACKNEY,,,,5000173175,Grant Payable by Exchequer,E8 4RU,"-3,538,692.00",Yes
Communities & Local Government,DCLG,01/09/2011,NNDR Billing Authorities Receipts,Treasury,HALTON BC,,,,5000173179,Grant Payable by Exchequer,WA8 7QF,"-2,088,778.00",Yes
Communities & Local Government,DCLG,01/09/2011,NNDR Billing Authorities Receipts,Treasury,HARINGEY LB,,,,5000173223,Grant Payable by Exchequer,N22 7TR,"-2,773,967.00",Yes
Communities & Local Government,DCLG,01/09/2011,NNDR Billing Authorities Receipts,Treasury,HARROW LB,,,,5000173251,Grant Payable by Exchequer,HA1 2UZ,"-2,174,732.00",Yes
Communities & Local Government,DCLG,01/09/2011,NNDR Billing Authorities Receipts,Treasury,HARTLEPOOL BOROUGH COUNCIL,,,,5000173263,Grant Payable by Exchequer,TS24 7BT,"-1,210,168.00",Yes
Communities & Local Government,DCLG,01/09/2011,NNDR Billing Authorities Receipts,Treasury,HEREFORDSHIRE DISTRICT COUNCIL,,,,5000173301,Grant Payable by Exchequer,HR1 1SH,"-2,028,173.00",Yes
Communities & Local Government,DCLG,01/09/2011,NNDR Billing Authorities Receipts,Treasury,ISLE OF WIGHT CNCL,,,,5000172789,Grant Payable by Exchequer,PO30 1UD,"-1,513,101.00",Yes
Communities & Local Government,DCLG,01/09/2011,NNDR Billing Authorities Receipts,Treasury,ISLES OF SCILLY COUNCIL,,,,5000172805,Grant Payable by Exchequer,TR21 0LW,"-58,689.00",Yes
Communities & Local Government,DCLG,01/09/2011,NNDR Billing Authorities Receipts,Treasury,HULL CITY COUNCIL,,,,5000172857,Grant Payable by Exchequer,HU1 2AA,"-4,236,449.00",Yes
Communities & Local Government,DCLG,01/09/2011,NNDR Billing Authorities Receipts,Treasury,KIRKLEES MBC,,,,5000172873,Grant Payable by Exchequer,HD1 2YU,"-4,706,318.00",Yes
Communities & Local Government,DCLG,01/09/2011,NNDR Billing Authorities Receipts,Treasury,KNOWSLEY MBC,,,,5000172877,Grant Payable by Exchequer,L36 9YZ,"-1,732,595.00",Yes
Communities & Local Government,DCLG,01/09/2011,NNDR Billing Authorities Receipts,Treasury,LONDON BOROUGH OF LAMBETH,,,,5000172885,Grant Payable by Exchequer,SW2 1RL,"-4,990,042.00",Yes
Communities & Local Government,DCLG,01/09/2011,NNDR Billing Authorities Receipts,Treasury,LEICESTER CITY CNCL,,,,5000172923,Grant Payable by Exchequer,LE1 6ZG,"-4,679,057.00",Yes
Communities & Local Government,DCLG,01/09/2011,NNDR Billing Authorities Receipts,Treasury,LEWISHAM LB,,,,5000172951,Grant Payable by Exchequer,SE6 4RU,"-2,167,147.00",Yes
Communities & Local Government,DCLG,01/09/2011,NNDR Billing Authorities Receipts,Treasury,LIVERPOOL CITY COUNCIL,,,,5000172983,Grant Payable by Exchequer,L1 6JD,"-8,243,024.00",Yes
Communities & Local Government,DCLG,01/09/2011,NNDR Billing Authorities Receipts,Treasury,LUTON BC,,,,5000172987,Grant Payable by Exchequer,LU1 1DX,"-2,898,482.00",Yes
Communities & Local Government,DCLG,01/09/2011,NNDR Billing Authorities Receipts,Treasury,MIDDLESBROUGH BC,,,,5000173107,Grant Payable by Exchequer,TS1 9GA,"-1,858,198.00",Yes
Communities & Local Government,DCLG,01/09/2011,NNDR Billing Authorities Receipts,Treasury,LONDON BOROUGH OF NEWHAM,,Large,,5000173170,Grant Payable by Exchequer,E16 2QU,"-3,874,392.00",Yes
Communities & Local Government,DCLG,01/09/2011,NNDR Billing Authorities Receipts,Treasury,NORTH TYNESIDE MBC,,,,5000173253,Grant Payable by Exchequer,NE30 1AE,"-2,552,591.00",Yes
Communities & Local Government,DCLG,01/09/2011,NNDR Billing Authorities Receipts,Treasury,NOTTINGHAM CITY COUNCIL,,,,5000173306,Grant Payable by Exchequer,NG1 7DW,"-5,561,108.00",Yes
Communities & Local Government,DCLG,01/09/2011,NNDR Billing Authorities Receipts,Treasury,OLDHAM MBC,,,,5000173349,Grant Payable by Exchequer,OL1 1UH,"-2,613,945.00",Yes
Communities & Local Government,DCLG,01/09/2011,NNDR Billing Authorities Receipts,Treasury,PLYMOUTH CITY CNCL,,,,5000172786,Grant Payable by Exchequer,PL1 2AA,"-3,863,294.00",Yes
Communities & Local Government,DCLG,01/09/2011,NNDR Billing Authorities Receipts,Treasury,LONDON BOROUGH OF REDBRIDGE,,,,5000172838,Grant Payable by Exchequer,IG1 1NN,"-2,367,906.00",Yes
Communities & Local Government,DCLG,01/09/2011,NNDR Billing Authorities Receipts,Treasury,REDCAR & CLEVELAND BOROUGH COUNCIL,,,,5000172846,Grant Payable by Exchequer,TS6 9AR,"-2,178,232.00",Yes
Communities & Local Government,DCLG,01/09/2011,NNDR Billing Authorities Receipts,Treasury,ROCHDALE MBC,,,,5000172894,Grant Payable by Exchequer,OL16 1LQ,"-2,796,068.00",Yes
Communities & Local Government,DCLG,01/09/2011,NNDR Billing Authorities Receipts,Treasury,ROTHERHAM MBC,,,,5000172926,Grant Payable by Exchequer,S65 1UF,"-3,068,751.00",Yes
Communities & Local Government,DCLG,01/09/2011,NNDR Billing Authorities Receipts,Treasury,SALFORD CITY CNCL,,,,5000172982,Grant Payable by Exchequer,M27 5AW,"-3,681,931.00",Yes
Communities & Local Government,DCLG,01/09/2011,NNDR Billing Authorities Receipts,Treasury,SANDWELL MBC,,,,5000172986,Grant Payable by Exchequer,B69 3BS,"-4,129,768.00",Yes
Communities & Local Government,DCLG,01/09/2011,NNDR Billing Authorities Receipts,Treasury,SEFTON MBC,,,,5000173011,Grant Payable by Exchequer,L20 3NQ,"-3,117,344.00",Yes
Communities & Local Government,DCLG,01/09/2011,NNDR Billing Authorities Receipts,Treasury,SHEFFIELD CITY CNCL,,,,5000173039,Grant Payable by Exchequer,S1 1UR,"-9,052,917.00",Yes
Communities & Local Government,DCLG,01/09/2011,NNDR Billing Authorities Receipts,Treasury,SOUTH TYNESIDE COUNCIL,,,,5000173193,Grant Payable by Exchequer,NE33 2RL,"-1,281,323.00",Yes
Communities & Local Government,DCLG,01/09/2011,NNDR Billing Authorities Receipts,Treasury,SOUTHEND ON SEA BC,,,,5000173216,Grant Payable by Exchequer,SS2 6EP,"-2,099,874.00",Yes
Communities & Local Government,DCLG,01/09/2011,NNDR Billing Authorities Receipts,Treasury,ST HELENS MBC,,,,5000173256,Grant Payable by Exchequer,WA10 1HP,"-2,165,419.00",Yes
Communities & Local Government,DCLG,01/09/2011,NNDR Billing Authorities Receipts,Treasury,STOKE ON TRENT CITY COUNCIL,,,,5000173312,Grant Payable by Exchequer,ST4 1RJ,"-3,768,386.00",Yes
Communities & Local Government,DCLG,01/09/2011,NNDR Billing Authorities Receipts,Treasury,SUNDERLAND DC,,,,5000173352,Grant Payable by Exchequer,SR2 7DN,"-3,767,423.00",Yes
Communities & Local Government,DCLG,01/09/2011,NNDR Billing Authorities Receipts,Treasury,TAMESIDE MBC,,,,5000172807,Grant Payable by Exchequer,OL6 6DL,"-2,564,302.00",Yes
Communities & Local Government,DCLG,01/09/2011,NNDR Billing Authorities Receipts,Treasury,TORBAY BC,,,,5000172919,Grant Payable by Exchequer,TQ1 3DR,"-1,652,248.00",Yes
Communities & Local Government,DCLG,01/09/2011,NNDR Billing Authorities Receipts,Treasury,WALSALL MBC,,,,5000173000,Grant Payable by Exchequer,WS1 1TW,"-3,062,118.00",Yes
Communities & Local Government,DCLG,01/09/2011,NNDR Billing Authorities Receipts,Treasury,WALTHAM FOREST LB,,,,5000173004,Grant Payable by Exchequer,E17 4JA,"-2,368,085.00",Yes
Communities & Local Government,DCLG,01/09/2011,NNDR Billing Authorities Receipts,Treasury,WANDSWORTH LB,,,,5000173016,Grant Payable by Exchequer,SW18 2PU,"-4,577,526.00",Yes
Communities & Local Government,DCLG,01/09/2011,NNDR Billing Authorities Receipts,Treasury,WIGAN MBC,,,,5000173196,Grant Payable by Exchequer,WN1 1YD,"-3,489,268.00",Yes
Communities & Local Government,DCLG,01/09/2011,NNDR Billing Authorities Receipts,Treasury,WIRRAL MBC,,,,5000173230,Grant Payable by Exchequer,L41 6BU,"-3,021,485.00",Yes
Communities & Local Government,DCLG,01/09/2011,NNDR Billing Authorities Receipts,Treasury,WOLVERHAMPTON MBC,,,,5000173250,Grant Payable by Exchequer,WV1 1RL,"-3,179,667.00",Yes
Communities & Local Government,DCLG,01/09/2011,NNDR Billing Authorities Receipts,Treasury,CORNWALL COUNCIL,,,,5000173339,Grant Payable by Exchequer,TR1 3AY,"-6,540,062.00",Yes
Communities & Local Government,DCLG,01/09/2011,NNDR Billing Authorities Receipts,Treasury,DURHAM COUNTY COUNCIL,,,,5000173347,Grant Payable by Exchequer,DH1 5UE,"-4,854,723.00",Yes
Communities & Local Government,DCLG,01/09/2011,NNDR Billing Authorities Receipts,Treasury,NORTHUMBERLAND,,,,5000173359,Grant Payable by Exchequer,NE61 2EF,"-3,234,199.00",Yes
Communities & Local Government,DCLG,01/09/2011,NNDR Billing Authorities Receipts,Treasury,SHROPSHIRE COUNCIL,,Large,,5000173363,Grant Payable by Exchequer,SY2 6ND,"-3,306,770.00",Yes
Communities & Local Government,DCLG,01/09/2011,Agency Staff,Finance & Corporate Services,MICHAEL PAGE INTERNATIONAL,,Large,,5106167990,Interim  internal Audit,SL1 3SA,"1,929.48",
Communities & Local Government,DCLG,01/09/2011,Agency Staff,Finance & Corporate Services,REED SPECIALIST RECRUITMENT LTD,,Large,,5106168028,Temp electoral claims,NN1 1UE,450.06,
Communities & Local Government,DCLG,01/09/2011,Agency Staff,Finance & Corporate Services,SBS GROUP (UK) LTD,,Large,,5106168015,Contractor Business Support Team P2P,EC1N 8TS,"1,824.00",
Communities & Local Government,DCLG,01/09/2011,Agency Staff,Finance & Corporate Services,SBS GROUP (UK) LTD,,Large,,5106168032,SAP Technical Support,EC1N 8TS,"7,092.00",
Communities & Local Government,DCLG,01/09/2011,Domestic Services,Finance & Corporate Services,MITIE SECURITY LTD,,Large,,5106168001,Hemel Hempstead Cleaning 11-12,MK5 6LB,"1,094.38",
Communities & Local Government,DCLG,01/09/2011,Legal Fees,Localism,DENTON WILDE SAPTE LLP,,Large,,5106168026,RCC Buildings Advice for FireControl,EC4M 7WS,"12,541.32",
Communities & Local Government,DCLG,01/09/2011,Professional services,Finance & Corporate Services,E C HARRIS LLP,,Large,,5106167993,"Provision of H& S, Fire advice - Year 1",N1 9AB,"8,754.00",
Communities & Local Government,DCLG,01/09/2011,Research,Neighbourhoods,BRITISH BOARD AGREMENT,,Medium,,5106167995,Quartely Report,WD2 7NG,"10,190.40",
Communities & Local Government,DCLG,01/09/2011,Security,Finance & Corporate Services,MITIE SECURITY LTD,,Large,,5106167999,Hemel Hempstead Security 11-12,MK5 6LB,"4,246.40",
Communities & Local Government,DCLG,01/09/2011,National Non Domestic Rates (NNDR) Payments,Localism,AVON & SOMERSET POLICE AUTHORITY,,,,5000173389,Grant Payable by Exchequer,TA1 4DY,"2,334,699.00",Yes
Communities & Local Government,DCLG,01/09/2011,National Non Domestic Rates (NNDR) Payments,Localism,AVON FIRE AUTHORITY,,,,5000173390,Grant Payable by Exchequer,BS1 6EU,"817,881.00",Yes
Communities & Local Government,DCLG,01/09/2011,National Non Domestic Rates (NNDR) Payments,Localism,BARKING & DAGENHAM LB,,,,5000173396,Grant Payable by Exchequer,RM10 7BY,"3,847,942.00",Yes
Communities & Local Government,DCLG,01/09/2011,National Non Domestic Rates (NNDR) Payments,Localism,BARNSLEY MBC,,,,5000173400,Grant Payable by Exchequer,S70 2AQ,"3,975,685.00",Yes
Communities & Local Government,DCLG,01/09/2011,National Non Domestic Rates (NNDR) Payments,Localism,BEDS & LUTON FIRE & RESCUE SERVICE,,,,5000173411,Grant Payable by Exchequer,MK42 7NR,"394,763.00",Yes
Communities & Local Government,DCLG,01/09/2011,National Non Domestic Rates (NNDR) Payments,Localism,BEDFORDSHIRE POLICE AUTH,,,,5000173412,Grant Payable by Exchequer,MK43 9AX,"1,061,934.00",Yes
Communities & Local Government,DCLG,01/09/2011,National Non Domestic Rates (NNDR) Payments,Localism,ROYAL BERKSHIRE FIRE AUTHORITY,,,,5000173413,Grant Payable by Exchequer,RG30 4FS,"536,368.00",Yes
Communities & Local Government,DCLG,01/09/2011,National Non Domestic Rates (NNDR) Payments,Localism,BIRMINGHAM CITY CNCL,,,,5000173417,Grant Payable by Exchequer,B3 3AB,"25,079,982.00",Yes
Communities & Local Government,DCLG,01/09/2011,National Non Domestic Rates (NNDR) Payments,Localism,BLACKBURN WITH DARWEN BC,,,,5000173421,Grant Payable by Exchequer,BB1 7DY,"2,995,303.00",Yes
Communities & Local Government,DCLG,01/09/2011,National Non Domestic Rates (NNDR) Payments,Localism,BLACKPOOL BC,,,,5000173423,Grant Payable by Exchequer,FY1 1NA,"3,135,551.00",Yes
Communities & Local Government,DCLG,01/09/2011,National Non Domestic Rates (NNDR) Payments,Localism,BOLTON MBC,,,,5000173427,Grant Payable by Exchequer,BL1 1RU,"4,645,991.00",Yes
Communities & Local Government,DCLG,01/09/2011,National Non Domestic Rates (NNDR) Payments,Localism,BRADFORD MBC,,,,5000173435,Grant Payable by Exchequer,BD1 1HX,"9,937,171.00",Yes
Communities & Local Government,DCLG,01/09/2011,National Non Domestic Rates (NNDR) Payments,Localism,BRENT LB,,,,5000173440,Grant Payable by Exchequer,HA9 9EZ,"6,019,971.00",Yes
Communities & Local Government,DCLG,01/09/2011,National Non Domestic Rates (NNDR) Payments,Localism,BUCKS & MILTON KEYNES FIRE AUTH,,,,5000173459,Grant Payable by Exchequer,HP20 1BD,"379,904.00",Yes
Communities & Local Government,DCLG,01/09/2011,National Non Domestic Rates (NNDR) Payments,Localism,BUCKINGHAMSHIRE CC,,,,5000173460,Grant Payable by Exchequer,HP20 1UD,"2,411,285.00",Yes
Communities & Local Government,DCLG,01/09/2011,National Non Domestic Rates (NNDR) Payments,Localism,BURY MBC,,,,5000173464,Grant Payable by Exchequer,BL9 0SP,"2,460,535.00",Yes
Communities & Local Government,DCLG,01/09/2011,National Non Domestic Rates (NNDR) Payments,Localism,CALDERDALE MBC,,,,5000173465,Grant Payable by Exchequer,HX1 1YP,"2,988,848.00",Yes
Communities & Local Government,DCLG,01/09/2011,National Non Domestic Rates (NNDR) Payments,Localism,CAMBS & PETERBOROUGH FIRE AUTHORITY,,,,5000173469,Grant Payable by Exchequer,PE29 2NA,"474,285.00",Yes
Communities & Local Government,DCLG,01/09/2011,National Non Domestic Rates (NNDR) Payments,Localism,CAMBRIDGESHIRE POLICE AUT,,,,5000173470,Grant Payable by Exchequer,P18 8NP,"1,077,894.00",Yes
Communities & Local Government,DCLG,01/09/2011,National Non Domestic Rates (NNDR) Payments,Localism,CAMBRIDGESHIRE COUNTY CNCL,,,,5000173471,Grant Payable by Exchequer,CB3 0AP,"4,359,263.00",Yes
Communities & Local Government,DCLG,01/09/2011,National Non Domestic Rates (NNDR) Payments,Localism,CHESHIRE FIRE AUTHORITY,,,,5000173490,Grant Payable by Exchequer,CW7 2FQ,"677,392.00",Yes
Communities & Local Government,DCLG,01/09/2011,National Non Domestic Rates (NNDR) Payments,Localism,CHESHIRE POLICE AUTHORITY,,,,5000173491,Grant Payable by Exchequer,CW7 2UA,"1,931,487.00",Yes
Communities & Local Government,DCLG,01/09/2011,National Non Domestic Rates (NNDR) Payments,Localism,CLEVELAND FIRE AUTHORITY,,,,5000173506,Grant Payable by Exchequer,TS25 5TB,"734,956.00",Yes
Communities & Local Government,DCLG,01/09/2011,National Non Domestic Rates (NNDR) Payments,Localism,CLEVELAND POLICE AUTHORITY,,,,5000173507,Grant Payable by Exchequer,TS1 2JX,"1,678,662.00",Yes
Communities & Local Government,DCLG,01/09/2011,National Non Domestic Rates (NNDR) Payments,Localism,COVENTRY CITY CNCL,,,,5000173516,Grant Payable by Exchequer,CV1 2QL,"5,743,248.00",Yes
Communities & Local Government,DCLG,01/09/2011,National Non Domestic Rates (NNDR) Payments,Localism,CUMBRIA COUNTY CNCL,,,,5000173524,Grant Payable by Exchequer,CA3 8NA,"5,752,173.00",Yes
Communities & Local Government,DCLG,01/09/2011,National Non Domestic Rates (NNDR) Payments,Localism,CUMBRIA POLICE AUTHORITY,,,,5000173525,Grant Payable by Exchequer,CA10 2AU,"1,310,831.00",Yes
Communities & Local Government,DCLG,01/09/2011,National Non Domestic Rates (NNDR) Payments,Localism,DARLINGTON BC,,,,5000172780,Grant Payable by Exchequer,TS19 1JA,"1,497,513.00",Yes
Communities & Local Government,DCLG,01/09/2011,National Non Domestic Rates (NNDR) Payments,Localism,DERBY CITY CNCL,,,,5000172800,Grant Payable by Exchequer,DE1 2FS,"4,104,261.00",Yes
Communities & Local Government,DCLG,01/09/2011,National Non Domestic Rates (NNDR) Payments,Localism,DERBYSHIRE FIRE AUTHORITY,,,,5000172808,Grant Payable by Exchequer,DE55 1RH,"654,056.00",Yes
Communities & Local Government,DCLG,01/09/2011,National Non Domestic Rates (NNDR) Payments,Localism,DERBYSHIRE POLICE AUTHORITY,,,,5000172812,Grant Payable by Exchequer,DE5 3RS,"1,663,309.00",Yes
Communities & Local Government,DCLG,01/09/2011,National Non Domestic Rates (NNDR) Payments,Localism,DERBYSHIRE COUNTYCOUNCIL,,,,5000172816,Grant Payable by Exchequer,DE4 3AH,"7,464,910.00",Yes
Communities & Local Government,DCLG,01/09/2011,National Non Domestic Rates (NNDR) Payments,Localism,DEVON & CORNWALL POLICE A,,,,5000172828,Grant Payable by Exchequer,EX2 5YT,"2,622,644.00",Yes
Communities & Local Government,DCLG,01/09/2011,National Non Domestic Rates (NNDR) Payments,Localism,DEVON COUNTY CNCL,,,,5000172832,Grant Payable by Exchequer,EX2 4QJ,"6,744,807.00",Yes
Communities & Local Government,DCLG,01/09/2011,National Non Domestic Rates (NNDR) Payments,Localism,DEVON & SOMERSET FIRE & RESCUE SERV,,,,5000172836,Grant Payable by Exchequer,EX3 0NW,"1,120,991.00",Yes
Communities & Local Government,DCLG,01/09/2011,National Non Domestic Rates (NNDR) Payments,Localism,DONCASTER MBC,,,,5000172844,Grant Payable by Exchequer,DN1 2PN,"5,259,053.00",Yes
Communities & Local Government,DCLG,01/09/2011,National Non Domestic Rates (NNDR) Payments,Localism,DORSET COUNTY CNCL,,,,5000172848,Grant Payable by Exchequer,DT1 1XJ,"2,373,292.00",Yes
Communities & Local Government,DCLG,01/09/2011,National Non Domestic Rates (NNDR) Payments,Localism,DORSET FIRE AUTHORITY,,,,5000172852,Grant Payable by Exchequer,DT1 1FB,"394,893.00",Yes
Communities & Local Government,DCLG,01/09/2011,National Non Domestic Rates (NNDR) Payments,Localism,DORSET POLICE AUTHORITY,,,,5000172856,Grant Payable by Exchequer,DT2 8DZ,"762,984.00",Yes
Communities & Local Government,DCLG,01/09/2011,National Non Domestic Rates (NNDR) Payments,Localism,DUDLEY MBC,,,,5000172872,Grant Payable by Exchequer,DY1 1HF,"4,648,571.00",Yes
Communities & Local Government,DCLG,01/09/2011,National Non Domestic Rates (NNDR) Payments,Localism,CO DURHAM & DARLINGTON FIRE AND RES,,,,5000172876,Grant Payable by Exchequer,DH1 5UE,"477,102.00",Yes
Communities & Local Government,DCLG,01/09/2011,National Non Domestic Rates (NNDR) Payments,Localism,DURHAM POLICE AUTHORITY,,,,5000172880,Grant Payable by Exchequer,DH1 5TT,"1,610,131.00",Yes
Communities & Local Government,DCLG,01/09/2011,National Non Domestic Rates (NNDR) Payments,Localism,EAST RIDING OF YORKS,,,,5000172952,Grant Payable by Exchequer,HU17 9AB,"3,720,651.00",Yes
Communities & Local Government,DCLG,01/09/2011,National Non Domestic Rates (NNDR) Payments,Localism,EAST SUSSEX COUNTY CNCL,,,,5000172964,Grant Payable by Exchequer,BN7 1SF,"4,274,856.00",Yes
Communities & Local Government,DCLG,01/09/2011,National Non Domestic Rates (NNDR) Payments,Localism,EAST SUSSEX FIRE AUTHORITY,,,,5000172968,Grant Payable by Exchequer,BN21 1EU,"501,973.00",Yes
Communities & Local Government,DCLG,01/09/2011,National Non Domestic Rates (NNDR) Payments,Localism,ENFIELD LB,,,,5000173009,Grant Payable by Exchequer,EN1 3XF,"4,754,626.00",Yes
Communities & Local Government,DCLG,01/09/2011,National Non Domestic Rates (NNDR) Payments,Localism,ESSEX COUNTY CNCL,,,,5000173037,Grant Payable by Exchequer,CM1 1JZ,"10,294,383.00",Yes
Communities & Local Government,DCLG,01/09/2011,National Non Domestic Rates (NNDR) Payments,Localism,ESSEX FIRE AUTHORITY,,,,5000173041,Grant Payable by Exchequer,CM8 3HB,"1,172,530.00",Yes
Communities & Local Government,DCLG,01/09/2011,National Non Domestic Rates (NNDR) Payments,Localism,ESSEX POLICE AUTHORITY,,,,5000173045,Grant Payable by Exchequer,CM2 6DA,"2,383,553.00",Yes
Communities & Local Government,DCLG,01/09/2011,National Non Domestic Rates (NNDR) Payments,Localism,GATESHEAD MBC,,,,5000173096,Grant Payable by Exchequer,NE8 1HH,"3,842,656.00",Yes
Communities & Local Government,DCLG,01/09/2011,National Non Domestic Rates (NNDR) Payments,Localism,GREATER LONDON AUTHORITY,,,,5000173112,Grant Payable by Exchequer,SE10 1AJ,"32,577,710.00",Yes
Communities & Local Government,DCLG,01/09/2011,National Non Domestic Rates (NNDR) Payments,Localism,GLOUCESTERSHIRE COUNTY CNCL,,,,5000173124,Grant Payable by Exchequer,GL1 2TG,"5,001,298.00",Yes
Communities & Local Government,DCLG,01/09/2011,National Non Domestic Rates (NNDR) Payments,Localism,GLOUCESTERSHIRE POLICE AUTHORITY,,,,5000173128,Grant Payable by Exchequer,GL2 2AN,"811,173.00",Yes
Communities & Local Government,DCLG,01/09/2011,National Non Domestic Rates (NNDR) Payments,Localism,GREENWICH LB,,,,5000173160,Grant Payable by Exchequer,SE18 6RA,"6,023,703.00",Yes
Communities & Local Government,DCLG,01/09/2011,National Non Domestic Rates (NNDR) Payments,Localism,LONDON BOROUGH OF HACKNEY,,,,5000173172,Grant Payable by Exchequer,E8 4RU,"8,161,819.00",Yes
Communities & Local Government,DCLG,01/09/2011,National Non Domestic Rates (NNDR) Payments,Localism,HALTON BC,,,,5000173183,Grant Payable by Exchequer,WA8 7QF,"2,431,728.00",Yes
Communities & Local Government,DCLG,01/09/2011,National Non Domestic Rates (NNDR) Payments,Localism,HAMPSHIRE COUNTY COUNCIL,,,,5000173203,Grant Payable by Exchequer,SO23 8UB,"6,736,282.00",Yes
Communities & Local Government,DCLG,01/09/2011,National Non Domestic Rates (NNDR) Payments,Localism,HAMPSHIRE FIRE & RESCUE AUTHORITY,,,,5000173207,Grant Payable by Exchequer,SO23 8UB,"1,064,304.00",Yes
Communities & Local Government,DCLG,01/09/2011,National Non Domestic Rates (NNDR) Payments,Localism,HAMPSHIRE POLICE AUTHORITY,,,,5000173211,Grant Payable by Exchequer,SO23 8UB,"2,695,515.00",Yes
Communities & Local Government,DCLG,01/09/2011,National Non Domestic Rates (NNDR) Payments,Localism,HARINGEY LB,,,,5000173227,Grant Payable by Exchequer,N22 7TR,"5,559,539.00",Yes
Communities & Local Government,DCLG,01/09/2011,National Non Domestic Rates (NNDR) Payments,Localism,HARROW LB,,,,5000173247,Grant Payable by Exchequer,HA1 2UZ,"2,544,462.00",Yes
Communities & Local Government,DCLG,01/09/2011,National Non Domestic Rates (NNDR) Payments,Localism,HARTLEPOOL BOROUGH COUNCIL,,,,5000173265,Grant Payable by Exchequer,TS24 7BT,"1,887,138.00",Yes
Communities & Local Government,DCLG,01/09/2011,National Non Domestic Rates (NNDR) Payments,Localism,HEREFORD WORCESTER FIRE BRIGADE,,,,5000173293,Grant Payable by Exchequer,WR1 2HQ,"377,616.00",Yes
Communities & Local Government,DCLG,01/09/2011,National Non Domestic Rates (NNDR) Payments,Localism,HEREFORDSHIRE DISTRICT COUNCIL,,,,5000173297,Grant Payable by Exchequer,HR1 1SH,"2,183,980.00",Yes
Communities & Local Government,DCLG,01/09/2011,National Non Domestic Rates (NNDR) Payments,Localism,HERTFORDSHIRE POLICE AUTH,,,,5000173305,Grant Payable by Exchequer,AL8 6XF,"1,615,389.00",Yes
Communities & Local Government,DCLG,01/09/2011,National Non Domestic Rates (NNDR) Payments,Localism,HERTFORDSHIRE CONTY CNCL,,,,5000173309,Grant Payable by Exchequer,SG13 8DQ,"7,282,849.00",Yes
Communities & Local Government,DCLG,01/09/2011,National Non Domestic Rates (NNDR) Payments,Localism,HUMBERSIDE FIRE & RESCUE SERVICE,,,,5000173362,Grant Payable by Exchequer,HU4 7BB,"929,811.00",Yes
Communities & Local Government,DCLG,01/09/2011,National Non Domestic Rates (NNDR) Payments,Localism,HUMBERSIDE POLICE,,,,5000173366,Grant Payable by Exchequer,HU5 5SF,"2,015,173.00",Yes
Communities & Local Government,DCLG,01/09/2011,National Non Domestic Rates (NNDR) Payments,Localism,ISLE OF WIGHT CNCL,,,,5000172785,Grant Payable by Exchequer,PO30 1UD,"2,307,493.00",Yes
Communities & Local Government,DCLG,01/09/2011,National Non Domestic Rates (NNDR) Payments,Localism,ISLES OF SCILLY COUNCIL,,,,5000172801,Grant Payable by Exchequer,TR21 0LW,"94,303.00",Yes
Communities & Local Government,DCLG,01/09/2011,National Non Domestic Rates (NNDR) Payments,Localism,KENT COUNTY CNCL,,,,5000172825,Grant Payable by Exchequer,ME14 1XQ,"11,465,407.00",Yes
Communities & Local Government,DCLG,01/09/2011,National Non Domestic Rates (NNDR) Payments,Localism,KENT & MEDWAY TOWNS FIRE AUTHORITY,,,,5000172829,Grant Payable by Exchequer,ME15 6XB,"1,031,110.00",Yes
Communities & Local Government,DCLG,01/09/2011,National Non Domestic Rates (NNDR) Payments,Localism,KENT POLICE AUTHORITY,,,,5000172833,Grant Payable by Exchequer,ME15 9BZ,"2,961,759.00",Yes
Communities & Local Government,DCLG,01/09/2011,National Non Domestic Rates (NNDR) Payments,Localism,HULL CITY COUNCIL,,,,5000172853,Grant Payable by Exchequer,HU1 2AA,"5,657,546.00",Yes
Communities & Local Government,DCLG,01/09/2011,National Non Domestic Rates (NNDR) Payments,Localism,KIRKLEES MBC,,,,5000172869,Grant Payable by Exchequer,HD1 2YU,"5,776,632.00",Yes
Communities & Local Government,DCLG,01/09/2011,National Non Domestic Rates (NNDR) Payments,Localism,KNOWSLEY MBC,,,,5000172881,Grant Payable by Exchequer,L36 9YZ,"4,291,777.00",Yes
Communities & Local Government,DCLG,01/09/2011,National Non Domestic Rates (NNDR) Payments,Localism,LONDON BOROUGH OF LAMBETH,,,,5000172889,Grant Payable by Exchequer,SW2 1RL,"8,011,396.00",Yes
Communities & Local Government,DCLG,01/09/2011,National Non Domestic Rates (NNDR) Payments,Localism,LANCASHIRE COUNTY CNCL,,,,5000172893,Grant Payable by Exchequer,PR1 8RD,"12,107,482.00",Yes
Communities & Local Government,DCLG,01/09/2011,National Non Domestic Rates (NNDR) Payments,Localism,LANCASHIRE COMBINED FIRE AUTHORITY,,,,5000172897,Grant Payable by Exchequer,PR2 3LH,"1,134,015.00",Yes
Communities & Local Government,DCLG,01/09/2011,National Non Domestic Rates (NNDR) Payments,Localism,LANCASHIRE POLICE AUTHORITY,,,,5000172901,Grant Payable by Exchequer,PR1 OLD,"3,365,291.00",Yes
Communities & Local Government,DCLG,01/09/2011,National Non Domestic Rates (NNDR) Payments,Localism,LEICESTER CITY CNCL,,,,5000172921,Grant Payable by Exchequer,LE1 6ZG,"6,888,559.00",Yes
Communities & Local Government,DCLG,01/09/2011,National Non Domestic Rates (NNDR) Payments,Localism,LEICS LEICESTERSHIRE RUTLAND CFA,,,,5000172927,Grant Payable by Exchequer,LE3 8HD,"660,791.00",Yes
Communities & Local Government,DCLG,01/09/2011,National Non Domestic Rates (NNDR) Payments,Localism,LEICESTERSHIRE POLICE AUTHORITY,,,,5000172931,Grant Payable by Exchequer,LE99 1A2,"1,740,836.00",Yes
Communities & Local Government,DCLG,01/09/2011,National Non Domestic Rates (NNDR) Payments,Localism,LEICESTERSHIRE COUNTY CNCL,,,,5000172935,Grant Payable by Exchequer,LE3 8RB,"3,948,323.00",Yes
Communities & Local Government,DCLG,01/09/2011,National Non Domestic Rates (NNDR) Payments,Localism,LEWISHAM LB,,,,5000172947,Grant Payable by Exchequer,SE6 4RU,"6,769,301.00",Yes
Communities & Local Government,DCLG,01/09/2011,National Non Domestic Rates (NNDR) Payments,Localism,LINCOLNSHIRE POLICE AUTH,,,,5000172971,Grant Payable by Exchequer,LN5 7PH,"893,116.00",Yes
Communities & Local Government,DCLG,01/09/2011,National Non Domestic Rates (NNDR) Payments,Localism,LINCOLNSHIRE COUNTY CNCL,,,,5000172975,Grant Payable by Exchequer,LN1 1YG,"7,668,289.00",Yes
Communities & Local Government,DCLG,01/09/2011,National Non Domestic Rates (NNDR) Payments,Localism,LIVERPOOL CITY COUNCIL,,,,5000172979,Grant Payable by Exchequer,L1 6JD,"12,337,683.00",Yes
Communities & Local Government,DCLG,01/09/2011,National Non Domestic Rates (NNDR) Payments,Localism,LUTON BC,,,,5000172991,Grant Payable by Exchequer,LU1 1DX,"3,307,710.00",Yes
Communities & Local Government,DCLG,01/09/2011,National Non Domestic Rates (NNDR) Payments,Localism,GREATER MANCHESTER FIRE,,,,5000173026,Grant Payable by Exchequer,M27 2US,"2,473,792.00",Yes
Communities & Local Government,DCLG,01/09/2011,National Non Domestic Rates (NNDR) Payments,Localism,GREATER MANCHESTER POL AUTH,,,,5000173030,Grant Payable by Exchequer,M16 0RE,"7,983,704.00",Yes
Communities & Local Government,DCLG,01/09/2011,National Non Domestic Rates (NNDR) Payments,Localism,MERSEYSIDE FIRE & RESCUE SERVICE,,,,5000173065,Grant Payable by Exchequer,L30 4YD,"1,520,528.00",Yes
Communities & Local Government,DCLG,01/09/2011,National Non Domestic Rates (NNDR) Payments,Localism,MERSEYSIDE POLICE AUTH,,,,5000173069,Grant Payable by Exchequer,L69 1JD,"4,843,371.00",Yes
Communities & Local Government,DCLG,01/09/2011,National Non Domestic Rates (NNDR) Payments,Localism,MIDDLESBROUGH BC,,,,5000173111,Grant Payable by Exchequer,TS1 9GA,"3,132,973.00",Yes
Communities & Local Government,DCLG,01/09/2011,National Non Domestic Rates (NNDR) Payments,Localism,LONDON BOROUGH OF NEWHAM,,Large,,5000173174,Grant Payable by Exchequer,E16 2QU,"7,979,615.00",Yes
Communities & Local Government,DCLG,01/09/2011,National Non Domestic Rates (NNDR) Payments,Localism,NORFOLK COUNTY COUNCIL,,,,5000173178,Grant Payable by Exchequer,NR1 2DW,"9,322,653.00",Yes
Communities & Local Government,DCLG,01/09/2011,National Non Domestic Rates (NNDR) Payments,Localism,NORFOLK POLICE AUTHORITY,,,,5000173182,Grant Payable by Exchequer,NR18 0WW,"1,201,937.00",Yes
Communities & Local Government,DCLG,01/09/2011,National Non Domestic Rates (NNDR) Payments,Localism,NORTH TYNESIDE MBC,,,,5000173249,Grant Payable by Exchequer,NE30 1AE,"3,285,455.00",Yes
Communities & Local Government,DCLG,01/09/2011,National Non Domestic Rates (NNDR) Payments,Localism,NORTH YORKSHIRE CC,,,,5000173267,Grant Payable by Exchequer,DL7 8AL,"4,435,830.00",Yes
Communities & Local Government,DCLG,01/09/2011,National Non Domestic Rates (NNDR) Payments,Localism,NORTH YORKSHIRE FIRE & RESCUE AUTH,,,,5000173271,Grant Payable by Exchequer,DL6 1AB,"442,868.00",Yes
Communities & Local Government,DCLG,01/09/2011,National Non Domestic Rates (NNDR) Payments,Localism,NORTH YORKSHIRE POLICE AUTHORITY,,,,5000173275,Grant Payable by Exchequer,DL7 9HA,"1,150,489.00",Yes
Communities & Local Government,DCLG,01/09/2011,National Non Domestic Rates (NNDR) Payments,Localism,NORTHAMPTONSHIRE COUNTY COUNCIL,,,,5000173287,Grant Payable by Exchequer,NN4 7DB,"6,114,613.00",Yes
Communities & Local Government,DCLG,01/09/2011,National Non Domestic Rates (NNDR) Payments,Localism,NORTHAMPTONSHIRE POLICE AUTH,,,,5000173291,Grant Payable by Exchequer,NN1 5DQ,"1,045,478.00",Yes
Communities & Local Government,DCLG,01/09/2011,National Non Domestic Rates (NNDR) Payments,Localism,NORTHUMBRIA POLICE AUTH,,,,5000173295,Grant Payable by Exchequer,NE1 8DL,"4,597,148.00",Yes
Communities & Local Government,DCLG,01/09/2011,National Non Domestic Rates (NNDR) Payments,Localism,NOTTINGHAM CITY COUNCIL,,,,5000173310,Grant Payable by Exchequer,NG1 7DW,"6,705,419.00",Yes
Communities & Local Government,DCLG,01/09/2011,National Non Domestic Rates (NNDR) Payments,Localism,NOTTINGHAMSHIRE COUNTY CNCL,,,,5000173314,Grant Payable by Exchequer,NG1 4BU,"7,210,705.00",Yes
Communities & Local Government,DCLG,01/09/2011,National Non Domestic Rates (NNDR) Payments,Localism,NOTTS & CITY NOTTINGHAM FIRE AUTH,,,,5000173317,Grant Payable by Exchequer,NG5 8PD,"821,253.00",Yes
Communities & Local Government,DCLG,01/09/2011,National Non Domestic Rates (NNDR) Payments,Localism,NOTTINGHAMSHIRE POLICE AU,,,,5000173321,Grant Payable by Exchequer,NG5 8PP,"2,069,142.00",Yes
Communities & Local Government,DCLG,01/09/2011,National Non Domestic Rates (NNDR) Payments,Localism,OLDHAM MBC,,,,5000173353,Grant Payable by Exchequer,OL1 1UH,"4,441,777.00",Yes
Communities & Local Government,DCLG,01/09/2011,National Non Domestic Rates (NNDR) Payments,Localism,OXFORDSHIRE CC,,,,5000173365,Grant Payable by Exchequer,OX4 2GQ,"4,432,505.00",Yes
Communities & Local Government,DCLG,01/09/2011,National Non Domestic Rates (NNDR) Payments,Localism,PLYMOUTH CITY CNCL,,,,5000172782,Grant Payable by Exchequer,PL1 2AA,"4,075,846.00",Yes
Communities & Local Government,DCLG,01/09/2011,National Non Domestic Rates (NNDR) Payments,Localism,LONDON BOROUGH OF REDBRIDGE,,,,5000172834,Grant Payable by Exchequer,IG1 1NN,"3,667,857.00",Yes
Communities & Local Government,DCLG,01/09/2011,National Non Domestic Rates (NNDR) Payments,Localism,REDCAR & CLEVELAND BOROUGH COUNCIL,,,,5000172842,Grant Payable by Exchequer,TS6 9AR,"2,467,129.00",Yes
Communities & Local Government,DCLG,01/09/2011,National Non Domestic Rates (NNDR) Payments,Localism,ROCHDALE MBC,,,,5000172890,Grant Payable by Exchequer,OL16 1LQ,"4,192,519.00",Yes
Communities & Local Government,DCLG,01/09/2011,National Non Domestic Rates (NNDR) Payments,Localism,ROTHERHAM MBC,,,,5000172922,Grant Payable by Exchequer,S65 1UF,"4,469,154.00",Yes
Communities & Local Government,DCLG,01/09/2011,National Non Domestic Rates (NNDR) Payments,Localism,SALFORD CITY CNCL,,,,5000172978,Grant Payable by Exchequer,M27 5AW,"4,921,346.00",Yes
Communities & Local Government,DCLG,01/09/2011,National Non Domestic Rates (NNDR) Payments,Localism,SANDWELL MBC,,,,5000172990,Grant Payable by Exchequer,B69 3BS,"6,767,060.00",Yes
Communities & Local Government,DCLG,01/09/2011,National Non Domestic Rates (NNDR) Payments,Localism,SEFTON MBC,,,,5000173015,Grant Payable by Exchequer,L20 3NQ,"4,581,693.00",Yes
Communities & Local Government,DCLG,01/09/2011,National Non Domestic Rates (NNDR) Payments,Localism,SHEFFIELD CITY CNCL,,,,5000173035,Grant Payable by Exchequer,S1 1UR,"10,293,333.00",Yes
Communities & Local Government,DCLG,01/09/2011,National Non Domestic Rates (NNDR) Payments,Localism,SHROPSHIRE & WREKIN FIRE AUTHORITY,,,,5000173051,Grant Payable by Exchequer,SY1 2HJ,"271,488.00",Yes
Communities & Local Government,DCLG,01/09/2011,National Non Domestic Rates (NNDR) Payments,Localism,SOMERSET COUNTY CNCL,,,,5000173068,Grant Payable by Exchequer,TA1 4DY,"4,722,716.00",Yes
Communities & Local Government,DCLG,01/09/2011,National Non Domestic Rates (NNDR) Payments,Localism,SOUTH TYNESIDE COUNCIL,,,,5000173189,Grant Payable by Exchequer,NE33 2RL,"3,267,654.00",Yes
Communities & Local Government,DCLG,01/09/2011,National Non Domestic Rates (NNDR) Payments,Localism,SOUTH YORKSHIRE FIRE & CD,,,,5000173197,Grant Payable by Exchequer,S1 3FG,"1,207,446.00",Yes
Communities & Local Government,DCLG,01/09/2011,National Non Domestic Rates (NNDR) Payments,Localism,SOUTH YORKSHIRE P A,,,,5000173201,Grant Payable by Exchequer,S3 8LY,"3,429,602.00",Yes
Communities & Local Government,DCLG,01/09/2011,National Non Domestic Rates (NNDR) Payments,Localism,SOUTHEND ON SEA BC,,,,5000173212,Grant Payable by Exchequer,SS2 6EP,"2,322,687.00",Yes
Communities & Local Government,DCLG,01/09/2011,National Non Domestic Rates (NNDR) Payments,Localism,ST HELENS MBC,,,,5000173252,Grant Payable by Exchequer,WA10 1HP,"3,302,065.00",Yes
Communities & Local Government,DCLG,01/09/2011,National Non Domestic Rates (NNDR) Payments,Localism,STAFFORDSHIRE COUNTY CNCL,,,,5000173268,Grant Payable by Exchequer,ST16 2LH,"6,342,784.00",Yes
Communities & Local Government,DCLG,01/09/2011,National Non Domestic Rates (NNDR) Payments,Localism,STAFFORDSHIRE  FIRE & RESCUE SERV,,,,5000173272,Grant Payable by Exchequer,ST15 0BS,"672,713.00",Yes
Communities & Local Government,DCLG,01/09/2011,National Non Domestic Rates (NNDR) Payments,Localism,STAFFORDSHIRE POLICE AUTHORITY,,,,5000173284,Grant Payable by Exchequer,ST16 2NF,"1,775,401.00",Yes
Communities & Local Government,DCLG,01/09/2011,National Non Domestic Rates (NNDR) Payments,Localism,STOKE ON TRENT CITY COUNCIL,,,,5000173316,Grant Payable by Exchequer,ST4 1RJ,"4,719,609.00",Yes
Communities & Local Government,DCLG,01/09/2011,National Non Domestic Rates (NNDR) Payments,Localism,SUFFOLK COUNTY CNCL,,,,5000173336,Grant Payable by Exchequer,IP4 2JP,"6,722,446.00",Yes
Communities & Local Government,DCLG,01/09/2011,National Non Domestic Rates (NNDR) Payments,Localism,SUFFOLK POLICE AUTHORITY,,,,5000173348,Grant Payable by Exchequer,IP5 3QS,"989,220.00",Yes
Communities & Local Government,DCLG,01/09/2011,National Non Domestic Rates (NNDR) Payments,Localism,SUNDERLAND DC,,,,5000173356,Grant Payable by Exchequer,SR2 7DN,"5,736,629.00",Yes
Communities & Local Government,DCLG,01/09/2011,National Non Domestic Rates (NNDR) Payments,Localism,SURREY COUNTY CNCL,,,,5000173360,Grant Payable by Exchequer,KT1 2EA,"5,531,607.00",Yes
Communities & Local Government,DCLG,01/09/2011,National Non Domestic Rates (NNDR) Payments,Localism,SURREY POLICE AUTHORITY,,,,5000172775,Grant Payable by Exchequer,KT1 2EA,"1,279,499.00",Yes
Communities & Local Government,DCLG,01/09/2011,National Non Domestic Rates (NNDR) Payments,Localism,SUSSEX POLICE AUTHORITY,,,,5000172779,Grant Payable by Exchequer,PO19 1RG,"2,389,389.00",Yes
Communities & Local Government,DCLG,01/09/2011,National Non Domestic Rates (NNDR) Payments,Localism,TAMESIDE MBC,,,,5000172811,Grant Payable by Exchequer,OL6 6DL,"3,872,407.00",Yes
Communities & Local Government,DCLG,01/09/2011,National Non Domestic Rates (NNDR) Payments,Localism,THAMES VALLEY POLICE AUTHORITY,,,,5000172879,Grant Payable by Exchequer,OX5 2NX,"3,243,709.00",Yes
Communities & Local Government,DCLG,01/09/2011,National Non Domestic Rates (NNDR) Payments,Localism,TORBAY BC,,,,5000172915,Grant Payable by Exchequer,TQ1 3DR,"2,264,947.00",Yes
Communities & Local Government,DCLG,01/09/2011,National Non Domestic Rates (NNDR) Payments,Localism,TYNE & WEAR FIRE AUTHORITY,,,,5000172957,Grant Payable by Exchequer,SR2 7DN,"1,168,013.00",Yes
Communities & Local Government,DCLG,01/09/2011,National Non Domestic Rates (NNDR) Payments,Localism,WALSALL MBC,,,,5000172996,Grant Payable by Exchequer,WS1 1TW,"4,974,829.00",Yes
Communities & Local Government,DCLG,01/09/2011,National Non Domestic Rates (NNDR) Payments,Localism,WALTHAM FOREST LB,,,,5000173008,Grant Payable by Exchequer,E17 4JA,"4,569,246.00",Yes
Communities & Local Government,DCLG,01/09/2011,National Non Domestic Rates (NNDR) Payments,Localism,WANDSWORTH LB,,,,5000173012,Grant Payable by Exchequer,SW18 2PU,"5,539,858.00",Yes
Communities & Local Government,DCLG,01/09/2011,National Non Domestic Rates (NNDR) Payments,Localism,WARWICKSHIRE COUNTY CNCL,,,,5000173036,Grant Payable by Exchequer,CV34 4RH,"3,894,208.00",Yes
Communities & Local Government,DCLG,01/09/2011,National Non Domestic Rates (NNDR) Payments,Localism,WARWICKSHIRE POLICE AUTHORITY,,,,5000173040,Grant Payable by Exchequer,CV35 7QB,"729,321.00",Yes
Communities & Local Government,DCLG,01/09/2011,National Non Domestic Rates (NNDR) Payments,Localism,WEST MERCIA POLICE AUTH,,,,5000173135,Grant Payable by Exchequer,WR5 2NP,"1,888,971.00",Yes
Communities & Local Government,DCLG,01/09/2011,National Non Domestic Rates (NNDR) Payments,Localism,WEST MIDLANDS FIRE & CIVIL DEFENCE,,,,5000173139,Grant Payable by Exchequer,B4 7DE,"2,653,681.00",Yes
Communities & Local Government,DCLG,01/09/2011,National Non Domestic Rates (NNDR) Payments,Localism,WEST MIDLANDS POLICE AUTH,,,,5000173143,Grant Payable by Exchequer,B4 6NQ,"8,160,239.00",Yes
Communities & Local Government,DCLG,01/09/2011,National Non Domestic Rates (NNDR) Payments,Localism,WEST SUSSEX CC,,,,5000173163,Grant Payable by Exchequer,PO19 1RG,"4,391,896.00",Yes
Communities & Local Government,DCLG,01/09/2011,National Non Domestic Rates (NNDR) Payments,Localism,W YORKSHIRE FIRE & RESCUE AUTH,,,,5000173167,Grant Payable by Exchequer,BD11 2DY,"1,894,566.00",Yes
Communities & Local Government,DCLG,01/09/2011,National Non Domestic Rates (NNDR) Payments,Localism,WEST YORKSHIRE POLICE AUTHORITY,,,,5000173171,Grant Payable by Exchequer,WF1 3QP,"5,474,645.00",Yes
Communities & Local Government,DCLG,01/09/2011,National Non Domestic Rates (NNDR) Payments,Localism,WIGAN MBC,,,,5000173192,Grant Payable by Exchequer,WN1 1YD,"4,898,893.00",Yes
Communities & Local Government,DCLG,01/09/2011,National Non Domestic Rates (NNDR) Payments,Localism,WILTSHIRE & SWINDON FIRE AUTHORITY,,,,5000173200,Grant Payable by Exchequer,SN10 5PP,"330,568.00",Yes
Communities & Local Government,DCLG,01/09/2011,National Non Domestic Rates (NNDR) Payments,Localism,WILTSHIRE POLICE,,,,5000173204,Grant Payable by Exchequer,BA14 8JJ,"919,750.00",Yes
Communities & Local Government,DCLG,01/09/2011,National Non Domestic Rates (NNDR) Payments,Localism,WIRRAL MBC,,,,5000173226,Grant Payable by Exchequer,L41 6BU,"5,762,334.00",Yes
Communities & Local Government,DCLG,01/09/2011,National Non Domestic Rates (NNDR) Payments,Localism,WOLVERHAMPTON MBC,,,,5000173254,Grant Payable by Exchequer,WV1 1RL,"5,262,308.00",Yes
Communities & Local Government,DCLG,01/09/2011,National Non Domestic Rates (NNDR) Payments,Localism,WORCESTERSHIRE COUNTY COUNCIL,,,,5000173266,Grant Payable by Exchequer,WR5 2NP,"3,960,901.00",Yes
Communities & Local Government,DCLG,01/09/2011,National Non Domestic Rates (NNDR) Payments,Localism,GREATER LONDON AUTHORITY-FIRE,,,,5000173311,Grant Payable by Exchequer,SE1 2AA,"9,131,271.00",Yes
Communities & Local Government,DCLG,01/09/2011,National Non Domestic Rates (NNDR) Payments,Localism,CORNWALL COUNCIL,,,,5000173343,Grant Payable by Exchequer,TR1 3AY,"7,875,379.00",Yes
Communities & Local Government,DCLG,01/09/2011,National Non Domestic Rates (NNDR) Payments,Localism,DURHAM COUNTY COUNCIL,,,,5000173351,Grant Payable by Exchequer,DH1 5UE,"8,543,422.00",Yes
Communities & Local Government,DCLG,01/09/2011,National Non Domestic Rates (NNDR) Payments,Localism,NORTHUMBERLAND,,,,5000173355,Grant Payable by Exchequer,NE61 2EF,"4,682,847.00",Yes
Communities & Local Government,DCLG,01/09/2011,National Non Domestic Rates (NNDR) Payments,Localism,SHROPSHIRE COUNCIL,,Large,,5000173367,Grant Payable by Exchequer,SY2 6ND,"3,456,133.00",Yes
Communities & Local Government,DCLG,01/09/2011,Telecoms equipment (non-capitalised),Localism,AIRWAVE SOLUTIONS LTD,,Large,,5106167800,Phase A England 2011/12,SL1 2EJ,"-27,831.60",
Communities & Local Government,DCLG,01/09/2011,Telecoms equipment (non-capitalised),Localism,AIRWAVE SOLUTIONS LTD,,Large,,5106168003,Phase A England 2011/12,SL1 2EJ,"1,135,684.36",
Communities & Local Government,DCLG,01/09/2011,Property/Estates Consultancy,Localism,TURNER & TOWNSEND,,Large,,5106167813,Merton FCC-LV Infrstructure Works,LS18 4GH,"6,336.00",
Communities & Local Government,DCLG,01/09/2011,Property/Estates Consultancy,Localism,TURNER & TOWNSEND,,Large,,5106167981,Merton FCC-LV Infrstructure Works,LS18 4GH,"17,740.80",
Communities & Local Government,DCLG,02/09/2011,Domestic Services,Finance & Corporate Services,MITIE MANAGED SERVICES (SOUTHERN) L,,Large,,5106168081,"Gen Building, Cleaning & Maint 11-12",PR7 6TE,"29,202.83",
Communities & Local Government,DCLG,02/09/2011,Fixed Maintenance,Finance & Corporate Services,MITIE MANAGED SERVICES (SOUTHERN) L,,Large,,5106168079,Building Suppt Services 11-12,PR7 6TE,"102,564.06",
Communities & Local Government,DCLG,02/09/2011,Fixed Maintenance,Finance & Corporate Services,MITIE MANAGED SERVICES (SOUTHERN) L,,Large,,5106168081,Building Suppt Services 11-12,PR7 6TE,"64,377.64",
Communities & Local Government,DCLG,02/09/2011,Fixed Maintenance,Finance & Corporate Services,MITIE MANAGED SERVICES (SOUTHERN) L,,Large,,5106168083,Building Suppt Services 11-12,PR7 6TE,"1,005.92",
Communities & Local Government,DCLG,02/09/2011,Travel and Subsistence Account,Localism,FIRE SERVICE COLLEGE,,Micro,,5106168067,Accom DCLG OCFRA 11/9/11 ICNILO 03/11,GL56 0RH,604.80,
Communities & Local Government,DCLG,02/09/2011,Travel and Subsistence Account,Localism,FIRE SERVICE COLLEGE,,Micro,,5106168067,Dinner DCLG OCFRA 12/9/11 ICNILO 03/11,GL56 0RH,72.00,
Communities & Local Government,DCLG,02/09/2011,Travel and Subsistence Account,Localism,FIRE SERVICE COLLEGE,,Micro,,5106168067,Lunch DCLG OCFRA 12/9/11 ICNILO 03/11,GL56 0RH,108.00,
Communities & Local Government,DCLG,02/09/2011,Current Grants to Non Profit Bodies,Neighbourhoods,COALFIELDS REGENERATION TRUST,Yes,Small,,2100206975,Revenue - CRT Claim Q2 - Part 2 - 2011/12,S63 7WX,"88,523.00",Yes
Communities & Local Government,DCLG,02/09/2011,Current Grants to Non Profit Bodies,Neighbourhoods,IMPROVEMENT & DEVELOPMENT AGENCY,Yes,Large,,2100207245,Local Government Improvement & development,EC1M 5LG,"270,851.25",Yes
Communities & Local Government,DCLG,02/09/2011,Courier Services,Finance & Corporate Services,MITIE MANAGED SERVICES (SOUTHERN) L,,Large,,5106168081,"Postal, parcel & courier services 11-12",PR7 6TE,"9,543.00",
Communities & Local Government,DCLG,02/09/2011,Courier Services,Finance & Corporate Services,MITIE MANAGED SERVICES (SOUTHERN) L,,Large,,5106168087,"Postal, parcel & courier services 11-12",PR7 6TE,256.92,
Communities & Local Government,DCLG,02/09/2011,Photocopying,Finance & Corporate Services,MITIE MANAGED SERVICES (SOUTHERN) L,,Large,,5106168081,"Services inc printing,mail,repro 11-12",PR7 6TE,"6,362.00",
Communities & Local Government,DCLG,02/09/2011,Technical Aids for the disabled,Finance & Corporate Services,MITIE MANAGED SERVICES (SOUTHERN) L,,Large,,5106168085,Ergonomic Suppt Aids 11-12,PR7 6TE,"2,229.02",
Communities & Local Government,DCLG,02/09/2011,Security,Finance & Corporate Services,MITIE MANAGED SERVICES (SOUTHERN) L,,Large,,5106168081,"Guard Services, security,reception 11-12",PR7 6TE,"31,310.67",
Communities & Local Government,DCLG,02/09/2011,Security,Finance & Corporate Services,MITIE MANAGED SERVICES (SOUTHERN) L,,Large,,5106168083,"Guard Services, security,reception 11-12",PR7 6TE,"2,581.46",
Communities & Local Government,DCLG,02/09/2011,Security,Finance & Corporate Services,MITIE MANAGED SERVICES (SOUTHERN) L,,Large,,5106168087,"Guard Services, security,reception 11-12",PR7 6TE,129.66,
Communities & Local Government,DCLG,02/09/2011,Waste Disposal and pest control,Finance & Corporate Services,MITIE MANAGED SERVICES (SOUTHERN) L,,Large,,5106168081,Refuse collection & disposal 11-12,PR7 6TE,"3,463.89",
Communities & Local Government,DCLG,02/09/2011,Waste Disposal and pest control,Finance & Corporate Services,MITIE MANAGED SERVICES (SOUTHERN) L,,Large,,5106168081,Recycling services 11-12,PR7 6TE,"1,620.86",
Communities & Local Government,DCLG,02/09/2011,Telecoms equipment (non-capitalised),Localism,AIRWAVE SOLUTIONS LTD,,Large,,5106168050,Phase B Scotland 2011/12,SL1 2EJ,"56,895.49",
Communities & Local Government,DCLG,02/09/2011,Telecoms equipment (non-capitalised),Localism,AIRWAVE SOLUTIONS LTD,,Large,,5106168052,Phase B Scotland 2011/12,SL1 2EJ,"56,446.92",
Communities & Local Government,DCLG,02/09/2011,Facilities Management (ISD use only),Finance & Corporate Services,MITIE MANAGED SERVICES (SOUTHERN) L,,Large,,5106168081,Facilities Management 11-12,PR7 6TE,"54,117.64",
Communities & Local Government,DCLG,02/09/2011,Facilities Management (ISD use only),Finance & Corporate Services,MITIE MANAGED SERVICES (SOUTHERN) L,,Large,,5106168087,Facilities Management 11-12,PR7 6TE,"3,552.12",
Communities & Local Government,DCLG,02/09/2011,Capital Grants to People Non Profit,Neighbourhoods,COALFIELDS REGENERATION TRUST,Yes,Small,,2100206975,Capital - CRT claim Q2 - Part 2 - 2011/12,S63 7WX,"31,296.00",Yes
Communities & Local Government,DCLG,02/09/2011,Management Consultancy,Neighbourhoods,ALPHA CONSOLIDATED TRAINING LTD,,Small,,5106167434,Contractor,EC2M 7QD,"4,477.62",
Communities & Local Government,DCLG,02/09/2011,Management Consultancy,Neighbourhoods,CEL GROUP,,Medium,,5106168075,April-Oct payment,SK13 8HT,"96,265.72",
Communities & Local Government,DCLG,05/09/2011,Work In Progress Pre-Cert 40373 Spend,Neighbourhoods,NEWCASTLE UNIVERSITY,,,,2100207269,North East ERDF Programme  - claim nos. 8 & 9,NE1 7RU,"99,647.31",
Communities & Local Government,DCLG,05/09/2011,Work In Progress Pre-Cert 40373 Spend,Neighbourhoods,NORTHERN PINETREE TRUST,,Micro,,2100207266,North East ERDF Programme  - claim no. 4,DH3 2TD,"26,684.64",
Communities & Local Government,DCLG,05/09/2011,Work In Progress Pre-Cert 40373 Spend,Neighbourhoods,ONE NORTH EAST (FINAL BENEFICARY),,,,2100207267,North East ERDF Programme  - claim no. 5,NE15 8NY,"57,428.17",
Communities & Local Government,DCLG,05/09/2011,Work In Progress Pre-Cert 40373 Spend,Neighbourhoods,UNIVERSITY OF SUNDERLAND,,,,2100207268,North East ERDF Programme  - claim no. 8,SR1 3SD,"34,045.66",
Communities & Local Government,DCLG,05/09/2011,Work In Progress Pre-Cert 40467 Spend,Neighbourhoods,NEWCASTLE UNIVERSITY,,,,2100207269,North East ERDF Programme  - claim nos. 8 & 9,NE1 7RU,"545,406.02",
Communities & Local Government,DCLG,05/09/2011,Agency Staff,Finance & Corporate Services,SBS GROUP (UK) LTD,,Large,,5106168124,SAP Technical Support,EC1N 8TS,"14,184.00",
Communities & Local Government,DCLG,05/09/2011,Agency Staff,Finance & Corporate Services,SBS GROUP (UK) LTD,,Large,,5106168126,Contractor Business Support Team P2P,EC1N 8TS,"1,824.00",
Communities & Local Government,DCLG,05/09/2011,Agency Staff,Finance & Corporate Services,ALLEN LANE FINANCIAL RECRUITMENT,,,Yes,5106168120,Oct/Nov/Dec/Invoices,,"3,240.00",
Communities & Local Government,DCLG,05/09/2011,Legal Fees,Localism,DENTON WILDE SAPTE LLP,,Large,,5106167770,20% Legal Services for Damocles 2010/11,EC4M 7WS,543.00,
Communities & Local Government,DCLG,05/09/2011,Legal Fees,Finance & Corporate Services,DE MARCO HUNTER SOLICITORS,,,,5106168114,Employee Exit Support,CV3 4FJ,600.00,
Communities & Local Government,DCLG,05/09/2011,Fixed Maintenance,Localism,VT FLAGSHIP INFRASTRUCTURE,,Large,,5106168054,(20%) LONDON FM Fixed Service Yr 3,BS3 2HQ,"46,230.84",
Communities & Local Government,DCLG,05/09/2011,Current Grants to Non Profit Bodies,Neighbourhoods,PRINCES FOUNDATION,,,,2100207270,S304A of the Town and Conuntry Planning Act 1990,EC2A 3SG,"29,668.00",Yes
Communities & Local Government,DCLG,05/09/2011,Rent,Localism,LEAFRANGE LIMITED,,Micro,,5106168135,SW RCC Rent 2011-2012,E14 5LQ,"368,541.11",
Communities & Local Government,DCLG,05/09/2011,Research,Neighbourhoods,E C HARRIS LLP,,Large,,2100207302,Contract Management,N1 9AB,"-5,596.80",
Communities & Local Government,DCLG,05/09/2011,Research,Neighbourhoods,E C HARRIS LLP,,Large,,5106168137,Contract Management,N1 9AB,"5,596.80",
Communities & Local Government,DCLG,05/09/2011,Accommodation Service Charges,Localism,LEAFRANGE LIMITED,,Micro,,5106168135,SW RCC Service Charges 2011-12,E14 5LQ,"1,263.60",
Communities & Local Government,DCLG,05/09/2011,Telecoms equipment (non-capitalised),Localism,AIRWAVE SOLUTIONS LTD,,Large,,5106167836,Phase B England 2011/12,SL1 2EJ,"22,787.70",
Communities & Local Government,DCLG,05/09/2011,Telecoms equipment (non-capitalised),Localism,AIRWAVE SOLUTIONS LTD,,Large,,5106168068,Phase A Scotland 2011/12,SL1 2EJ,"-72,730.15",
Communities & Local Government,DCLG,05/09/2011,Telecoms equipment (non-capitalised),Localism,AIRWAVE SOLUTIONS LTD,,Large,,5106168088,Phase A Scotland 2011/12,SL1 2EJ,"-70,406.36",
Communities & Local Government,DCLG,05/09/2011,Telecoms equipment (non-capitalised),Finance & Corporate Services,CABLE & WIRELESS,,Large,,5106168099,GSI Hosting and Leased Line for GON,MK3 5JP,"55,802.11",
Communities & Local Government,DCLG,05/09/2011,Telecoms equipment (non-capitalised),Finance & Corporate Services,CABLE & WIRELESS,,Large,,5106168111,GSI Hosting and Leased Line for GON,MK3 5JP,"54,603.31",
Communities & Local Government,DCLG,05/09/2011,Office machinery consumables,Neighbourhoods,BANNER BUSINESS SUPPLIES LTD,,Large,,5106167921,0985873 Fuser kit,NR3 1PD,447.55,
Communities & Local Government,DCLG,05/09/2011,Office machinery consumables,Neighbourhoods,BANNER BUSINESS SUPPLIES LTD,,Large,,5106167921,Image Transfer Kit - HP 5550 0986216,NR3 1PD,203.67,
Communities & Local Government,DCLG,05/09/2011,Grant in Aid to NDPBs (non budget),Localism,COMMISSION LOCAL ADMINISTRATION,,,,2100207307,Payment cover the Ombudsman Service,SW1P 4QP,"1,179,969.00",Yes
Communities & Local Government,DCLG,05/09/2011,Grant in Aid to NDPBs (non budget),Localism,COMMISSION LOCAL ADMINISTRATION,,,,2100207313,Payment cover the Ombudsman Service,SW1P 4QP,"-1,179,969.00",Yes
Communities & Local Government,DCLG,06/09/2011,Work In Progress Pre-Cert 40373 Spend,Neighbourhoods,BUSINES & ENTERPRISE NORTH EAST,,,,2100207312,North East ERDF Programme,SR7 7TT,"388,221.46",
Communities & Local Government,DCLG,06/09/2011,Work In Progress Pre-Cert 40373 Spend,Neighbourhoods,SOUTH YORKSHIRE PTE,,,,2100206159,YH ERDF Programme,S2 5YT,"65,975.84",
Communities & Local Government,DCLG,06/09/2011,Work In Progress Pre-Cert 40373 Spend,Neighbourhoods,DE MONTFORT UNIVERSITY,,Large,,2100207309,East Midlands Competiveness OP,LE1 9BH,"5,413.17",
Communities & Local Government,DCLG,06/09/2011,Work In Progress Pre-Cert 40373 Spend,Neighbourhoods,NOTTINGHAM CITY COUNCIL,,Large,,2100207311,East Midlands Competiveness OP,NG2 3NG,"5,154.50",
Communities & Local Government,DCLG,06/09/2011,Work In Progress Pre-Cert 40373 Spend,Neighbourhoods,EAST MIDS REGIONAL DEVELOPMENT AGNC,,Large,,2100207308,East Midlands Competiveness OP,NG2 4LA,"50,892.41",
Communities & Local Government,DCLG,06/09/2011,Work In Progress Pre-Cert 40373 Spend,Neighbourhoods,GWE BUSINESS WEST LTD,,,,2100207303,South West Comp programme,BS8 3RA,"26,098.25",
Communities & Local Government,DCLG,06/09/2011,Work In Progress Pre-Cert 40373 Spend,Neighbourhoods,GWE BUSINESS WEST LTD,,,,2100207304,South West Comp programme,BS8 3RA,"19,763.07",
Communities & Local Government,DCLG,06/09/2011,Work In Progress Pre-Cert 40373 Spend,Neighbourhoods,OXFORD INNOVATION LTD (GRANTS),,,,2100207305,South West Convergence Programme,OX1 1BY,"164,682.45",
Communities & Local Government,DCLG,06/09/2011,Work In Progress Pre-Cert 40373 Spend,Neighbourhoods,OXFORD INNOVATION LTD (GRANTS),,,,2100207306,South West Convergence Programme,OX1 1BY,"279,053.18",
Communities & Local Government,DCLG,06/09/2011,Work In Progress Pre-Cert 40373 Spend,Neighbourhoods,SOMERSET COLLEGE OF ARTS & TECH,,,,2100207274,South West Comp programme,TA1 5AX,"23,104.25",
Communities & Local Government,DCLG,06/09/2011,Work In Progress Pre-Cert 40373 Spend,Neighbourhoods,UNIVERSITY OF EXETER,,,,2100207277,South West Comp programme,EX4 4QJ,"36,102.87",
Communities & Local Government,DCLG,06/09/2011,Work In Progress Pre-Cert 40373 Spend,Neighbourhoods,YTKO LIMITED,,,,2100207275,South West Comp programme,CB4 0WS,"39,343.84",
Communities & Local Government,DCLG,06/09/2011,Work In Progress Pre-Cert 40373 Spend,Neighbourhoods,TRADEWIND TURBINES LIMITED,,,,2100207276,South West Comp programme,EX2 8QE,"25,992.06",
Communities & Local Government,DCLG,06/09/2011,Work In Progress Pre-Cert 40467 Spend,Neighbourhoods,LINCOLN UNIVERSITY,,Large,,2100207310,East Midlands Competiveness OP,LN6 7TS,"439,333.40",
Communities & Local Government,DCLG,06/09/2011,Agency Staff,Finance & Corporate Services,SQUARE ONE RESOURCES LTD,,Medium,,5106168122,SAP Dev & Support for BW,EC2A 2AD,"2,287.06",
Communities & Local Government,DCLG,06/09/2011,Agency Staff,Finance & Corporate Services,SBS GROUP (UK) LTD,,Large,,5106168022,SAP PI Contractor,EC1N 8TS,"13,920.00",
Communities & Local Government,DCLG,06/09/2011,Fixed Maintenance,Finance & Corporate Services,ENERGY AUDITING AGENCY,,Medium,,5106168133,DEC Renewal,MK14 6LY,586.80,
Communities & Local Government,DCLG,06/09/2011,Professional services,Localism,VALUATION OFFICE AGENCY,,,,2100207317,Payment for Sept work on NNDR & Ctax,W1B 5BU,"12,650,000.00",
Communities & Local Government,DCLG,06/09/2011,Publications,Finance & Corporate Services,LEXIS-NEXIS UK,,Large,,5106168166,Publications - Legal,SM2 5AS,863.45,
Communities & Local Government,DCLG,06/09/2011,Grant in Aid to NDPBs (non budget),Localism,VALUATION TRIBUNAL SERVICE,,,,2100207316,Claim for Sept 2011 expenditure,E1 1DU,"627,553.00",Yes
Communities & Local Government,DCLG,06/09/2011,Steady State Service Provision,Finance & Corporate Services,LOGICA (CMG UK LTD),,Large,,5106168173,Blanket PRF for Logica Payroll (10-11),TW18 4LG,"14,395.33",
Communities & Local Government,DCLG,06/09/2011,Steady State Service Provision,Finance & Corporate Services,LOGICA (CMG UK LTD),,Large,,5106168175,Blanket PRF for Logica Payroll (10-11),TW18 4LG,"1,026.25",
Communities & Local Government,DCLG,06/09/2011,Finance Consultancy,Localism,GOVT ACTUARYS DEPARTMENT,,Medium,,5106168141,Provision of Pension Advice LGPS,N11 2JT,"24,999.55",
Communities & Local Government,DCLG,07/09/2011,Work In Progress Pre-Cert 40373 Spend,Neighbourhoods,RTC NORTH LTD,,,,2100207315,North East ERDF Programme,SR5 3HD,"81,773.52",
Communities & Local Government,DCLG,07/09/2011,Work In Progress Pre-Cert 40373 Spend,Neighbourhoods,BARNSLEY METROPOLITAN BC,,,,2100207319,YH ERDF Programme,S70 9EX,"182,556.92",
Communities & Local Government,DCLG,07/09/2011,Work In Progress Pre-Cert 40373 Spend,Neighbourhoods,BRADLEY  METROPOLITAN BC,,,,2100207323,YH ERDF Programme,BD1 5RE,"251,283.66",
Communities & Local Government,DCLG,07/09/2011,Work In Progress Pre-Cert 40373 Spend,Neighbourhoods,LEEDS CITY COLLEGE,,,,2100207322,YH ERDF Programme,LS3 1AA,"43,531.37",
Communities & Local Government,DCLG,07/09/2011,Work In Progress Pre-Cert 40373 Spend,Neighbourhoods,HEART OF ENGLAND FINE FOODS,,Small,,2100207325,West Midlands ERDF programme,SY1 3TG,"53,501.73",
Communities & Local Government,DCLG,07/09/2011,Work In Progress Pre-Cert 40373 Spend,Neighbourhoods,COVENTRY UNIVERSITY ENTERPRISES LTD,,Medium,,2100207324,West Midlands ERDF programme,CV1 2TT,"28,278.93",
Communities & Local Government,DCLG,07/09/2011,Work In Progress Pre-Cert 40373 Spend,Neighbourhoods,WEST MIDS MANUFACTURING CONSORTIUM,,Small,,2100207327,West Midlands ERDF programme,WV10 9TG,"25,746.55",
Communities & Local Government,DCLG,07/09/2011,Work In Progress Pre-Cert 40373 Spend,Neighbourhoods,SOLIHULL METROPOLITAN BC,,Large,,2100207328,West Midlands ERDF programme,B91 3QS,"5,549.36",
Communities & Local Government,DCLG,07/09/2011,Work In Progress Pre-Cert 40373 Spend,Neighbourhoods,BIRMINGHAM CITY COUNCIL (NOT RATES),,Large,,2100207329,West Midlands ERDF programme,B1 1BB,"20,143.80",
Communities & Local Government,DCLG,07/09/2011,Work In Progress Pre-Cert 40373 Spend,Neighbourhoods,BIRMINGHAM CHAMBER OF COMMERCE,,Small,,2100207330,West Midlands ERDF programme,B15 3BU,"6,594.46",
Communities & Local Government,DCLG,07/09/2011,Work In Progress Pre-Cert 40373 Spend,Neighbourhoods,NTH STAFFS CHAMBER OF COMM & IND,,Small,,2100207326,West Midlands ERDF programme,ST1 5BE,"11,393.77",
Communities & Local Government,DCLG,07/09/2011,Work In Progress Pre-Cert 40373 Spend,Neighbourhoods,CORNWALL COUNCIL,,,,2100207390,Recovery of irregular expenditure,TR1 3AY,"359,931.60",
Communities & Local Government,DCLG,07/09/2011,Work In Progress Pre-Cert 40373 Spend,Neighbourhoods,CORNWALL COUNCIL,,,,2300001785,Recovery of irregular expenditure,TR1 3AY,"-359,931.60",
Communities & Local Government,DCLG,07/09/2011,Work In Progress Pre-Cert 40467 Spend,Neighbourhoods,WARMSALE LTD,,,,2100207321,YH ERDF Programme,HU14 3JP,"302,709.22",
Communities & Local Government,DCLG,07/09/2011,Work In Progress Pre-Cert 40467 Spend,Neighbourhoods,BARNSLEY COLLEGE,,,,2100207320,YH ERDF Programme,S70 2YW,"755,247.51",
Communities & Local Government,DCLG,07/09/2011,Work In Progress Pre-Cert 40467 Spend,Neighbourhoods,SOUTH YORKS PASSENGER TRANS EXEC,,,,2100207318,YH ERDF Programme,S1 2BQ,"38,529.46",
Communities & Local Government,DCLG,07/09/2011,Agency Staff,Neighbourhoods,CAPITA RESOURCING LTD,,Large,,5106168215,DayRate ERREG2 Seas-Territorial,SL6 1DP,"1,044.00",
Communities & Local Government,DCLG,07/09/2011,Agency Staff,Neighbourhoods,CAPITA RESOURCING LTD,,Large,,5106168217,Contractor ERDF,SL6 1DP,"2,088.00",
Communities & Local Government,DCLG,07/09/2011,Agency Staff,Neighbourhoods,CAPITA RESOURCING LTD,,Large,,5106168217,Contractor ERDF Expenses,SL6 1DP,99.23,
Communities & Local Government,DCLG,07/09/2011,Agency Staff,Neighbourhoods,CAPITA RESOURCING LTD,,Large,,5106168225,DayRate INTERREG 2Seas-Territorial Facil,SL6 1DP,"1,164.13",
Communities & Local Government,DCLG,07/09/2011,Agency Staff,Finance & Corporate Services,MICHAEL PAGE INTERNATIONAL,,Large,,5106168213,Interim  internal Audit,SL1 3SA,"1,543.58",
Communities & Local Government,DCLG,07/09/2011,Agency Staff,Finance & Corporate Services,CAPITA RESOURCING LTD,,Large,,5106168206,Contractor Internal Audit,SL6 1DP,"1,863.00",
Communities & Local Government,DCLG,07/09/2011,Agency Staff,Finance & Corporate Services,CAPITA RESOURCING LTD,,Large,,5106168206,Contractor Internal Audit Expenses,SL6 1DP,35.40,
Communities & Local Government,DCLG,07/09/2011,Agency Staff,Finance & Corporate Services,CAPITA RESOURCING LTD,,Large,,5106168208,Contractor Internal Audit,SL6 1DP,"2,235.60",
Communities & Local Government,DCLG,07/09/2011,Agency Staff,Finance & Corporate Services,PURCON LTD,,Medium,,5106167252,Enprotex Interim Contractor,HP7 9LP,"2,177.28",
Communities & Local Government,DCLG,07/09/2011,Fixed Maintenance,Localism,VT FLAGSHIP INFRASTRUCTURE,,Large,,5106168177,NW FM Fixed Service,BS3 2HQ,"3,309.37",
Communities & Local Government,DCLG,07/09/2011,Fixed Maintenance,Localism,VT FLAGSHIP INFRASTRUCTURE,,Large,,5106168179,20% EoE FM Fixed Service Yr 3,BS3 2HQ,"47,204.52",
Communities & Local Government,DCLG,07/09/2011,Fixed Maintenance,Localism,VT FLAGSHIP INFRASTRUCTURE,,Large,,5106168181,20% EoE FM Fixed Service Yr 3,BS3 2HQ,"47,204.52",
Communities & Local Government,DCLG,07/09/2011,Travel and Subsistence Account,Localism,REDFERN TRAVEL LIMITED,,Small,,2100207362,August consolidated travel cost,BD1 3AZ,865.46,
Communities & Local Government,DCLG,07/09/2011,Travel and Subsistence Account,Localism,REDFERN TRAVEL LIMITED,,Small,,2100207362,August consolidated travel cost,BD1 3AZ,607.43,
Communities & Local Government,DCLG,07/09/2011,Travel and Subsistence Account,Localism,REDFERN TRAVEL LIMITED,,Small,,2100207362,August consolidated travel cost,BD1 3AZ,552.06,
Communities & Local Government,DCLG,07/09/2011,Travel and Subsistence Account,Neighbourhoods,REDFERN TRAVEL LIMITED,,Small,,2100207361,August consolidated travel cost,BD1 3AZ,549.75,
Communities & Local Government,DCLG,07/09/2011,Travel and Subsistence Account,Neighbourhoods,REDFERN TRAVEL LIMITED,,Small,,2100207362,August consolidated travel cost,BD1 3AZ,759.42,
Communities & Local Government,DCLG,07/09/2011,Travel and Subsistence Account,Neighbourhoods,REDFERN TRAVEL LIMITED,,Small,,2100207362,August consolidated travel cost,BD1 3AZ,967.44,
Communities & Local Government,DCLG,07/09/2011,Travel and Subsistence Account,Neighbourhoods,REDFERN TRAVEL LIMITED,,Small,,2100207362,August consolidated travel cost,BD1 3AZ,593.96,
Communities & Local Government,DCLG,07/09/2011,Travel and Subsistence Account,Neighbourhoods,REDFERN TRAVEL LIMITED,,Small,,2100207364,August consolidated travel cost,BD1 3AZ,576.03,
Communities & Local Government,DCLG,07/09/2011,Travel and Subsistence Account,Neighbourhoods,REDFERN TRAVEL LIMITED,,Small,,2100207364,August consolidated travel cost,BD1 3AZ,"1,260.68",
Communities & Local Government,DCLG,07/09/2011,Travel and Subsistence Account,Finance & Corporate Services,REDFERN TRAVEL LIMITED,,Small,,2100207361,August consolidated travel cost,BD1 3AZ,"1,209.31",
Communities & Local Government,DCLG,07/09/2011,Travel and Subsistence Account,Finance & Corporate Services,REDFERN TRAVEL LIMITED,,Small,,2100207361,August consolidated travel cost,BD1 3AZ,756.52,
Communities & Local Government,DCLG,07/09/2011,Travel and Subsistence Account,Finance & Corporate Services,REDFERN TRAVEL LIMITED,,Small,,2100207362,August consolidated travel cost,BD1 3AZ,510.87,
Communities & Local Government,DCLG,07/09/2011,Training,Finance & Corporate Services,LMD LEARNING SOLUTIONS,,Small,,5106168129,Development,MK8 0ES,"1,070.00",
Communities & Local Government,DCLG,07/09/2011,Telecoms equipment (non-capitalised),Localism,AIRWAVE SOLUTIONS LTD,,Large,,5106167838,Phase B England 2011/12,SL1 2EJ,"12,554.62",
Communities & Local Government,DCLG,07/09/2011,Telecoms equipment (non-capitalised),Finance & Corporate Services,DAMOVO UK LTD,,Large,,5106168246,Telephony - 8 new sites,RH12 4QP,"12,205.18",
Communities & Local Government,DCLG,07/09/2011,Telecoms equipment (non-capitalised),Finance & Corporate Services,DAMOVO UK LTD,,Large,,5106168247,Telephony - 8 new sites,RH12 4QP,"12,829.39",
Communities & Local Government,DCLG,07/09/2011,Electricity,Localism,SCOTTISH & SOUTHERN ENERGY,,Large,,5106168238,SE RCC Electricity 11-12,PO9 5JB,"9,535.66",
Communities & Local Government,DCLG,07/09/2011,Electricity,Localism,EDF ENERGY 1 LIMITED,,Large,,5106168230,Y&H RCC from line 30 new IO 11-12,PL3 5XQ,"4,646.90",
Communities & Local Government,DCLG,07/09/2011,Electricity,Localism,EDF ENERGY 1 LIMITED,,Large,,5106168232,H1044 EoE RCC from 01 Feb 11,PL3 5XQ,"4,618.09",
Communities & Local Government,DCLG,07/09/2011,Electricity,Localism,EDF ENERGY 1 LIMITED,,Large,,5106168250,SW RCC Electricity 11-12 IO 1007972,PL3 5XQ,"6,947.93",
Communities & Local Government,DCLG,07/09/2011,IT - Service Contracts,Finance & Corporate Services,FUJITSU SERVICES LTD,,Large,,5106168248,Deskside Support,SL1 0NR,"9,300.00",
Communities & Local Government,DCLG,07/09/2011,IT - Service Contracts,Finance & Corporate Services,PROCSERVE SHARED SERVICES LTD,,Medium,,5106168221,Annual subs 2011,SW1W 9SR,"6,176.64",
Communities & Local Government,DCLG,07/09/2011,Grant in Aid to NDPBs (non budget),Neighbourhoods,HOMES & COMMUNITIES AGENCY,,,,2100207356,Support for Housing and Regeneration,NE11 0NA,"32,254,715.00",Yes
Communities & Local Government,DCLG,07/09/2011,Grant in Aid to NDPBs (non budget),Neighbourhoods,TENANT SERVICES AUTHORIT Y,,Medium,,2100207355,Regulation of the social housing sector,W1T 7BN,"500,000.00",Yes
Communities & Local Government,DCLG,07/09/2011,Steady State Service Provision,Finance & Corporate Services,PENNA PLC,,Large,,5106168244,Outplacement Services for the Regions,EC3R 8EE,"2,052.00",
Communities & Local Government,DCLG,07/09/2011,Steady State Service Provision,Finance & Corporate Services,AON HEWITT LIMITED,,Large,,5106168188,Professional Services for July 11,KT18 5BS,"3,053.15",
Communities & Local Government,DCLG,08/09/2011,Agency Staff,Finance & Corporate Services,REED SPECIALIST RECRUITMENT LTD,,Large,,5106168321,Temp electoral claims,NN1 1UE,450.06,
Communities & Local Government,DCLG,08/09/2011,Agency Staff,Finance & Corporate Services,CAPITA RESOURCING LTD,,Large,,5106168350,Senior ICT/ERDF Contractor,SL6 1DP,"15,444.00",
Communities & Local Government,DCLG,08/09/2011,Agency Staff,Finance & Corporate Services,PURCON LTD,,Medium,,5106168316,Enprotex Interim Contractor,HP7 9LP,"3,810.24",
Communities & Local Government,DCLG,08/09/2011,Agency Staff,Finance & Corporate Services,PURCON LTD,,Medium,,5106168318,Enprotex Interim Contractor,HP7 9LP,"1,129.03",
Communities & Local Government,DCLG,08/09/2011,"IT - PC, Network & Hardware",Neighbourhoods,INFORMATION RISK MANAGEMENT PLC,,Small,,5106168348,Checking the security of MCIS,SW1P 3JJ,"2,400.00",
Communities & Local Government,DCLG,08/09/2011,IT Maintenance,Finance & Corporate Services,COMPUTACENTER (UK) LTD,,Large,,5106168195,QLogic5602FCswitch 16pt 3x year support,AL10 9TW,"5,418.90",
Communities & Local Government,DCLG,08/09/2011,Travel and Subsistence Account,Localism,REDFERN TRAVEL LIMITED,,Small,,2100207410,August consolidated travel cost,BD1 3AZ,732.87,
Communities & Local Government,DCLG,08/09/2011,Travel and Subsistence Account,Neighbourhoods,REDFERN TRAVEL LIMITED,,Small,,2100207408,August consolidated travel cost,BD1 3AZ,"1,203.79",
Communities & Local Government,DCLG,08/09/2011,Travel and Subsistence Account,Neighbourhoods,REDFERN TRAVEL LIMITED,,Small,,2100207408,August consolidated travel cost,BD1 3AZ,892.37,
Communities & Local Government,DCLG,08/09/2011,Travel and Subsistence Account,Neighbourhoods,REDFERN TRAVEL LIMITED,,Small,,2100207408,August consolidated travel cost,BD1 3AZ,521.06,
Communities & Local Government,DCLG,08/09/2011,Travel and Subsistence Account,Neighbourhoods,REDFERN TRAVEL LIMITED,,Small,,2100207408,August consolidated travel cost,BD1 3AZ,549.19,
Communities & Local Government,DCLG,08/09/2011,Travel and Subsistence Account,Neighbourhoods,REDFERN TRAVEL LIMITED,,Small,,2100207410,August consolidated travel cost,BD1 3AZ,903.93,
Communities & Local Government,DCLG,08/09/2011,Travel and Subsistence Account,Neighbourhoods,REDFERN TRAVEL LIMITED,,Small,,2100207410,August consolidated travel cost,BD1 3AZ,"1,732.24",
Communities & Local Government,DCLG,08/09/2011,Travel and Subsistence Account,Finance & Corporate Services,REDFERN TRAVEL LIMITED,,Small,,2100207407,August consolidated travel cost,BD1 3AZ,"1,952.51",
Communities & Local Government,DCLG,08/09/2011,Travel and Subsistence Account,Finance & Corporate Services,REDFERN TRAVEL LIMITED,,Small,,2100207409,August consolidated travel cost,BD1 3AZ,"13,826.05",
Communities & Local Government,DCLG,08/09/2011,Travel and Subsistence Account,Finance & Corporate Services,REDFERN TRAVEL LIMITED,,Small,,2100207410,August consolidated travel cost,BD1 3AZ,"7,767.31",
Communities & Local Government,DCLG,08/09/2011,Travel and Subsistence Account,Finance & Corporate Services,REDFERN TRAVEL LIMITED,,Small,,2100207410,August consolidated travel cost,BD1 3AZ,885.80,
Communities & Local Government,DCLG,08/09/2011,Travel and Subsistence Account,Finance & Corporate Services,REDFERN TRAVEL LIMITED,,Small,,2100207410,August consolidated travel cost,BD1 3AZ,"1,054.24",
Communities & Local Government,DCLG,08/09/2011,Travel and Subsistence Account,Finance & Corporate Services,REDFERN TRAVEL LIMITED,,Small,,2100207410,August consolidated travel cost,BD1 3AZ,"1,179.73",
Communities & Local Government,DCLG,08/09/2011,Travel and Subsistence Account,Finance & Corporate Services,REDFERN TRAVEL LIMITED,,Small,,2100207410,August consolidated travel cost,BD1 3AZ,718.87,
Communities & Local Government,DCLG,08/09/2011,Travel and Subsistence Account,Finance & Corporate Services,REDFERN TRAVEL LIMITED,,Small,,2100207410,August consolidated travel cost,BD1 3AZ,835.38,
Communities & Local Government,DCLG,08/09/2011,Travel and Subsistence Account,Finance & Corporate Services,REDFERN TRAVEL LIMITED,,Small,,2100207410,August consolidated travel cost,BD1 3AZ,515.08,
Communities & Local Government,DCLG,08/09/2011,Current (non AEF) Grants to Local Authorities,Neighbourhoods,DESIGN COUNCIL,,Medium,,2100207399,Gran -Operational cost  CABE Design Council- Sep11,WC2E 7DL,"372,000.00",Yes
Communities & Local Government,DCLG,08/09/2011,Rent,Localism,CB RICHARD ELLIS,,Large,,5106168330,Rent RCC Y&H 2011-12,B3 2DT,"361,912.31",
Communities & Local Government,DCLG,08/09/2011,Rent,Localism,CB RICHARD ELLIS,,Large,,5106168354,"Rent WM Qtrs 2,3,4 11-12",B3 2DT,"413,149.92",
Communities & Local Government,DCLG,08/09/2011,Vehicle Maintenance,Localism,BABCOCK CRITICAL SERVICES LTD,,Large,,5106168273,New Dimension - Fixed Costs,RH6 0FH,"597,849.78",
Communities & Local Government,DCLG,08/09/2011,Capital Grant from EC to Local Authority DEL,Treasury,WAKEFIELD MDC,,Large,,7500029434,WMDC/22C/OB2/clw5229,WF1 1ZS,"-3,220.00",Yes
Communities & Local Government,DCLG,08/09/2011,Telephone call costs,Finance & Corporate Services,DAMOVO UK LTD,,Large,,5106168253,Telephony Charges,RH12 4QP,"6,419.96",
Communities & Local Government,DCLG,08/09/2011,Telephone call costs,Finance & Corporate Services,DAMOVO UK LTD,,Large,,5106168255,Telephony Charges,RH12 4QP,"81,396.31",
Communities & Local Government,DCLG,08/09/2011,Telephone call costs,Finance & Corporate Services,DAMOVO UK LTD,,Large,,5106168256,Telephony Charges,RH12 4QP,"4,418.20",
Communities & Local Government,DCLG,08/09/2011,Telecoms equipment (non-capitalised),Finance & Corporate Services,DAMOVO UK LTD,,Large,,5106168252,Telephony - 8 new sites,RH12 4QP,"27,732.31",
Communities & Local Government,DCLG,08/09/2011,Telecoms equipment (non-capitalised),Finance & Corporate Services,DAMOVO UK LTD,,Large,,5106168257,Telephony - 8 new sites,RH12 4QP,"24,246.74",
Communities & Local Government,DCLG,08/09/2011,Telecoms equipment (non-capitalised),Finance & Corporate Services,DAMOVO UK LTD,,Large,,5106168259,Telephony - 8 new sites,RH12 4QP,"23,569.10",
Communities & Local Government,DCLG,08/09/2011,Electricity,Finance & Corporate Services,EDF ENERGY 1 LIMITED,,Large,,5106168234,Eland House Electricty 11-12,PL3 5XQ,"39,896.09",
Communities & Local Government,DCLG,08/09/2011,Office machinery consumables,Neighbourhoods,BANNER BUSINESS SUPPLIES LTD,,Large,,5106167710,ENVISAGE LASER TONER HP 4250 Q5942A,NR3 1PD,680.98,
Communities & Local Government,DCLG,08/09/2011,IT - Service Contracts,Finance & Corporate Services,COMPUTACENTER (UK) LTD,,Large,,2100207435,Evault data backup mthly charge 2011/12,AL10 9TW,"-2,208.00",
Communities & Local Government,DCLG,08/09/2011,IT - Service Contracts,Finance & Corporate Services,COMPUTACENTER (UK) LTD,,Large,,2100207436,KMD 2010 - 2011 Evault,AL10 9TW,"-1,970.40",
Communities & Local Government,DCLG,08/09/2011,IT - Service Contracts,Finance & Corporate Services,COMPUTACENTER (UK) LTD,,Large,,5106168277,KMD 2010 - 2011 Evault,AL10 9TW,"1,970.40",
Communities & Local Government,DCLG,08/09/2011,IT - Service Contracts,Finance & Corporate Services,COMPUTACENTER (UK) LTD,,Large,,5106168279,Evault data backup mthly charge 2011/12,AL10 9TW,"2,208.00",
Communities & Local Government,DCLG,08/09/2011,IT - Service Contracts,Finance & Corporate Services,STERIA LIMITED,,Large,,5106168265,LOGASNet Service March 11 - Feb 13,M14 0WN,"56,072.38",
Communities & Local Government,DCLG,08/09/2011,IT - Service Contracts,Finance & Corporate Services,STERIA LIMITED,,Large,,5106168265,DCLG Link Service Feb 2011 to Feb 2013,M14 0WN,"313,471.23",
Communities & Local Government,DCLG,08/09/2011,IT - Service Contracts,Finance & Corporate Services,STERIA LIMITED,,Large,,5106168266,DCLG Link Service Feb 2011 to Feb 2013,M14 0WN,"360,198.21",
Communities & Local Government,DCLG,08/09/2011,IT - Software Maintenance,Finance & Corporate Services,E-NIK LIMITED,,Micro,,5106168343,GON DB/App Support Sep 10 - Sep 11,U63 3LW,"15,103.75",
Communities & Local Government,DCLG,08/09/2011,Grant in Aid to NDPBs (non budget),Localism,STANDARDS BOARD FOR ENGLAND,,,,2100207391,Grant in aid to cover the operating costs - Sep 11,M1 3LF,"227,000.00",Yes
Communities & Local Government,DCLG,08/09/2011,Finance Consultancy,Localism,FTI CONSULTING LTD,,Large,,5106168352,Summary Report - Professional Fees,WC2A 1PB,"13,214.40",
Communities & Local Government,DCLG,08/09/2011,Property/Estates Consultancy,Finance & Corporate Services,GVA GRIMLEY,,Large,,5106168339,"Property, Estates, Construction consulta",W1J 8JR,"25,675.45",
Communities & Local Government,DCLG,09/09/2011,Work In Progress Pre-Cert 40373 Spend,Neighbourhoods,BUSINES & ENTERPRISE NORTH EAST,,,,2100207438,North East ERDF Programme,SR7 7TT,"31,636.36",
Communities & Local Government,DCLG,09/09/2011,Work In Progress Pre-Cert 40373 Spend,Neighbourhoods,GENERATOR,,Micro,,2100207437,North East ERDF Programme,NE1 2PQ,"20,277.76",
Communities & Local Government,DCLG,09/09/2011,Work In Progress Pre-Cert 40373 Spend,Neighbourhoods,UNIVERSITY OF TEESIDE,,,,2100207439,North East ERDF Programme,TS1 3BA,"47,838.18",
Communities & Local Government,DCLG,09/09/2011,Work In Progress Pre-Cert 40373 Spend,Neighbourhoods,NORTH WEST DEVELOPMENT AGENCY,,,,2100207442,North West ERDF Programme,WA1 1XB,"1,979.13",
Communities & Local Government,DCLG,09/09/2011,Work In Progress Pre-Cert 40373 Spend,Neighbourhoods,SOCIAL ENTERPRISE NORTH WEST,,,,2100207446,North West ERDF Programme,L2 2AH,"52,631.89",
Communities & Local Government,DCLG,09/09/2011,Work In Progress Pre-Cert 40373 Spend,Neighbourhoods,ST HELENS CHAMBER,,Medium,,2100207447,North West ERDF Programme,WA10 1FY,"36,872.33",
Communities & Local Government,DCLG,09/09/2011,Work In Progress Pre-Cert 40373 Spend,Neighbourhoods,INTEGRIA LTD,,,,2100207448,East ERDF Programme,PO10 7SU,"2,415.57",
Communities & Local Government,DCLG,09/09/2011,Work In Progress Pre-Cert 40467 Spend,Neighbourhoods,LOWTHER CASTLE & GARDENS TRUST,,,,2100207445,North West ERDF Programme,CA10 2HG,"58,732.17",
Communities & Local Government,DCLG,09/09/2011,Work In Progress Pre-Cert 40467 Spend,Neighbourhoods,ROYAL LONDON ASSET MANAGEMENT,,,,2100207443,North West ERDF Programme,EC3V 0UF,"298,825.12",
Communities & Local Government,DCLG,09/09/2011,Work In Progress Pre-Cert 40467 Spend,Neighbourhoods,WYRE BOROUGH COUNCIL,,,,2100207444,North West ERDF Programme,FY6 7PU,"175,307.64",
Communities & Local Government,DCLG,09/09/2011,Work In Progress Pre-Cert 40467 Spend,Neighbourhoods,INTEGRIA LTD,,,,2100207448,East ERDF Programme,PO10 7SU,"2,607.05",
Communities & Local Government,DCLG,09/09/2011,Fixed Maintenance,Localism,BABCOCK CRITICAL SERVICES LTD,,Large,,5106168357,Vehicle Maintenance,RH6 0FH,"50,713.24",
Communities & Local Government,DCLG,09/09/2011,Travel and Subsistence Account,Localism,REDFERN TRAVEL LIMITED,,Small,,2100207440,August consolidated travel cost,BD1 3AZ,746.22,
Communities & Local Government,DCLG,09/09/2011,Travel and Subsistence Account,Localism,REDFERN TRAVEL LIMITED,,Small,,2100207440,August consolidated travel cost,BD1 3AZ,546.19,
Communities & Local Government,DCLG,09/09/2011,Travel and Subsistence Account,Localism,REDFERN TRAVEL LIMITED,,Small,,2100207440,August consolidated travel cost,BD1 3AZ,952.66,
Communities & Local Government,DCLG,09/09/2011,Travel and Subsistence Account,Localism,REDFERN TRAVEL LIMITED,,Small,,2100207440,August consolidated travel cost,BD1 3AZ,786.00,
Communities & Local Government,DCLG,09/09/2011,Travel and Subsistence Account,Localism,REDFERN TRAVEL LIMITED,,Small,,2100207440,August consolidated travel cost,BD1 3AZ,738.85,
Communities & Local Government,DCLG,09/09/2011,Travel and Subsistence Account,Localism,REDFERN TRAVEL LIMITED,,Small,,2100207440,August consolidated travel cost,BD1 3AZ,"2,365.19",
Communities & Local Government,DCLG,09/09/2011,Travel and Subsistence Account,Localism,REDFERN TRAVEL LIMITED,,Small,,2100207440,August consolidated travel cost,BD1 3AZ,"1,433.59",
Communities & Local Government,DCLG,09/09/2011,Travel and Subsistence Account,Localism,REDFERN TRAVEL LIMITED,,Small,,2100207440,August consolidated travel cost,BD1 3AZ,754.13,
Communities & Local Government,DCLG,09/09/2011,Travel and Subsistence Account,Neighbourhoods,REDFERN TRAVEL LIMITED,,Small,,2100207440,August consolidated travel cost,BD1 3AZ,600.65,
Communities & Local Government,DCLG,09/09/2011,Travel and Subsistence Account,Finance & Corporate Services,REDFERN TRAVEL LIMITED,,Small,,2100207440,August consolidated travel cost,BD1 3AZ,"1,926.02",
Communities & Local Government,DCLG,09/09/2011,Travel and Subsistence Account,Finance & Corporate Services,REDFERN TRAVEL LIMITED,,Small,,2100207440,August consolidated travel cost,BD1 3AZ,804.33,
Communities & Local Government,DCLG,09/09/2011,Office Supplies,Finance & Corporate Services,TAURUS PRINT & DESIGN LTD,,Small,,5106168355,Delivery,KT14 7LF,224.75,
Communities & Local Government,DCLG,09/09/2011,Office Supplies,Finance & Corporate Services,TAURUS PRINT & DESIGN LTD,,Small,,5106168355,FED 1044,KT14 7LF,422.40,
Communities & Local Government,DCLG,09/09/2011,Office Supplies,Finance & Corporate Services,TAURUS PRINT & DESIGN LTD,,Small,,5106168355,FED 1324 file cover,KT14 7LF,"1,706.40",
Communities & Local Government,DCLG,09/09/2011,Office Supplies,Finance & Corporate Services,TAURUS PRINT & DESIGN LTD,,Small,,5106168355,FED 1325 file cover,KT14 7LF,391.68,
Communities & Local Government,DCLG,09/09/2011,Office Supplies,Finance & Corporate Services,TAURUS PRINT & DESIGN LTD,,Small,,5106168355,FED 1326 File covers,KT14 7LF,360.00,
Communities & Local Government,DCLG,09/09/2011,Rent,Localism,CB RICHARD ELLIS,,Large,,5106168378,Rent RCC EoE 2011-12,B3 2DT,"407,985.97",
Communities & Local Government,DCLG,09/09/2011,Rent,Localism,CANADA LIFE LTD,,Large,,5106168377,SE RCC Rent 11/12,EC3V 9JU,"435,600.00",
Communities & Local Government,DCLG,09/09/2011,Research,Finance & Corporate Services,OFFICE FOR NATIONAL STATISTICS,,,,5106168284,The English Housing Survey (combined),NP10 8XG,"395,476.00",
Communities & Local Government,DCLG,09/09/2011,Software Licences,Finance & Corporate Services,BYTES SOFTWARE SERVICES,,Medium,,5106168226,MSDN Licence Renewal (2 licences),KT17 1TS,550.68,
Communities & Local Government,DCLG,09/09/2011,Subscriptions,Finance & Corporate Services,BRITISH STANDARDS INSTITUTION,,Large,,5106168364,20% Annual Management fee,MK14 6WW,913.20,
Communities & Local Government,DCLG,09/09/2011,Vehicle Maintenance,Localism,BABCOCK CRITICAL SERVICES LTD,,Large,,5106168359,Unplanned Maintenance costs,RH6 0FH,"8,510.10",
Communities & Local Government,DCLG,09/09/2011,Accommodation Service Charges,Localism,CB RICHARD ELLIS,,Large,,5106168378,EoE RCC Service Charges 2011,B3 2DT,"5,264.27",
Communities & Local Government,DCLG,09/09/2011,Accommodation Service Charges,Localism,CANADA LIFE LTD,,Large,,5106168377,SE RCC Service Charge 11/12,EC3V 9JU,885.00,
Communities & Local Government,DCLG,09/09/2011,Electricity,Localism,SCOTTISH & SOUTHERN ENERGY,,Large,,5106168379,SE RCC Electricity 11-12,PO9 5JB,"9,552.80",
Communities & Local Government,DCLG,09/09/2011,Services provided by other Govt Orgs,Neighbourhoods,VALUATION OFFICE AGENCY,,,,5106168363,RTB VOA Valuation 11/12,W1B 5BU,"50,490.00",Yes
Communities & Local Government,DCLG,09/09/2011,IT - Service Contracts,Finance & Corporate Services,COMPUTACENTER (UK) LTD,,Large,,5106168361,Leased line charges 2011/12,AL10 9TW,900.00,
Communities & Local Government,DCLG,09/09/2011,IT - Service Contracts,Finance & Corporate Services,COMPUTACENTER (UK) LTD,,Large,,5106168361,Evault data backup mthly charge 2011/12,AL10 9TW,"1,308.00",
Communities & Local Government,DCLG,09/09/2011,IT - Service Contracts,Finance & Corporate Services,COMPUTACENTER (UK) LTD,,Large,,5106168373,Evault data backup mthly charge 2011/12,AL10 9TW,"1,970.40",
Communities & Local Government,DCLG,09/09/2011,Grant in Aid to NDPBs (non budget),Localism,COMMISSION LOCAL ADMINISTRATION,,,,2100207314,Payment cover the Ombudsman Service,SW1P 4QP,"1,179,969.00",Yes
Communities & Local Government,DCLG,09/09/2011,Steady State Service Provision,Finance & Corporate Services,LOGICA CMG UK LTD,,Large,,5106168369,GONCS Epayfact for Aug 11,TW18 4LG,779.62,
Communities & Local Government,DCLG,09/09/2011,LA General GLA  Grant Payable,Strategic Performance Team,GREATER LONDON AUTHORITY,,Large,,2100207357,General GLA Grant -,SE10 1AP,"2,642,000.00",Yes
Communities & Local Government,DCLG,12/09/2011,Work In Progress Pre-Cert 40373 Spend,Neighbourhoods,BEDFORD COLLEGE,,,,2100207485,East ERDF Programme,MK42 9AH,"77,187.75",
Communities & Local Government,DCLG,12/09/2011,Work In Progress Pre-Cert 40373 Spend,Neighbourhoods,EAST OF ENGLAND SHA,,Large,,2100207486,East ERDF Programme,WF3 1WE,"409,373.28",
Communities & Local Government,DCLG,12/09/2011,Work In Progress Pre-Cert 40373 Spend,Neighbourhoods,SERCO REGIONAL SERVICES LTD,,,,2100207488,South West Converg Programme,PL6 8BT,"219,532.26",
Communities & Local Government,DCLG,12/09/2011,Work In Progress Pre-Cert 40373 Spend,Neighbourhoods,YTKO LIMITED,,,,2100207487,South West Comp Programme,CB4 0WS,"29,830.93",
Communities & Local Government,DCLG,12/09/2011,NNDR Billing Authorities Receipts,Treasury,OFFICE OF THE PAYMASTER GENERAL (NN,,,,2100207477,NNDR Sept 2011 Billing Authority Receipts,RH10 1UH,"1,924,602,348.00",Yes
Communities & Local Government,DCLG,12/09/2011,NNDR Outturn Receipts,Treasury,OFFICE OF THE PAYMASTER GENERAL (NN,,,,2100207477,NNDR Sept 2011 Outturn Receipts Payover,RH10 1UH,"32,744,122.00",Yes
Communities & Local Government,DCLG,12/09/2011,NNDR Central List Receipts,Treasury,OFFICE OF THE PAYMASTER GENERAL (NN,,,,2100207477,NNDR Sept 2011 Central List Receipts,RH10 1UH,"125,098,322.00",Yes
Communities & Local Government,DCLG,12/09/2011,Agency Staff,Finance & Corporate Services,SBS GROUP (UK) LTD,,Large,,5106168423,SAP PI Contractor,EC1N 8TS,"13,920.00",
Communities & Local Government,DCLG,12/09/2011,Agency Staff,Finance & Corporate Services,ALLEN LANE FINANCIAL RECRUITMENT,,,Yes,5106168428,Oct/Nov/Dec/Invoices,,"2,268.00",
Communities & Local Government,DCLG,12/09/2011,Conferences and Meeting Facilities,Localism,CHURCH HOUSE CONFERENCE CENTRE LTD,,Small,,5106168456,SWG meeting,SW1P 3NZ,814.28,
Communities & Local Government,DCLG,12/09/2011,Hospitality,Neighbourhoods,MITIE CATERING SERVICES LTD,,Large,,2100207503,Hospitality,BS16 7FN,30.90,
Communities & Local Government,DCLG,12/09/2011,Hospitality,Neighbourhoods,MITIE CATERING SERVICES LTD,,Large,,2100207503,Conference and meeting facilities,BS16 7FN,700.80,
Communities & Local Government,DCLG,12/09/2011,Hospitality,Neighbourhoods,MITIE CATERING SERVICES LTD,,Large,,2100207503,Hospitality,BS16 7FN,46.08,
Communities & Local Government,DCLG,12/09/2011,Travel and Subsistence Account,Localism,FIRE SERVICE COLLEGE,,Micro,,5106168418,Training OCFRA 7-11/8,GL56 0RH,300.00,
Communities & Local Government,DCLG,12/09/2011,Water,Finance & Corporate Services,THAMES WATER UTILITIES,,Large,,2100207531,Eland House Water 11-12,SN38 8TU,"-1,537.16",
Communities & Local Government,DCLG,12/09/2011,Water,Finance & Corporate Services,THAMES WATER UTILITIES,,Large,,5106168201,Eland House Water 11-12,SN38 8TU,"1,537.16",
Communities & Local Government,DCLG,12/09/2011,Training,Localism,FIRE SERVICE COLLEGE,,Micro,,5106168418,Training Fire Investigation OCFRA 7-11/8,GL56 0RH,"2,195.00",
Communities & Local Government,DCLG,12/09/2011,Training,Finance & Corporate Services,BPP PROFESSIONAL EDUCATION LTD,,Large,,5106168311,CIMA Accountancy Qual,W12 8AW,"1,020.00",
Communities & Local Government,DCLG,12/09/2011,Vehicle hire,Localism,ARVAL,,Large,,2100207484,Vehicle Hire,SN5 6PE,50.88,
Communities & Local Government,DCLG,12/09/2011,Vehicle hire,Localism,ARVAL,,Large,,2100207484,Vehicle Hire,SN5 6PE,101.76,
Communities & Local Government,DCLG,12/09/2011,Vehicle hire,Neighbourhoods,ARVAL,,Large,,2100207484,Vehicle Hire,SN5 6PE,82.56,
Communities & Local Government,DCLG,12/09/2011,Vehicle hire,Neighbourhoods,ARVAL,,Large,,2100207484,Vehicle Hire,SN5 6PE,167.70,
Communities & Local Government,DCLG,12/09/2011,Vehicle hire,Finance & Corporate Services,ARVAL,,Large,,2100207484,Vehicle Hire,SN5 6PE,50.88,
Communities & Local Government,DCLG,12/09/2011,Vehicle hire,Finance & Corporate Services,ARVAL,,Large,,2100207484,Vehicle Hire,SN5 6PE,72.84,
Communities & Local Government,DCLG,12/09/2011,Office machinery consumables,Finance & Corporate Services,BANNER BUSINESS SUPPLIES LTD,,Large,,5106168392,ENVISAGE HP LASERJET 5500 12k CYAN,NR3 1PD,123.98,
Communities & Local Government,DCLG,12/09/2011,Office machinery consumables,Finance & Corporate Services,BANNER BUSINESS SUPPLIES LTD,,Large,,5106168392,ENVISAGE HP LASERJET 5500 12k MA,NR3 1PD,123.98,
Communities & Local Government,DCLG,12/09/2011,Office machinery consumables,Finance & Corporate Services,BANNER BUSINESS SUPPLIES LTD,,Large,,5106168392,ENVISAGE HP LASERJET 5500 12k YE,NR3 1PD,123.99,
Communities & Local Government,DCLG,12/09/2011,Office machinery consumables,Finance & Corporate Services,BANNER BUSINESS SUPPLIES LTD,,Large,,5106168392,ENVISAGE TONER CART FOR HP5500 BK,NR3 1PD,224.74,
Communities & Local Government,DCLG,12/09/2011,Services provided by other Govt Orgs,Finance & Corporate Services,AUDIT COMMISSION,,,,5106168437,National Fraud Initiative Audit Commissi,BS34 8SR,"4,800.00",Yes
Communities & Local Government,DCLG,12/09/2011,Management Consultancy,Neighbourhoods,ALPHA CONSOLIDATED TRAINING LTD,,Small,,5106168454,Contractor,EC2M 7QD,"2,760.00",
Communities & Local Government,DCLG,12/09/2011,Management Consultancy,Neighbourhoods,ALPHA CONSOLIDATED TRAINING LTD,,Small,,5106168455,Contractor,EC2M 7QD,"1,320.00",
Communities & Local Government,DCLG,13/09/2011,Work In Progress Pre-Cert 40373 Spend,Neighbourhoods,KEY FUND (STH YORKSHIRE) LTD,,,,2100207493,YH ERDF Programme,S9 3TY,"33,873.51",
Communities & Local Government,DCLG,13/09/2011,Work In Progress Pre-Cert 40373 Spend,Neighbourhoods,SHEFFIELD CITY COUNCIL,,,,2100207490,YH ERDF Programme,S1 2SH,"173,948.00",
Communities & Local Government,DCLG,13/09/2011,Work In Progress Pre-Cert 40373 Spend,Neighbourhoods,SOUTH YORKSHIRE PTE,,,,2100207489,YH ERDF Programme,S2 5YT,"132,689.75",
Communities & Local Government,DCLG,13/09/2011,Work In Progress Pre-Cert 40373 Spend,Neighbourhoods,WEST MIDS MANUFACTURING CONSORTIUM,,Small,,2100207535,WM ERDF  Project 080/BG/BS1018C,WV10 9TG,"101,882.42",
Communities & Local Government,DCLG,13/09/2011,Work In Progress Pre-Cert 40373 Spend,Neighbourhoods,CERAMIC INDUSTRY FORUM,,Small,,2100207536,WM ERDF  Project 080/BG/HV9027,ST4 2SA,"23,774.34",
Communities & Local Government,DCLG,13/09/2011,Work In Progress Pre-Cert 40373 Spend,Neighbourhoods,BIRMINGHAM CITY UNIVERSITY,,Medium,,2100207537,WM ERDF  Project 080/BG/HV9032,B42 2SU,"5,752.04",
Communities & Local Government,DCLG,13/09/2011,Work In Progress Pre-Cert 40373 Spend,Neighbourhoods,COVENTRY UNIVERSITY ENTERPRISES LTD,,Medium,,2100207538,WM ERDF  Project 080/XBG/IN1027,CV1 2TT,"18,170.50",
Communities & Local Government,DCLG,13/09/2011,Work In Progress Pre-Cert 40373 Spend,Neighbourhoods,SHROPSHIRE COUNCIL,,Large,,2100207539,WM ERDF  Project 080/DP/RF9003,SY1 9DP,"8,209.07",
Communities & Local Government,DCLG,13/09/2011,Work In Progress Pre-Cert 40373 Spend,Neighbourhoods,PRINCESS TRUST,,Medium,,2100207541,WM ERDF  Project 080/XFS/SL9022,DY9 8QH,"7,113.15",
Communities & Local Government,DCLG,13/09/2011,Work In Progress Pre-Cert 40373 Spend,Neighbourhoods,UNIVERSITY OF BIRMINGHAM,,Large,,2100207542,WM ERDF  Project 080/SY/SP8009,B15 2TT,"10,195.34",
Communities & Local Government,DCLG,13/09/2011,Work In Progress Pre-Cert 40373 Spend,Neighbourhoods,BIRMINGHAM CHAMBER OF COMMERCE,,Small,,2100207543,WM ERDF  Project 080/XBG/BE1010,B15 3BU,"6,279.67",
Communities & Local Government,DCLG,13/09/2011,Work In Progress Pre-Cert 40373 Spend,Neighbourhoods,STAFFORDSHIRE & BLACK COUNTRY BIC L,,Small,,2100207544,WM ERDF  Project 080/XBG/BE1024,ST18 0AR,"11,967.46",
Communities & Local Government,DCLG,13/09/2011,Work In Progress Pre-Cert 40467 Spend,Neighbourhoods,WARMSALE LTD,,,,2100207491,YH ERDF Programme,HU14 3JP,"79,993.43",
Communities & Local Government,DCLG,13/09/2011,Work In Progress Pre-Cert 40467 Spend,Neighbourhoods,DONCASTER METROPOLITAN BC,,,,2100207492,YH ERDF Programme,DN1 1DE,"293,008.42",
Communities & Local Government,DCLG,13/09/2011,Work In Progress Pre-Cert 40467 Spend,Neighbourhoods,KEY FUND (STH YORKSHIRE) LTD,,,,2100207493,YH ERDF Programme,S9 3TY,"42,384.91",
Communities & Local Government,DCLG,13/09/2011,Work In Progress Pre-Cert 40467 Spend,Neighbourhoods,BLACK COUNTRY REINVESTMENT SOCIETY,,Small,,2100207540,WM ERDF  Project 080/XFS/SL9019,WV10 9RU,"98,250.00",
Communities & Local Government,DCLG,13/09/2011,Work In Progress Pre-Cert 40467 Spend,Neighbourhoods,PRINCESS TRUST,,Medium,,2100207541,WM ERDF  Project 080/XFS/SL9022,DY9 8QH,"33,650.00",
Communities & Local Government,DCLG,13/09/2011,Agency Staff,Localism,AMQIS CONSORTIUM,,Medium,,5106168302,IT consultants X to 31/03/2012 (VAT20%),GU9 7XX,"6,710.03",
Communities & Local Government,DCLG,13/09/2011,Legal Fees,Finance & Corporate Services,ELISA HOLMES,,Micro,Yes,5106168500,Legal - Counsel Fees,,900.00,
Communities & Local Government,DCLG,13/09/2011,Fixed Maintenance,Localism,VT FLAGSHIP INFRASTRUCTURE,,Large,,5106167926,20% EM FM Fixed Service Yr 3,BS3 2HQ,"45,791.89",
Communities & Local Government,DCLG,13/09/2011,Fixed Maintenance,Localism,VT FLAGSHIP INFRASTRUCTURE,,Large,,5106167935,20% EM FM Fixed Service Yr 3,BS3 2HQ,"45,791.89",
Communities & Local Government,DCLG,13/09/2011,Water,Finance & Corporate Services,THAMES WATER UTILITIES,,Large,,5106168469,Eland House Water 11-12,SN38 8TU,"1,537.16",
Communities & Local Government,DCLG,13/09/2011,Publications,Finance & Corporate Services,DUN & BRADSTREET LTD,,Large,,5106168505,D&B 2011-2012,SL7 1AJ,"6,044.54",
Communities & Local Government,DCLG,13/09/2011,Publishing,Finance & Corporate Services,TUDORSEED LIMITED,,,,5106168480,TYPESETTING - TS11038,EC2A 2DX,585.00,
Communities & Local Government,DCLG,13/09/2011,Publishing,Finance & Corporate Services,TUDORSEED LIMITED,,,,5106168481,TYPESETTING - TS 11037,EC2A 2DX,480.00,
Communities & Local Government,DCLG,13/09/2011,Publishing,Finance & Corporate Services,TUDORSEED LIMITED,,,,5106168482,TYPESETTING - TS11035,EC2A 2DX,945.00,
Communities & Local Government,DCLG,13/09/2011,Publishing,Finance & Corporate Services,TUDORSEED LIMITED,,,,5106168483,TYPESETTING - TS11036,EC2A 2DX,855.00,
Communities & Local Government,DCLG,13/09/2011,Publishing,Finance & Corporate Services,STATIONERY OFFICE LTD,,Large,,5106168476,Firebuy report HC1415,NR3 1PD,"1,250.04",
Communities & Local Government,DCLG,13/09/2011,Publishing,Finance & Corporate Services,STATIONERY OFFICE LTD,,Large,,5106168477,Cm8165 council tax,NR3 1PD,955.49,
Communities & Local Government,DCLG,13/09/2011,Security,Finance & Corporate Services,SGS YARSLEY,,Large,,5106168466,Occupational H&S Certification,CH65 3EN,"1,312.68",
Communities & Local Government,DCLG,13/09/2011,Medals,Localism,ROYAL MINT,,,,5106168300,20% Long service medal,CF72 8YT,742.50,
Communities & Local Government,DCLG,13/09/2011,Telephone call costs,Finance & Corporate Services,DAMOVO UK LTD,,Large,,5106168503,Telephony Charges,RH12 4QP,"1,196.40",
Communities & Local Government,DCLG,13/09/2011,EU Cur Grnt to Priv Sect-Persons & NPISH,Treasury,GLE ENTERPRISE PARTNERS,,,,7500023005,YCS/1C/OB2/clw2972,LS7 4HZ,"-53,766.00",Yes
Communities & Local Government,DCLG,13/09/2011,IT - Service Contracts,Neighbourhoods,I B M UK LTD,,Large,,5106168465,New CC Implementation and Running costs,PO6 3AE,"11,669.76",
Communities & Local Government,DCLG,13/09/2011,IT - Service Contracts,Finance & Corporate Services,FUJITSU SERVICES LTD,,Large,,5106168504,Core Service Charge,SL1 0NR,"281,913.25",
Communities & Local Government,DCLG,13/09/2011,IT - Service Contracts,Finance & Corporate Services,STERIA LIMITED,,Large,,5106168261,TSA LINK service Feb11 to Feb13,M14 0WN,"12,253.91",
Communities & Local Government,DCLG,13/09/2011,IT - Service Contracts,Finance & Corporate Services,STERIA LIMITED,,Large,,5106168263,TSA LINK service Feb11 to Feb13,M14 0WN,"12,253.91",
Communities & Local Government,DCLG,14/09/2011,Agency Staff,Localism,CAPITA RESOURCING LTD,,Large,,5106168524,Conractor LGA Advisor,SL6 1DP,"1,389.96",
Communities & Local Government,DCLG,14/09/2011,Agency Staff,Neighbourhoods,CAPITA RESOURCING LTD,,Large,,5106168520,DayRate INTERREG 2Seas-Territorial Facil,SL6 1DP,"1,034.78",
Communities & Local Government,DCLG,14/09/2011,Agency Staff,Neighbourhoods,CAPITA RESOURCING LTD,,Large,,5106168522,DayRate ERREG2 Seas-Territorial,SL6 1DP,"1,044.00",
Communities & Local Government,DCLG,14/09/2011,Agency Staff,Finance & Corporate Services,MICHAEL PAGE INTERNATIONAL,,Large,,5106168531,Interim  internal Audit,SL1 3SA,"1,929.48",
Communities & Local Government,DCLG,14/09/2011,Agency Staff,Finance & Corporate Services,CAPITA RESOURCING LTD,,Large,,5106168518,Contractor Internal Audit,SL6 1DP,"1,490.40",
Communities & Local Government,DCLG,14/09/2011,Agency Staff,Finance & Corporate Services,CAPITA RESOURCING LTD,,Large,,5106168526,Contractor Internal Audit,SL6 1DP,"1,788.48",
Communities & Local Government,DCLG,14/09/2011,Agency Staff,Finance & Corporate Services,CAPITA RESOURCING LTD,,Large,,5106168539,Contractor Internal Audit,SL6 1DP,"1,435.77",
Communities & Local Government,DCLG,14/09/2011,Agency Staff,Finance & Corporate Services,CAPITA RESOURCING LTD,,Large,,5106168539,Contractor Internal Audit Expenses,SL6 1DP,206.93,
Communities & Local Government,DCLG,14/09/2011,Agency Staff,Finance & Corporate Services,CAPITA RESOURCING LTD,,Large,,5106168543,Contractor Transition Accountant,SL6 1DP,"7,056.00",
Communities & Local Government,DCLG,14/09/2011,Agency Staff,Finance & Corporate Services,CAPITA RESOURCING LTD,,Large,,5106168545,Contractor Internal Audit,SL6 1DP,"2,534.40",
Communities & Local Government,DCLG,14/09/2011,IT Maintenance,Finance & Corporate Services,COMPUTACENTER (UK) LTD,,Large,,5106168587,SET2000 Sun server 3yrs support&maint,AL10 9TW,"3,051.57",
Communities & Local Government,DCLG,14/09/2011,IT SUPPORT,Finance & Corporate Services,VERIZON UK LTD,,Large,,5106168514,Internet Leased Line for INTERFORM,RG2 6DA,"2,176.80",
Communities & Local Government,DCLG,14/09/2011,Fixed Maintenance,Localism,VT FLAGSHIP INFRASTRUCTURE,,Large,,5106168463,London RCC Cat Servs 11/12,BS3 2HQ,"21,159.79",
Communities & Local Government,DCLG,14/09/2011,Fixed Maintenance,Localism,VT FLAGSHIP INFRASTRUCTURE,,Large,,5106168472,Catalogue Services 11/12,BS3 2HQ,753.18,
Communities & Local Government,DCLG,14/09/2011,Fixed Maintenance,Localism,VT FLAGSHIP INFRASTRUCTURE,,Large,,5106168474,20% SE Reactive Maintenance 11/12,BS3 2HQ,"3,274.32",
Communities & Local Government,DCLG,14/09/2011,Fixed Maintenance,Finance & Corporate Services,DOUGLAS REFRIGERATION & AIR CON,,Large,,5106168540,Variable maintenance costing,OX15 0NA,471.00,
Communities & Local Government,DCLG,14/09/2011,Fixed Maintenance,Finance & Corporate Services,DOUGLAS REFRIGERATION & AIR CON,,Large,,5106168541,12 month service agreement for ACU,OX15 0NA,"1,148.00",
Communities & Local Government,DCLG,14/09/2011,Current Grants to Non Profit Bodies,Localism,*NOVAS SCARMAN GROUP LTD,Yes,Large,,2300001780,Empowerment Fund Underspend 2010-11,L1 0BS,"-5,698.65",Yes
Communities & Local Government,DCLG,14/09/2011,Current (non AEF) Grants to Local Authorities,Neighbourhoods,OLYMPIC PARK LEGACY COMPANY,,,,2100207591,Sept 2011 Contribution to OPLC s budget,E15 4PH,"800,901.00",Yes
Communities & Local Government,DCLG,14/09/2011,Telephone call costs,Finance & Corporate Services,DAMOVO UK LTD,,Large,,5106168601,Telephony Charges,RH12 4QP,"15,958.80",
Communities & Local Government,DCLG,14/09/2011,Office machinery consumables,Finance & Corporate Services,BANNER BUSINESS SUPPLIES LTD,,Large,,5106168604,ENVISAGE TONER FOR HP 4700 10k CYAN,NR3 1PD,481.75,
Communities & Local Government,DCLG,14/09/2011,Office machinery consumables,Finance & Corporate Services,BANNER BUSINESS SUPPLIES LTD,,Large,,5106168604,ENVISAGE TONER FOR HP 4700 10k MA,NR3 1PD,481.76,
Communities & Local Government,DCLG,14/09/2011,Office machinery consumables,Finance & Corporate Services,BANNER BUSINESS SUPPLIES LTD,,Large,,5106168604,ENVISAGE TONER FOR HP 4700 10k YE,NR3 1PD,481.75,
Communities & Local Government,DCLG,14/09/2011,Office machinery consumables,Finance & Corporate Services,BANNER BUSINESS SUPPLIES LTD,,Large,,5106168604,ENVISAGE TONER FOR HP 4700 11k BK,NR3 1PD,347.16,
Communities & Local Government,DCLG,14/09/2011,IT - Service Contracts,Finance & Corporate Services,INOVEM LTD,,Micro,,5106168286,iNovem data extraction - ITSOP group,RG20 8JE,750.00,
Communities & Local Government,DCLG,14/09/2011,IT - Service Contracts,Finance & Corporate Services,E-NIK LIMITED,,Micro,,5106166627,eDesk Service April - Sept 11,U63 3LW,"21,999.60",
Communities & Local Government,DCLG,14/09/2011,Grant in Aid to NDPBs (non budget),Neighbourhoods,HOMES & COMMUNITIES AGENCY,,,,2100207589,Support for Housing and Regeneration,NE11 0NA,"10,637,869.00",Yes
Communities & Local Government,DCLG,14/09/2011,Steady State Service Provision,Neighbourhoods,INSIGHT DIRECT (UK) LTD,,Large,,2100207615,New CC H09006B YEAR 3 PP Ext,S9 2BU,"-43,200.00",
Communities & Local Government,DCLG,14/09/2011,Steady State Service Provision,Neighbourhoods,INSIGHT DIRECT (UK) LTD,,Large,,5106168508,New CC H09006B YEAR 3 PP Ext,S9 2BU,"43,200.00",
Communities & Local Government,DCLG,15/09/2011,Work In Progress Pre-Cert 40373 Spend,Neighbourhoods,REMADE SOUTH EAST,,Micro,,2100207618,ERDF/SE/RD2/PR3/REMADE - Claim 21,ME19 6BJ,"13,883.98",
Communities & Local Government,DCLG,15/09/2011,Work In Progress Pre-Cert 40373 Spend,Neighbourhoods,BUSINESS SUPPORT KENT,,Medium,,2100207617,ERDF/SE/RD3/PR3/LCE project  Claim no 50,ME14 1EE,"51,422.40",
Communities & Local Government,DCLG,15/09/2011,Conferences and Meeting Facilities,Neighbourhoods,WHITEHALL & INDUSTRY GROUP,,Small,,2300001775,Payment made in error to incorrect vendor,SW1H 9EX,"-1,220.00",
Communities & Local Government,DCLG,15/09/2011,IT Maintenance,Finance & Corporate Services,E-NIK LIMITED,,Micro,,5106168610,VMWare Support April - Sept 11,U63 3LW,"9,000.00",
Communities & Local Government,DCLG,15/09/2011,Legal Fees,Localism,DENTON WILDE SAPTE LLP,,Large,,5106168598,RCC Buildings Advice for FireControl,EC4M 7WS,"10,877.38",
Communities & Local Government,DCLG,15/09/2011,Legal Fees,Finance & Corporate Services,TREASURY SOLICITORS DEPT,,,,5106168563,Tsol Payments with 20%VAT rate,WC2B 4TS,"1,790.00",
Communities & Local Government,DCLG,15/09/2011,Legal Fees,Finance & Corporate Services,TREASURY SOLICITORS DEPT,,,,5106168572,Tsol Payments with 20%VAT rate,WC2B 4TS,"2,335.00",
Communities & Local Government,DCLG,15/09/2011,Legal Fees,Finance & Corporate Services,TREASURY SOLICITORS DEPT,,,,5106168573,Tsol Payments with 20%VAT rate,WC2B 4TS,"1,028.00",
Communities & Local Government,DCLG,15/09/2011,Legal Fees,Finance & Corporate Services,TREASURY SOLICITORS DEPT,,,,5106168596,Tsol Payments with 0%VAT rate,WC2B 4TS,45.60,
Communities & Local Government,DCLG,15/09/2011,Legal Fees,Finance & Corporate Services,TREASURY SOLICITORS DEPT,,,,5106168596,Tsol Payments with 20%VAT rate,WC2B 4TS,"48,910.16",
Communities & Local Government,DCLG,15/09/2011,Fixed Maintenance,Localism,VT FLAGSHIP INFRASTRUCTURE,,Large,,5106168512,20% NE Reactive Maintenance 11/12,BS3 2HQ,"7,752.79",
Communities & Local Government,DCLG,15/09/2011,Fixed Maintenance,Localism,VT FLAGSHIP INFRASTRUCTURE,,Large,,5106168579,SE Fixed Maint VO to Oct 11,BS3 2HQ,"41,533.30",
Communities & Local Government,DCLG,15/09/2011,Fixed Maintenance,Localism,VT FLAGSHIP INFRASTRUCTURE,,Large,,5106168581,WM Fixed Maint VO to Oct 11,BS3 2HQ,"46,006.84",
Communities & Local Government,DCLG,15/09/2011,Fixed Maintenance,Localism,VT FLAGSHIP INFRASTRUCTURE,,Large,,5106168585,Y&H Fixed Maint VO to Oct 11,BS3 2HQ,"45,214.42",
Communities & Local Government,DCLG,15/09/2011,Fixed Maintenance,Localism,VT FLAGSHIP INFRASTRUCTURE,,Large,,5106168589,London Fixed Maint VO to Oct 11,BS3 2HQ,"46,230.84",
Communities & Local Government,DCLG,15/09/2011,Fares UK,Finance & Corporate Services,REDFERN TRAVEL LIMITED,,Small,,2100207620,December consolidated travel costs,BD1 3AZ,"7,406.17",
Communities & Local Government,DCLG,15/09/2011,Office Supplies,Neighbourhoods,BANNER BUSINESS SUPPLIES LTD,,Large,,5106168393,BANNER REC ENV 110x220 WD 90g SS WH,NR3 1PD,5.88,
Communities & Local Government,DCLG,15/09/2011,Office Supplies,Neighbourhoods,BANNER BUSINESS SUPPLIES LTD,,Large,,5106168393,Banner Envelopes. DL 110 x 220mm. 90gsm.,NR3 1PD,6.07,
Communities & Local Government,DCLG,15/09/2011,Current (non AEF) Grants to Local Authorities,Localism,ARUN DC,,,,5000174466,Grant Payable by Exchequer,BN17 5LF,"24,614.00",Yes
Communities & Local Government,DCLG,15/09/2011,Current (non AEF) Grants to Local Authorities,Localism,ASHFORD BC,,,,5000174468,Grant Payable by Exchequer,TN23 1PL,"15,947.00",Yes
Communities & Local Government,DCLG,15/09/2011,Current (non AEF) Grants to Local Authorities,Localism,AYLESBURY VALE DC(HSG),,,,5000174474,Grant Payable by Exchequer,HP20 1SD,"24,420.00",Yes
Communities & Local Government,DCLG,15/09/2011,Current (non AEF) Grants to Local Authorities,Localism,BABERGH DC,,,,5000174478,Grant Payable by Exchequer,IP7 6SJ,"11,598.00",Yes
Communities & Local Government,DCLG,15/09/2011,Current (non AEF) Grants to Local Authorities,Localism,BARKING & DAGENHAM LB (HSG),,,,5000174480,Grant Payable by Exchequer,RM10 7JF,"133,971.00",Yes
Communities & Local Government,DCLG,15/09/2011,Current (non AEF) Grants to Local Authorities,Localism,BASSETLAW DC (HSG),,,,5000174486,Grant Payable by Exchequer,S80 2AH,"13,837.00",Yes
Communities & Local Government,DCLG,15/09/2011,Current (non AEF) Grants to Local Authorities,Localism,BATH & NE SOMERSET DC (HSG),,,,5000174490,Grant Payable by Exchequer,BA1 5AW,"193,566.00",Yes
Communities & Local Government,DCLG,15/09/2011,Current (non AEF) Grants to Local Authorities,Localism,BEXLEY LB (HSG),,,,5000174492,Grant Payable by Exchequer,DA8 1TL,"237,458.00",Yes
Communities & Local Government,DCLG,15/09/2011,Current (non AEF) Grants to Local Authorities,Localism,BLABY DC (HSG),,,,5000174496,Grant Payable by Exchequer,LE9 5EP,"10,844.00",Yes
Communities & Local Government,DCLG,15/09/2011,Current (non AEF) Grants to Local Authorities,Localism,BOSTON BC,,,,5000174500,Grant Payable by Exchequer,PE21 8QR,"8,230.00",Yes
Communities & Local Government,DCLG,15/09/2011,Current (non AEF) Grants to Local Authorities,Localism,BRAINTREE DC,,,,5000174506,Grant Payable by Exchequer,CM7 6HB,"21,813.00",Yes
Communities & Local Government,DCLG,15/09/2011,Current (non AEF) Grants to Local Authorities,Localism,BRECKLAND DC,,,,5000174508,Grant Payable by Exchequer,NR19 1EE,"7,345.00",Yes
Communities & Local Government,DCLG,15/09/2011,Current (non AEF) Grants to Local Authorities,Localism,BRENT LB (HSG),,,,5000174514,Grant Payable by Exchequer,HA9 9HD,"257,461.00",Yes
Communities & Local Government,DCLG,15/09/2011,Current (non AEF) Grants to Local Authorities,Localism,BRISTOL CITY CNCL (HSG),,,,5000174516,Grant Payable by Exchequer,BS99 7BL,"449,840.00",Yes
Communities & Local Government,DCLG,15/09/2011,Current (non AEF) Grants to Local Authorities,Localism,BROADLAND DC,,Large,,5000174522,Grant Payable by Exchequer,NR7 0DU,"12,896.00",Yes
Communities & Local Government,DCLG,15/09/2011,Current (non AEF) Grants to Local Authorities,Localism,BROMSGROVE DC,,,,5000174524,Grant Payable by Exchequer,B60 1AA,"17,621.00",Yes
Communities & Local Government,DCLG,15/09/2011,Current (non AEF) Grants to Local Authorities,Localism,CANTERBURY CITY CNCL,,,,5000174528,Grant Payable by Exchequer,CT1 1YW,"23,303.00",Yes
Communities & Local Government,DCLG,15/09/2011,Current (non AEF) Grants to Local Authorities,Localism,CARLISLE CITY CNCL,,,,5000174534,Grant Payable by Exchequer,CA3 8QG,"16,774.00",Yes
Communities & Local Government,DCLG,15/09/2011,Current (non AEF) Grants to Local Authorities,Localism,CHERWELL DC,,,,5000174538,Grant Payable by Exchequer,OX15 4AA,"15,541.00",Yes
Communities & Local Government,DCLG,15/09/2011,Current (non AEF) Grants to Local Authorities,Localism,CHICHESTER DC,,,,5000174540,Grant Payable by Exchequer,PO19 1TY,"17,653.00",Yes
Communities & Local Government,DCLG,15/09/2011,Current (non AEF) Grants to Local Authorities,Localism,CHILTERN DC (HSG),,,,5000174546,Grant Payable by Exchequer,HP6 5AW,"17,688.00",Yes
Communities & Local Government,DCLG,15/09/2011,Current (non AEF) Grants to Local Authorities,Localism,CHRISTCHURCH BC (HSG),,,,5000174548,Grant Payable by Exchequer,BH23 1AZ,"9,124.00",Yes
Communities & Local Government,DCLG,15/09/2011,Current (non AEF) Grants to Local Authorities,Localism,CITY OF LONDON (HSG),,,,5000174552,Grant Payable by Exchequer,EC2P 2EJ,"12,192.00",Yes
Communities & Local Government,DCLG,15/09/2011,Current (non AEF) Grants to Local Authorities,Localism,CITY OF SUNDERLAND (HSG),,,,5000174558,Grant Payable by Exchequer,SR2 7DN,"237,687.00",Yes
Communities & Local Government,DCLG,15/09/2011,Current (non AEF) Grants to Local Authorities,Localism,COPELAND BC,,,,5000174562,Grant Payable by Exchequer,CA28 7NY,"10,030.00",Yes
Communities & Local Government,DCLG,15/09/2011,Current (non AEF) Grants to Local Authorities,Localism,CORBY BC,,,,5000174566,Grant Payable by Exchequer,NN17 1GD,"8,190.00",Yes
Communities & Local Government,DCLG,15/09/2011,Current (non AEF) Grants to Local Authorities,Localism,COTSWOLD DC,,,,5000174570,Grant Payable by Exchequer,GL7 1PX,"13,668.00",Yes
Communities & Local Government,DCLG,15/09/2011,Current (non AEF) Grants to Local Authorities,Localism,CRAVEN DC (HSG),,,,5000174572,Grant Payable by Exchequer,BD23 1PS,"8,502.00",Yes
Communities & Local Government,DCLG,15/09/2011,Current (non AEF) Grants to Local Authorities,Localism,CRAWLEY BC,,,,5000174578,Grant Payable by Exchequer,RH10 1UZ,"17,140.00",Yes
Communities & Local Government,DCLG,15/09/2011,Current (non AEF) Grants to Local Authorities,Localism,DARTFORD BC,,,,5000174580,Grant Payable by Exchequer,DA1 1DR,"14,097.00",Yes
Communities & Local Government,DCLG,15/09/2011,Current (non AEF) Grants to Local Authorities,Localism,DAVENTRY DC,,,,5000174584,Grant Payable by Exchequer,NN11 5AF,"9,953.00",Yes
Communities & Local Government,DCLG,15/09/2011,Current (non AEF) Grants to Local Authorities,Localism,DERBYSHIRE DALES DC,,,,5000174590,Grant Payable by Exchequer,DE4 3NN,"14,167.00",Yes
Communities & Local Government,DCLG,15/09/2011,Current (non AEF) Grants to Local Authorities,Localism,DOVER DC,,,,5000174592,Grant Payable by Exchequer,CT16 3PD,"15,988.00",Yes
Communities & Local Government,DCLG,15/09/2011,Current (non AEF) Grants to Local Authorities,Localism,EAST CAMBRIDGESHIRE DC,,,,5000174598,Grant Payable by Exchequer,CB7 4PL,"10,017.00",Yes
Communities & Local Government,DCLG,15/09/2011,Current (non AEF) Grants to Local Authorities,Localism,EAST DEVON DC,,,,5000174602,Grant Payable by Exchequer,EX10 8HL,"17,377.00",Yes
Communities & Local Government,DCLG,15/09/2011,Current (non AEF) Grants to Local Authorities,Localism,EAST HAMPSHIRE DC,,,,5000174606,Grant Payable by Exchequer,GU31 4EX,"15,868.00",Yes
Communities & Local Government,DCLG,15/09/2011,Current (non AEF) Grants to Local Authorities,Localism,EAST HERTFORDSHIRE DC,,,,5000174608,Grant Payable by Exchequer,CM23 2EN,"23,123.00",Yes
Communities & Local Government,DCLG,15/09/2011,Current (non AEF) Grants to Local Authorities,Localism,EAST LINDSEY DC,,,,5000174612,Grant Payable by Exchequer,LN11 8UP,"13,449.00",Yes
Communities & Local Government,DCLG,15/09/2011,Current (non AEF) Grants to Local Authorities,Localism,EAST NORTHAMPTONSHIRE COUNCIL,,,,5000174618,Grant Payable by Exchequer,NN14 4LZ,"9,110.00",Yes
Communities & Local Government,DCLG,15/09/2011,Current (non AEF) Grants to Local Authorities,Localism,EAST RIDING OF YORKS (HSG),,,,5000174620,Grant Payable by Exchequer,HU17 9BA,"360,650.00",Yes
Communities & Local Government,DCLG,15/09/2011,Current (non AEF) Grants to Local Authorities,Localism,EAST STAFFORDSHIRE BC,,,,5000174626,Grant Payable by Exchequer,DE14 2EB,"17,445.00",Yes
Communities & Local Government,DCLG,15/09/2011,Current (non AEF) Grants to Local Authorities,Localism,EDEN DC (HSG),,,,5000174628,Grant Payable by Exchequer,CA11 7QF,"8,984.00",Yes
Communities & Local Government,DCLG,15/09/2011,Current (non AEF) Grants to Local Authorities,Localism,ELMBRIDGE BC (HSG),,,,5000174634,Grant Payable by Exchequer,KT10 9SD,"31,282.00",Yes
Communities & Local Government,DCLG,15/09/2011,Current (non AEF) Grants to Local Authorities,Localism,FAREHAM BC,,,,5000174638,Grant Payable by Exchequer,PO16 7PU,"15,002.00",Yes
Communities & Local Government,DCLG,15/09/2011,Current (non AEF) Grants to Local Authorities,Localism,FENLAND DC,,,,5000174642,Grant Payable by Exchequer,PE15 8NQ,"18,583.00",Yes
Communities & Local Government,DCLG,15/09/2011,Current (non AEF) Grants to Local Authorities,Localism,FOREST HEATH DISTRICT COUNCIL,,,,5000174646,Grant Payable by Exchequer,IP28 7EY,"6,123.00",Yes
Communities & Local Government,DCLG,15/09/2011,Current (non AEF) Grants to Local Authorities,Localism,FOREST OF DEAN DC,,,,5000174650,Grant Payable by Exchequer,GL16 8HG,"11,882.00",Yes
Communities & Local Government,DCLG,15/09/2011,Current (non AEF) Grants to Local Authorities,Localism,GUILDFORD BC,,,,5000174654,Grant Payable by Exchequer,GU2 5BB,"20,588.00",Yes
Communities & Local Government,DCLG,15/09/2011,Current (non AEF) Grants to Local Authorities,Localism,HALTON BC (HSG),,,,5000174656,Grant Payable by Exchequer,WA8 7QF,"108,670.00",Yes
Communities & Local Government,DCLG,15/09/2011,Current (non AEF) Grants to Local Authorities,Localism,HAMBLETON DC (HSG),,,,5000174662,Grant Payable by Exchequer,DL6 2UU,"8,080.00",Yes
Communities & Local Government,DCLG,15/09/2011,Current (non AEF) Grants to Local Authorities,Localism,HARBOROUGH DC (HSG),,,,5000174664,Grant Payable by Exchequer,LE16 7AG,"13,960.00",Yes
Communities & Local Government,DCLG,15/09/2011,Current (non AEF) Grants to Local Authorities,Localism,HARROGATE BC,,,,5000174670,Grant Payable by Exchequer,HG1 2SG,"34,154.00",Yes
Communities & Local Government,DCLG,15/09/2011,Current (non AEF) Grants to Local Authorities,Localism,HEREFORDSHIRE COUNCIL,,,,5000174675,Grant Payable by Exchequer,HR4 0XH,"215,307.00",Yes
Communities & Local Government,DCLG,15/09/2011,Current (non AEF) Grants to Local Authorities,Localism,HIGH PEAK BC,,,,5000174678,Grant Payable by Exchequer,SK17 6EL,"13,953.00",Yes
Communities & Local Government,DCLG,15/09/2011,Current (non AEF) Grants to Local Authorities,Localism,HINCKLEY & BOSWORTH BC,,,,5000174682,Grant Payable by Exchequer,LE10 1BZ,"10,491.00",Yes
Communities & Local Government,DCLG,15/09/2011,Current (non AEF) Grants to Local Authorities,Localism,HORSHAM DC,,,,5000174686,Grant Payable by Exchequer,RH12 1RL,"20,318.00",Yes
Communities & Local Government,DCLG,15/09/2011,Current (non AEF) Grants to Local Authorities,Localism,HUNTINGDONSHIRE DC,,,,5000174691,Grant Payable by Exchequer,PE18 6TN,"18,457.00",Yes
Communities & Local Government,DCLG,15/09/2011,Current (non AEF) Grants to Local Authorities,Localism,KINGS LYNN & WEST NORFOLK BC,,,,5000174693,Grant Payable by Exchequer,PE30 1EX,"15,743.00",Yes
Communities & Local Government,DCLG,15/09/2011,Current (non AEF) Grants to Local Authorities,Localism,KINGSTON UPON THAMES  (HSG),,,,5000174699,Grant Payable by Exchequer,KT1 1EU,"212,560.00",Yes
Communities & Local Government,DCLG,15/09/2011,Current (non AEF) Grants to Local Authorities,Localism,KIRKLEES COUNCIL (HSG),,,,5000174702,Grant Payable by Exchequer,HD1 2YU,"388,721.00",Yes
Communities & Local Government,DCLG,15/09/2011,Current (non AEF) Grants to Local Authorities,Localism,LANCASTER CITY CNCL,,,,5000174706,Grant Payable by Exchequer,LA1 1PJ,"20,883.00",Yes
Communities & Local Government,DCLG,15/09/2011,Current (non AEF) Grants to Local Authorities,Localism,LEICESTER CITY CNCL (HSG),,,,5000174710,Grant Payable by Exchequer,LE1 6ZG,"234,225.00",Yes
Communities & Local Government,DCLG,15/09/2011,Current (non AEF) Grants to Local Authorities,Localism,LEWES DC,,,,5000174714,Grant Payable by Exchequer,BN7 2DQ,"18,529.00",Yes
Communities & Local Government,DCLG,15/09/2011,Current (non AEF) Grants to Local Authorities,Localism,LEWISHAM LB (HSG),,,,5000174718,Grant Payable by Exchequer,SE6 4RU,"230,533.00",Yes
Communities & Local Government,DCLG,15/09/2011,Current (non AEF) Grants to Local Authorities,Localism,MAIDSTONE BC,,,,5000174722,Grant Payable by Exchequer,ME15 6JQ,"33,527.00",Yes
Communities & Local Government,DCLG,15/09/2011,Current (non AEF) Grants to Local Authorities,Localism,MALDON DC,,,,5000174726,Grant Payable by Exchequer,CM9 7DL,"10,565.00",Yes
Communities & Local Government,DCLG,15/09/2011,Current (non AEF) Grants to Local Authorities,Localism,MANCHESTER CITY CNCL (HSG),,,,5000174728,Grant Payable by Exchequer,M60 2JR,"350,218.00",Yes
Communities & Local Government,DCLG,15/09/2011,Current (non AEF) Grants to Local Authorities,Localism,MEDWAY TOWNS D C (HSG),,,,5000174734,Grant Payable by Exchequer,ME4 4TR,"246,308.00",Yes
Communities & Local Government,DCLG,15/09/2011,Current (non AEF) Grants to Local Authorities,Localism,MELTON BC,,,,5000174736,Grant Payable by Exchequer,LE13 0UL,"8,417.00",Yes
Communities & Local Government,DCLG,15/09/2011,Current (non AEF) Grants to Local Authorities,Localism,MENDIP DISTRICT COUNCIL,,,,5000174742,Grant Payable by Exchequer,BA4 5BA,"15,021.00",Yes
Communities & Local Government,DCLG,15/09/2011,Current (non AEF) Grants to Local Authorities,Localism,MID DEVON DC,,,,5000174746,Grant Payable by Exchequer,EX16 6PP,"12,879.00",Yes
Communities & Local Government,DCLG,15/09/2011,Current (non AEF) Grants to Local Authorities,Localism,MID SUFFOLK DC,,,,5000174750,Grant Payable by Exchequer,IP1 2DH,"13,527.00",Yes
Communities & Local Government,DCLG,15/09/2011,Current (non AEF) Grants to Local Authorities,Localism,MID SUSSEX DC,,,,5000174754,Grant Payable by Exchequer,RH16 1SS,"21,456.00",Yes
Communities & Local Government,DCLG,15/09/2011,Current (non AEF) Grants to Local Authorities,Localism,MOLE VALLEY DC,,,,5000174756,Grant Payable by Exchequer,RH4 1SJ,"15,407.00",Yes
Communities & Local Government,DCLG,15/09/2011,Current (non AEF) Grants to Local Authorities,Localism,NEW FOREST DC,,,,5000174762,Grant Payable by Exchequer,SO43 9ZG,"28,444.00",Yes
Communities & Local Government,DCLG,15/09/2011,Current (non AEF) Grants to Local Authorities,Localism,NEWARK & SHERWOOD DC (HSG),,,,5000174764,Grant Payable by Exchequer,NG23 5QX,"16,194.00",Yes
Communities & Local Government,DCLG,15/09/2011,Current (non AEF) Grants to Local Authorities,Localism,NORTH DEVON DC,,,,5000174770,Grant Payable by Exchequer,EX31 1EA,"14,321.00",Yes
Communities & Local Government,DCLG,15/09/2011,Current (non AEF) Grants to Local Authorities,Localism,NORTH DORSET DC,,,,5000174774,Grant Payable by Exchequer,DT11 7LL,"7,127.00",Yes
Communities & Local Government,DCLG,15/09/2011,Current (non AEF) Grants to Local Authorities,Localism,NORTH EAST LINCOLN DC (HSG),,,,5000174778,Grant Payable by Exchequer,DN35 8LN,"148,530.00",Yes
Communities & Local Government,DCLG,15/09/2011,Current (non AEF) Grants to Local Authorities,Localism,NORTH HERTS DC (HOUSING) (HSG),,,,5000174780,Grant Payable by Exchequer,SG6 3HN,"24,712.00",Yes
Communities & Local Government,DCLG,15/09/2011,Current (non AEF) Grants to Local Authorities,Localism,NORTH LINCOLNSHIRE DC (HSG),,,,5000174786,Grant Payable by Exchequer,DN16 1AB,"165,720.00",Yes
Communities & Local Government,DCLG,15/09/2011,Current (non AEF) Grants to Local Authorities,Localism,NORTH NORFOLK DC,,,,5000174790,Grant Payable by Exchequer,NR27 9EJ,"14,313.00",Yes
Communities & Local Government,DCLG,15/09/2011,Current (non AEF) Grants to Local Authorities,Localism,NORTH WARWICKSHIRE BC,,Large,,5000174794,Grant Payable by Exchequer,CV9 1DE,"11,175.00",Yes
Communities & Local Government,DCLG,15/09/2011,Current (non AEF) Grants to Local Authorities,Localism,NORTH WEST LEICESTER DC,,,,5000174796,Grant Payable by Exchequer,LE67 3FJ,"14,160.00",Yes
Communities & Local Government,DCLG,15/09/2011,Current (non AEF) Grants to Local Authorities,Localism,OADBY & WIGSTON BC (HSG),,,,5000174802,Grant Payable by Exchequer,LE8 2DR,"9,088.00",Yes
Communities & Local Government,DCLG,15/09/2011,Current (non AEF) Grants to Local Authorities,Localism,POOLE BC (HSG),,,,5000174804,Grant Payable by Exchequer,BH15 2RU,"177,887.00",Yes
Communities & Local Government,DCLG,15/09/2011,Current (non AEF) Grants to Local Authorities,Localism,PURBECK DC,,,,5000174810,Grant Payable by Exchequer,DT2 8UP,"8,089.00",Yes
Communities & Local Government,DCLG,15/09/2011,Current (non AEF) Grants to Local Authorities,Localism,RIBBLE VALLEY BC,,,,5000174812,Grant Payable by Exchequer,BB7 2RA,"7,866.00",Yes
Communities & Local Government,DCLG,15/09/2011,Current (non AEF) Grants to Local Authorities,Localism,RICHMONDSHIRE DC,,,,5000174818,Grant Payable by Exchequer,DL10 4JE,"9,142.00",Yes
Communities & Local Government,DCLG,15/09/2011,Current (non AEF) Grants to Local Authorities,Localism,ROTHER DC (HSG),,,,5000174820,Grant Payable by Exchequer,TN39 3JX,"17,894.00",Yes
Communities & Local Government,DCLG,15/09/2011,Current (non AEF) Grants to Local Authorities,Localism,RUSHCLIFFE BOROUGH COUNCIL,,,,5000174826,Grant Payable by Exchequer,NG2 5FE,"13,558.00",Yes
Communities & Local Government,DCLG,15/09/2011,Current (non AEF) Grants to Local Authorities,Localism,RYEDALE DC,,,,5000174828,Grant Payable by Exchequer,YO17 0HH,"9,418.00",Yes
Communities & Local Government,DCLG,15/09/2011,Current (non AEF) Grants to Local Authorities,Localism,SCARBOROUGH BC,,Large,,5000174835,Grant Payable by Exchequer,YO11 2HG,"21,947.00",Yes
Communities & Local Government,DCLG,15/09/2011,Current (non AEF) Grants to Local Authorities,Localism,SEDGEMOOR DC,,,,5000174839,Grant Payable by Exchequer,TA6 3AR,"13,109.00",Yes
Communities & Local Government,DCLG,15/09/2011,Current (non AEF) Grants to Local Authorities,Localism,SELBY DC,,,,5000174841,Grant Payable by Exchequer,YO8 0SA,"11,908.00",Yes
Communities & Local Government,DCLG,15/09/2011,Current (non AEF) Grants to Local Authorities,Localism,SEVENOAKS DC,,,,5000174847,Grant Payable by Exchequer,TN13 1HG,"22,997.00",Yes
Communities & Local Government,DCLG,15/09/2011,Current (non AEF) Grants to Local Authorities,Localism,SHEPWAY DISTRICT COUNCIL,,,,5000174849,Grant Payable by Exchequer,CT20 2QY,"24,393.00",Yes
Communities & Local Government,DCLG,15/09/2011,Current (non AEF) Grants to Local Authorities,Localism,SOUTH BUCKS DC (HSG),,,,5000174855,Grant Payable by Exchequer,UB9 4LH,"11,733.00",Yes
Communities & Local Government,DCLG,15/09/2011,Current (non AEF) Grants to Local Authorities,Localism,SOUTH CAMBRIDGESHIRE DC,,,,5000174857,Grant Payable by Exchequer,CB23 6EA,"17,335.00",Yes
Communities & Local Government,DCLG,15/09/2011,Current (non AEF) Grants to Local Authorities,Localism,SOUTH DERBYSHIRE D C,,,,5000174863,Grant Payable by Exchequer,DE11 0AH,"11,965.00",Yes
Communities & Local Government,DCLG,15/09/2011,Current (non AEF) Grants to Local Authorities,Localism,SOUTH GLOUCESTERSHIRE DC (HSG),,,,5000174867,Grant Payable by Exchequer,BS15 2TR,"282,563.00",Yes
Communities & Local Government,DCLG,15/09/2011,Current (non AEF) Grants to Local Authorities,Localism,SOUTH HAMS DC,,,,5000174871,Grant Payable by Exchequer,TQ9 5NE,"12,814.00",Yes
Communities & Local Government,DCLG,15/09/2011,Current (non AEF) Grants to Local Authorities,Localism,SOUTH HOLLAND,,,,5000174873,Grant Payable by Exchequer,PE11 2XE,"11,648.00",Yes
Communities & Local Government,DCLG,15/09/2011,Current (non AEF) Grants to Local Authorities,Localism,SOUTH KESTEVEN DC (HSG),,,,5000174879,Grant Payable by Exchequer,NG31 6PZ,"15,731.00",Yes
Communities & Local Government,DCLG,15/09/2011,Current (non AEF) Grants to Local Authorities,Localism,SOUTH LAKELAND DC,,,,5000174881,Grant Payable by Exchequer,LA49 4DQ,"20,382.00",Yes
Communities & Local Government,DCLG,15/09/2011,Current (non AEF) Grants to Local Authorities,Localism,SOUTH NORFOLK DC,,,,5000174887,Grant Payable by Exchequer,NR15 2XE,"15,189.00",Yes
Communities & Local Government,DCLG,15/09/2011,Current (non AEF) Grants to Local Authorities,Localism,SOUTH NORTHAMPTONSHIRE DC,,,,5000174891,Grant Payable by Exchequer,NN12 7AE,"14,289.00",Yes
Communities & Local Government,DCLG,15/09/2011,Current (non AEF) Grants to Local Authorities,Localism,SOUTH OXFORDSHIRE DC,,,,5000174895,Grant Payable by Exchequer,OX10 8HQ,"17,125.00",Yes
Communities & Local Government,DCLG,15/09/2011,Current (non AEF) Grants to Local Authorities,Localism,SOUTH SOMERSET DC,,,,5000174899,Grant Payable by Exchequer,BA20 2DS,"22,787.00",Yes
Communities & Local Government,DCLG,15/09/2011,Current (non AEF) Grants to Local Authorities,Localism,SOUTH STAFFORDSHIRE DC,,,,5000174901,Grant Payable by Exchequer,WV8 1PX,"9,460.00",Yes
Communities & Local Government,DCLG,15/09/2011,Current (non AEF) Grants to Local Authorities,Localism,SPELTHORNE DC,,,,5000174907,Grant Payable by Exchequer,TW18 1XB,"16,935.00",Yes
Communities & Local Government,DCLG,15/09/2011,Current (non AEF) Grants to Local Authorities,Localism,ST EDMUNDSBURY (HSG),,,,5000174909,Grant Payable by Exchequer,IP33 3YS,"16,730.00",Yes
Communities & Local Government,DCLG,15/09/2011,Current (non AEF) Grants to Local Authorities,Localism,STAFFORDSHIRE MOORLANDS DC,,,,5000174915,Grant Payable by Exchequer,ST13 6HQ,"13,012.00",Yes
Communities & Local Government,DCLG,15/09/2011,Current (non AEF) Grants to Local Authorities,Localism,STOCKTON-ON-TEES BC (HSG),,,,5000174919,Grant Payable by Exchequer,TS23 2YS,"180,051.00",Yes
Communities & Local Government,DCLG,15/09/2011,Current (non AEF) Grants to Local Authorities,Localism,STROUD DC (HSG),,,,5000174923,Grant Payable by Exchequer,GL5 4UB,"20,197.00",Yes
Communities & Local Government,DCLG,15/09/2011,Current (non AEF) Grants to Local Authorities,Localism,SUFFOLK CC (SOCIAL CARE SERV) (H,,,,5000174927,Grant Payable by Exchequer,IP4 1LH,"722,074.00",Yes
Communities & Local Government,DCLG,15/09/2011,Current (non AEF) Grants to Local Authorities,Localism,SUFFOLK COASTAL DC (HSG),,,,5000174931,Grant Payable by Exchequer,IP12 1AU,"18,590.00",Yes
Communities & Local Government,DCLG,15/09/2011,Current (non AEF) Grants to Local Authorities,Localism,TANDRIDGE DC,,,,5000174935,Grant Payable by Exchequer,RH8 0BT,"18,308.00",Yes
Communities & Local Government,DCLG,15/09/2011,Current (non AEF) Grants to Local Authorities,Localism,TAUNTON DEANE BC,,,,5000174939,Grant Payable by Exchequer,TA1 1HE,"13,769.00",Yes
Communities & Local Government,DCLG,15/09/2011,Current (non AEF) Grants to Local Authorities,Localism,TEIGNBRIDGE DC,,,,5000174941,Grant Payable by Exchequer,TQ12 4XX,"18,522.00",Yes
Communities & Local Government,DCLG,15/09/2011,Current (non AEF) Grants to Local Authorities,Localism,TENDRING DC,,,,5000174947,Grant Payable by Exchequer,CO15 1SE,"19,220.00",Yes
Communities & Local Government,DCLG,15/09/2011,Current (non AEF) Grants to Local Authorities,Localism,TEST VALLEY BC,,,,5000174949,Grant Payable by Exchequer,SP10 3AJ,"14,763.00",Yes
Communities & Local Government,DCLG,15/09/2011,Current (non AEF) Grants to Local Authorities,Localism,TEWKESBURY BC,,,,5000174955,Grant Payable by Exchequer,GL20 5TT,"7,923.00",Yes
Communities & Local Government,DCLG,15/09/2011,Current (non AEF) Grants to Local Authorities,Localism,THANET DC,,,,5000174959,Grant Payable by Exchequer,CT8 1XZ,"24,674.00",Yes
Communities & Local Government,DCLG,15/09/2011,Current (non AEF) Grants to Local Authorities,Localism,TONBRIDGE & MALLING BC,,,,5000174963,Grant Payable by Exchequer,ME19 6LZ,"21,063.00",Yes
Communities & Local Government,DCLG,15/09/2011,Current (non AEF) Grants to Local Authorities,Localism,TORRIDGE DC,,,,5000174965,Grant Payable by Exchequer,EX39 2HT,"8,550.00",Yes
Communities & Local Government,DCLG,15/09/2011,Current (non AEF) Grants to Local Authorities,Localism,TOWER HAMLETS LB (HSG),,,,5000174971,Grant Payable by Exchequer,E14 2BG,"196,845.00",Yes
Communities & Local Government,DCLG,15/09/2011,Current (non AEF) Grants to Local Authorities,Localism,TUNBRIDGE WELLS BC,,,,5000174975,Grant Payable by Exchequer,TN1 1RS,"16,409.00",Yes
Communities & Local Government,DCLG,15/09/2011,Current (non AEF) Grants to Local Authorities,Localism,UTTLESFORD DC,,,,5000174977,Grant Payable by Exchequer,CB11 4ER,"12,303.00",Yes
Communities & Local Government,DCLG,15/09/2011,Current (non AEF) Grants to Local Authorities,Localism,VALE OF WHITE HORSE DC,,,,5000174983,Grant Payable by Exchequer,OX14 3JH,"14,127.00",Yes
Communities & Local Government,DCLG,15/09/2011,Current (non AEF) Grants to Local Authorities,Localism,WAVENEY DISTRICT COUNCIL,,Large,,5000174987,Grant Payable by Exchequer,NR32 1HS,"14,804.00",Yes
Communities & Local Government,DCLG,15/09/2011,Current (non AEF) Grants to Local Authorities,Localism,WAVERLEY BC V177,,,,5000174989,Grant Payable by Exchequer,GU7 1HR,"22,121.00",Yes
Communities & Local Government,DCLG,15/09/2011,Current (non AEF) Grants to Local Authorities,Localism,WEALDEN DC,,,,5000174995,Grant Payable by Exchequer,BN22 9LN,"27,319.00",Yes
Communities & Local Government,DCLG,15/09/2011,Current (non AEF) Grants to Local Authorities,Localism,WELWYN HATFIELD COUNCIL,,,,5000174999,Grant Payable by Exchequer,AL8 6AE,"20,612.00",Yes
Communities & Local Government,DCLG,15/09/2011,Current (non AEF) Grants to Local Authorities,Localism,WEST DEVON BC,,,,5000175001,Grant Payable by Exchequer,PL19 0BZ,"10,016.00",Yes
Communities & Local Government,DCLG,15/09/2011,Current (non AEF) Grants to Local Authorities,Localism,WEST DORSET DC,,,,5000175007,Grant Payable by Exchequer,DT1 1UZ,"13,488.00",Yes
Communities & Local Government,DCLG,15/09/2011,Current (non AEF) Grants to Local Authorities,Localism,WEST LINDSEY DC,,,,5000175009,Grant Payable by Exchequer,DN21 2NA,"14,404.00",Yes
Communities & Local Government,DCLG,15/09/2011,Current (non AEF) Grants to Local Authorities,Localism,WEST OXFORDSHIRE DC,,,,5000175015,Grant Payable by Exchequer,OX28 1NB,"8,616.00",Yes
Communities & Local Government,DCLG,15/09/2011,Current (non AEF) Grants to Local Authorities,Localism,WEST SOMERSET DC,,,,5000175017,Grant Payable by Exchequer,TA4 4QA,"4,902.00",Yes
Communities & Local Government,DCLG,15/09/2011,Current (non AEF) Grants to Local Authorities,Localism,WINCHESTER CITY CNCL,,,,5000175023,Grant Payable by Exchequer,SO23 9LJ,"17,319.00",Yes
Communities & Local Government,DCLG,15/09/2011,Current (non AEF) Grants to Local Authorities,Localism,WINDSOR & MAIDENHEAD (HSG),,,,5000175025,Grant Payable by Exchequer,SL6 1RF,"162,788.00",Yes
Communities & Local Government,DCLG,15/09/2011,Current (non AEF) Grants to Local Authorities,Localism,WYCHAVON DISTRICT COUNCIL,,,,5000175031,Grant Payable by Exchequer,WR10 1PT,"13,088.00",Yes
Communities & Local Government,DCLG,15/09/2011,Current (non AEF) Grants to Local Authorities,Localism,WYCOMBE DC,,Medium,,5000175035,Grant Payable by Exchequer,HP11 1BB,"22,977.00",Yes
Communities & Local Government,DCLG,15/09/2011,Current (non AEF) Grants to Local Authorities,Localism,WYRE BC,,,,5000175037,Grant Payable by Exchequer,FY6 7PU,"17,669.00",Yes
Communities & Local Government,DCLG,15/09/2011,Current (non AEF) Grants to Local Authorities,Localism,ADUR DC,,,,5000175043,Grant Payable by Exchequer,BN11 1HB,"15,430.00",Yes
Communities & Local Government,DCLG,15/09/2011,Current (non AEF) Grants to Local Authorities,Localism,ALLERDALE BC,,,,5000175047,Grant Payable by Exchequer,CA14 2RS,"11,417.00",Yes
Communities & Local Government,DCLG,15/09/2011,Current (non AEF) Grants to Local Authorities,Localism,AMBER VALLEY BC,,,,5000175051,Grant Payable by Exchequer,DE5 3WZ,"15,619.00",Yes
Communities & Local Government,DCLG,15/09/2011,Current (non AEF) Grants to Local Authorities,Localism,ASHFIELD DC,,,,5000175053,Grant Payable by Exchequer,NG17 8DA,"14,778.00",Yes
Communities & Local Government,DCLG,15/09/2011,Current (non AEF) Grants to Local Authorities,Localism,BARNET LBC,,,,5000175059,Grant Payable by Exchequer,NW4 4BG,"388,665.00",Yes
Communities & Local Government,DCLG,15/09/2011,Current (non AEF) Grants to Local Authorities,Localism,BARNSLEY MBC,,,,5000175061,Grant Payable by Exchequer,S70 2AQ,"208,427.00",Yes
Communities & Local Government,DCLG,15/09/2011,Current (non AEF) Grants to Local Authorities,Localism,BARROW BC,,,,5000175065,Grant Payable by Exchequer,LA14 2LD,"10,879.00",Yes
Communities & Local Government,DCLG,15/09/2011,Current (non AEF) Grants to Local Authorities,Localism,BASILDON DISTRICT COUNCIL,,,,5000175071,Grant Payable by Exchequer,SS14 1XA,"40,550.00",Yes
Communities & Local Government,DCLG,15/09/2011,Current (non AEF) Grants to Local Authorities,Localism,BASINGSTOKE & DEANE BC,,,,5000175075,Grant Payable by Exchequer,RG21 2AJ,"16,881.00",Yes
Communities & Local Government,DCLG,15/09/2011,Current (non AEF) Grants to Local Authorities,Localism,BIRMINGHAM CITY CNCL,,,,5000175077,Grant Payable by Exchequer,B3 3AB,"830,497.00",Yes
Communities & Local Government,DCLG,15/09/2011,Current (non AEF) Grants to Local Authorities,Localism,BLACKBURN WITH DARWEN BC,,,,5000175083,Grant Payable by Exchequer,BB1 7DY,"125,730.00",Yes
Communities & Local Government,DCLG,15/09/2011,Current (non AEF) Grants to Local Authorities,Localism,BLACKPOOL BC,,,,5000175085,Grant Payable by Exchequer,FY1 1NA,"149,623.00",Yes
Communities & Local Government,DCLG,15/09/2011,Current (non AEF) Grants to Local Authorities,Localism,BOLSOVER DC,,,,5000175091,Grant Payable by Exchequer,S44 6NF,"9,012.00",Yes
Communities & Local Government,DCLG,15/09/2011,Current (non AEF) Grants to Local Authorities,Localism,BOLTON MBC,,,,5000175095,Grant Payable by Exchequer,BL1 1RU,"252,576.00",Yes
Communities & Local Government,DCLG,15/09/2011,Current (non AEF) Grants to Local Authorities,Localism,BOURNEMOUTH DC,,,,5000175097,Grant Payable by Exchequer,BH2 6EB,"201,436.00",Yes
Communities & Local Government,DCLG,15/09/2011,Current (non AEF) Grants to Local Authorities,Localism,BRACKNELL FOREST DC,,,,5000175103,Grant Payable by Exchequer,RG12 1AQ,"121,182.00",Yes
Communities & Local Government,DCLG,15/09/2011,Current (non AEF) Grants to Local Authorities,Localism,BRADFORD MBC,,,,5000175105,Grant Payable by Exchequer,BD1 1HX,"407,446.00",Yes
Communities & Local Government,DCLG,15/09/2011,Current (non AEF) Grants to Local Authorities,Localism,BRENTWOOD BC,,,,5000175111,Grant Payable by Exchequer,CM15 8AY,"14,109.00",Yes
Communities & Local Government,DCLG,15/09/2011,Current (non AEF) Grants to Local Authorities,Localism,BRIGHTON & HOVE CITY COUNCIL,,,,5000175113,Grant Payable by Exchequer,BN3 2SR,"299,519.00",Yes
Communities & Local Government,DCLG,15/09/2011,Current (non AEF) Grants to Local Authorities,Localism,BROMLEY LB,,,,5000175119,Grant Payable by Exchequer,BR1 3UH,"330,428.00",Yes
Communities & Local Government,DCLG,15/09/2011,Current (non AEF) Grants to Local Authorities,Localism,BROXBOURNE BC,,,,5000175121,Grant Payable by Exchequer,EN8 9XG,"10,490.00",Yes
Communities & Local Government,DCLG,15/09/2011,Current (non AEF) Grants to Local Authorities,Localism,BROXTOWE BC,,,,5000175127,Grant Payable by Exchequer,NG9 1AB,"14,504.00",Yes
Communities & Local Government,DCLG,15/09/2011,Current (non AEF) Grants to Local Authorities,Localism,BUCKINGHAMSHIRE CC,,,,5000175131,Grant Payable by Exchequer,HP20 1UD,"576,302.00",Yes
Communities & Local Government,DCLG,15/09/2011,Current (non AEF) Grants to Local Authorities,Localism,BURNLEY BC,,,,5000175135,Grant Payable by Exchequer,BB11 1JA,"16,524.00",Yes
Communities & Local Government,DCLG,15/09/2011,Current (non AEF) Grants to Local Authorities,Localism,GMRB,,,,5000175139,Grant Payable by Exchequer,BL9 0SW,"188,687.00",Yes
Communities & Local Government,DCLG,15/09/2011,Current (non AEF) Grants to Local Authorities,Localism,CALDERDALE MBC,,,,5000175141,Grant Payable by Exchequer,HX1 1YP,"201,405.00",Yes
Communities & Local Government,DCLG,15/09/2011,Current (non AEF) Grants to Local Authorities,Localism,CAMBRIDGE CITY COUNCIL,,,,5000175147,Grant Payable by Exchequer,CB2 3NA,"16,964.00",Yes
Communities & Local Government,DCLG,15/09/2011,Current (non AEF) Grants to Local Authorities,Localism,CAMBRIDGESHIRE COUNTY CNCL,,,,5000175149,Grant Payable by Exchequer,CB3 0AP,"577,925.00",Yes
Communities & Local Government,DCLG,15/09/2011,Current (non AEF) Grants to Local Authorities,Localism,CAMDEN LB,,,,5000175155,Grant Payable by Exchequer,WC1H 8NG,"246,757.00",Yes
Communities & Local Government,DCLG,15/09/2011,Current (non AEF) Grants to Local Authorities,Localism,CANNOCK CHASE DC,,,,5000175159,Grant Payable by Exchequer,WS11 1BG,"14,984.00",Yes
Communities & Local Government,DCLG,15/09/2011,Current (non AEF) Grants to Local Authorities,Localism,CASTLE POINT BC,,,,5000175163,Grant Payable by Exchequer,SS7 1TF,"18,400.00",Yes
Communities & Local Government,DCLG,15/09/2011,Current (non AEF) Grants to Local Authorities,Localism,CHARNWOOD BC,,,,5000175167,Grant Payable by Exchequer,LE11 2TU,"17,138.00",Yes
Communities & Local Government,DCLG,15/09/2011,Current (non AEF) Grants to Local Authorities,Localism,CHELMSFORD BC,,,,5000175171,Grant Payable by Exchequer,CM1 1JE,"26,654.00",Yes
Communities & Local Government,DCLG,15/09/2011,Current (non AEF) Grants to Local Authorities,Localism,CHELTENHAM BC,,,,5000175173,Grant Payable by Exchequer,GL50 1PW,"19,798.00",Yes
Communities & Local Government,DCLG,15/09/2011,Current (non AEF) Grants to Local Authorities,Localism,CHESTERFIELD BC,,,,5000175179,Grant Payable by Exchequer,S40 1LP,"11,345.00",Yes
Communities & Local Government,DCLG,15/09/2011,Current (non AEF) Grants to Local Authorities,Localism,CHORLEY DC,,,,5000175183,Grant Payable by Exchequer,PR7 1DP,"15,968.00",Yes
Communities & Local Government,DCLG,15/09/2011,Current (non AEF) Grants to Local Authorities,Localism,COLCHESTER BC,,,,5000175187,Grant Payable by Exchequer,CO3 3WG,"26,702.00",Yes
Communities & Local Government,DCLG,15/09/2011,Current (non AEF) Grants to Local Authorities,Localism,COVENTRY CITY CNCL,,,,5000175189,Grant Payable by Exchequer,CV1 2QL,"294,636.00",Yes
Communities & Local Government,DCLG,15/09/2011,Current (non AEF) Grants to Local Authorities,Localism,CROYDON LB,,,,5000175193,Grant Payable by Exchequer,CR9 3JS,"367,811.00",Yes
Communities & Local Government,DCLG,15/09/2011,Current (non AEF) Grants to Local Authorities,Localism,CUMBRIA COUNTY CNCL,,,,5000175199,Grant Payable by Exchequer,CA3 8NA,"513,873.00",Yes
Communities & Local Government,DCLG,15/09/2011,Current (non AEF) Grants to Local Authorities,Localism,DACORUM BC,,,,5000175201,Grant Payable by Exchequer,HP1 1HH,"24,940.00",Yes
Communities & Local Government,DCLG,15/09/2011,Current (non AEF) Grants to Local Authorities,Localism,DARLINGTON BC,,,,5000175205,Grant Payable by Exchequer,TS19 1JA,"100,119.00",Yes
Communities & Local Government,DCLG,15/09/2011,Current (non AEF) Grants to Local Authorities,Localism,DERBY CITY CNCL,,,,5000175208,Grant Payable by Exchequer,DE1 2FS,"203,683.00",Yes
Communities & Local Government,DCLG,15/09/2011,Current (non AEF) Grants to Local Authorities,Localism,DERBYSHIRE COUNTYCOUNCIL,,,,5000175210,Grant Payable by Exchequer,DE4 3AH,"696,132.00",Yes
Communities & Local Government,DCLG,15/09/2011,Current (non AEF) Grants to Local Authorities,Localism,DEVON COUNTY CNCL,,,,5000175211,Grant Payable by Exchequer,EX2 4QJ,"810,249.00",Yes
Communities & Local Government,DCLG,15/09/2011,Current (non AEF) Grants to Local Authorities,Localism,DONCASTER MBC,,,,5000175214,Grant Payable by Exchequer,DN1 3QA,"235,281.00",Yes
Communities & Local Government,DCLG,15/09/2011,Current (non AEF) Grants to Local Authorities,Localism,DORSET COUNTY CNCL,,,,5000175216,Grant Payable by Exchequer,DT1 1XJ,"504,732.00",Yes
Communities & Local Government,DCLG,15/09/2011,Current (non AEF) Grants to Local Authorities,Localism,DUDLEY MBC,,,,5000175218,Grant Payable by Exchequer,DY1 1HF,"276,604.00",Yes
Communities & Local Government,DCLG,15/09/2011,Current (non AEF) Grants to Local Authorities,Localism,EALING LB,,,,5000175219,Grant Payable by Exchequer,W5 2HL,"314,935.00",Yes
Communities & Local Government,DCLG,15/09/2011,Current (non AEF) Grants to Local Authorities,Localism,EAST DORSET DC,,,,5000175221,Grant Payable by Exchequer,BH21 4HN,"18,419.00",Yes
Communities & Local Government,DCLG,15/09/2011,Current (non AEF) Grants to Local Authorities,Localism,EAST SUSSEX COUNTY CNCL,,,,5000175224,Grant Payable by Exchequer,BN7 1SF,"598,038.00",Yes
Communities & Local Government,DCLG,15/09/2011,Current (non AEF) Grants to Local Authorities,Localism,EASTBOURNE BC,,,,5000175225,Grant Payable by Exchequer,BN21 4TW,"20,602.00",Yes
Communities & Local Government,DCLG,15/09/2011,Current (non AEF) Grants to Local Authorities,Localism,EASTLEIGH BOROUGH COUNCIL,,,,5000175228,Grant Payable by Exchequer,SO5 9YN,"14,945.00",Yes
Communities & Local Government,DCLG,15/09/2011,Current (non AEF) Grants to Local Authorities,Localism,ENFIELD LB,,,,5000175230,Grant Payable by Exchequer,EN1 3XF,"303,184.00",Yes
Communities & Local Government,DCLG,15/09/2011,Current (non AEF) Grants to Local Authorities,Localism,EPPING FOREST DC,,,,5000175231,Grant Payable by Exchequer,CM16 4BZ,"20,311.00",Yes
Communities & Local Government,DCLG,15/09/2011,Current (non AEF) Grants to Local Authorities,Localism,EPSOM & EWELL BC,,,,5000175234,Grant Payable by Exchequer,KT18 5BY,"12,975.00",Yes
Communities & Local Government,DCLG,15/09/2011,Current (non AEF) Grants to Local Authorities,Localism,EREWASH BC,,,,5000175235,Grant Payable by Exchequer,DE7 5RP,"14,686.00",Yes
Communities & Local Government,DCLG,15/09/2011,Current (non AEF) Grants to Local Authorities,Localism,ESSEX COUNTY CNCL,,,,5000175238,Grant Payable by Exchequer,CM1 1JZ,"1,446,713.00",Yes
Communities & Local Government,DCLG,15/09/2011,Current (non AEF) Grants to Local Authorities,Localism,EXETER CITY CNCL,,,,5000175239,Grant Payable by Exchequer,EX1 1JN,"11,842.00",Yes
Communities & Local Government,DCLG,15/09/2011,Current (non AEF) Grants to Local Authorities,Localism,FYLDE BC,,,,5000175241,Grant Payable by Exchequer,FY8 1LW,"14,049.00",Yes
Communities & Local Government,DCLG,15/09/2011,Current (non AEF) Grants to Local Authorities,Localism,GATESHEAD MBC,,,,5000175243,Grant Payable by Exchequer,NE8 1HH,"213,744.00",Yes
Communities & Local Government,DCLG,15/09/2011,Current (non AEF) Grants to Local Authorities,Localism,GEDLING BC,,,,5000175245,Grant Payable by Exchequer,NG5 6LU,"13,891.00",Yes
Communities & Local Government,DCLG,15/09/2011,Current (non AEF) Grants to Local Authorities,Localism,GLOUCESTER CITY CNCL,,,,5000175248,Grant Payable by Exchequer,GL1 2EQ,"17,655.00",Yes
Communities & Local Government,DCLG,15/09/2011,Current (non AEF) Grants to Local Authorities,Localism,GLOUCESTERSHIRE COUNTY CNCL,,,,5000175249,Grant Payable by Exchequer,GL1 2TG,"609,855.00",Yes
Communities & Local Government,DCLG,15/09/2011,Current (non AEF) Grants to Local Authorities,Localism,GOSPORT BOROUGH COUNCIL,,,,5000175252,Grant Payable by Exchequer,PO12 1ED,"13,991.00",Yes
Communities & Local Government,DCLG,15/09/2011,Current (non AEF) Grants to Local Authorities,Localism,GRAVESHAM BC,,,,5000175253,Grant Payable by Exchequer,DA12 1AU,"14,641.00",Yes
Communities & Local Government,DCLG,15/09/2011,Current (non AEF) Grants to Local Authorities,Localism,GREAT YARMOUTH BC,,,,5000175256,Grant Payable by Exchequer,NR30 2QG,"11,528.00",Yes
Communities & Local Government,DCLG,15/09/2011,Current (non AEF) Grants to Local Authorities,Localism,GREENWICH LB,,,,5000175258,Grant Payable by Exchequer,SE18 6BU,"195,231.00",Yes
Communities & Local Government,DCLG,15/09/2011,Current (non AEF) Grants to Local Authorities,Localism,LONDON BOROUGH OF HACKNEY,,,,5000175259,Grant Payable by Exchequer,E8 4RU,"189,936.00",Yes
Communities & Local Government,DCLG,15/09/2011,Current (non AEF) Grants to Local Authorities,Localism,HAMMERSMITH & FULHAM LB,,,,5000175262,Grant Payable by Exchequer,W6 9JU,"161,947.00",Yes
Communities & Local Government,DCLG,15/09/2011,Current (non AEF) Grants to Local Authorities,Localism,HAMPSHIRE COUNTY COUNCIL,,,,5000175264,Grant Payable by Exchequer,SO23 8UB,"1,316,068.00",Yes
Communities & Local Government,DCLG,15/09/2011,Current (non AEF) Grants to Local Authorities,Localism,HARINGEY LB,,,,5000175266,Grant Payable by Exchequer,N22 4TR,"256,249.00",Yes
Communities & Local Government,DCLG,15/09/2011,Current (non AEF) Grants to Local Authorities,Localism,HARLOW DISTRICT COUNCIL,,,,5000175267,Grant Payable by Exchequer,CM20 1WG,"18,022.00",Yes
Communities & Local Government,DCLG,15/09/2011,Current (non AEF) Grants to Local Authorities,Localism,HARROW LB,,,,5000175270,Grant Payable by Exchequer,HA1 2UZ,"258,514.00",Yes
Communities & Local Government,DCLG,15/09/2011,Current (non AEF) Grants to Local Authorities,Localism,HART DC,,,,5000175272,Grant Payable by Exchequer,GU13 8AE,"14,412.00",Yes
Communities & Local Government,DCLG,15/09/2011,Current (non AEF) Grants to Local Authorities,Localism,HARTLEPOOL BOROUGH COUNCIL,,,,5000175273,Grant Payable by Exchequer,TS24 7BT,"99,173.00",Yes
Communities & Local Government,DCLG,15/09/2011,Current (non AEF) Grants to Local Authorities,Localism,HASTINGS BC,,,,5000175276,Grant Payable by Exchequer,TN34 3WN,"17,371.00",Yes
Communities & Local Government,DCLG,15/09/2011,Current (non AEF) Grants to Local Authorities,Localism,HAVANT BC,,,,5000175278,Grant Payable by Exchequer,PO9 2AX,"20,688.00",Yes
Communities & Local Government,DCLG,15/09/2011,Current (non AEF) Grants to Local Authorities,Localism,HAVERING LB,,,,5000175280,Grant Payable by Exchequer,RM1 3BB,"268,019.00",Yes
Communities & Local Government,DCLG,15/09/2011,Current (non AEF) Grants to Local Authorities,Localism,HERTFORDSHIRE COUNTY CNCL,,,,5000175282,Grant Payable by Exchequer,SG13 8DQ,"1,256,657.00",Yes
Communities & Local Government,DCLG,15/09/2011,Current (non AEF) Grants to Local Authorities,Localism,HERTSMERE BC,,,,5000175284,Grant Payable by Exchequer,WD6 1WA,"16,464.00",Yes
Communities & Local Government,DCLG,15/09/2011,Current (non AEF) Grants to Local Authorities,Localism,HILLINGDON LB,,,,5000174465,Grant Payable by Exchequer,UB8 1UW,"275,779.00",Yes
Communities & Local Government,DCLG,15/09/2011,Current (non AEF) Grants to Local Authorities,Localism,HOUNSLOW LB,,,,5000174467,Grant Payable by Exchequer,TW3 4DN,"236,774.00",Yes
Communities & Local Government,DCLG,15/09/2011,Current (non AEF) Grants to Local Authorities,Localism,HYNDBURN BC,,,,5000174473,Grant Payable by Exchequer,BB5 1EZ,"13,551.00",Yes
Communities & Local Government,DCLG,15/09/2011,Current (non AEF) Grants to Local Authorities,Localism,IPSWICH BC,,,,5000174477,Grant Payable by Exchequer,IP1 2EE,"32,364.00",Yes
Communities & Local Government,DCLG,15/09/2011,Current (non AEF) Grants to Local Authorities,Localism,ISLE OF WIGHT CNCL,,,,5000174479,Grant Payable by Exchequer,PO30 1UD,"178,776.00",Yes
Communities & Local Government,DCLG,15/09/2011,Current (non AEF) Grants to Local Authorities,Localism,ISLES OF SCILLY COUNCIL,,,,5000174485,Grant Payable by Exchequer,TR21 0LW,"3,058.00",Yes
Communities & Local Government,DCLG,15/09/2011,Current (non AEF) Grants to Local Authorities,Localism,ISLINGTON LB,,,,5000174487,Grant Payable by Exchequer,N1 1XR,"211,535.00",Yes
Communities & Local Government,DCLG,15/09/2011,Current (non AEF) Grants to Local Authorities,Localism,ROYAL BOROUGH OF KENSINGTON & CHELS,,,,5000174493,Grant Payable by Exchequer,W8 7NX,"194,725.00",Yes
Communities & Local Government,DCLG,15/09/2011,Current (non AEF) Grants to Local Authorities,Localism,KENT COUNTY CNCL,,,,5000174495,Grant Payable by Exchequer,ME14 1XQ,"1,434,222.00",Yes
Communities & Local Government,DCLG,15/09/2011,Current (non AEF) Grants to Local Authorities,Localism,KETTERING BC,,,,5000174501,Grant Payable by Exchequer,NN15 7QX,"15,972.00",Yes
Communities & Local Government,DCLG,15/09/2011,Current (non AEF) Grants to Local Authorities,Localism,HULL CITY COUNCIL,,,,5000174505,Grant Payable by Exchequer,HU1 2AA,"192,851.00",Yes
Communities & Local Government,DCLG,15/09/2011,Current (non AEF) Grants to Local Authorities,Localism,KNOWSLEY MBC,,,,5000174507,Grant Payable by Exchequer,L36 9YZ,"131,256.00",Yes
Communities & Local Government,DCLG,15/09/2011,Current (non AEF) Grants to Local Authorities,Localism,LONDON BOROUGH OF LAMBETH,,,,5000174513,Grant Payable by Exchequer,SW2 1RL,"246,264.00",Yes
Communities & Local Government,DCLG,15/09/2011,Current (non AEF) Grants to Local Authorities,Localism,LANCASHIRE COUNTY CNCL,,,,5000174517,Grant Payable by Exchequer,PR1 8RD,"1,061,825.00",Yes
Communities & Local Government,DCLG,15/09/2011,Current (non AEF) Grants to Local Authorities,Localism,LEEDS CITY CNCL,,,,5000174519,Grant Payable by Exchequer,LS1 1JF,"669,170.00",Yes
Communities & Local Government,DCLG,15/09/2011,Current (non AEF) Grants to Local Authorities,Localism,LEICESTERSHIRE COUNTY CNCL,,,,5000174525,Grant Payable by Exchequer,LE3 8RB,"597,053.00",Yes
Communities & Local Government,DCLG,15/09/2011,Current (non AEF) Grants to Local Authorities,Localism,LICHFIELD DC,,,,5000174529,Grant Payable by Exchequer,WS13 6YX,"13,473.00",Yes
Communities & Local Government,DCLG,15/09/2011,Current (non AEF) Grants to Local Authorities,Localism,CITY OF LINCOLN COUNCIL,,,,5000174531,Grant Payable by Exchequer,LN1 1DB,"15,685.00",Yes
Communities & Local Government,DCLG,15/09/2011,Current (non AEF) Grants to Local Authorities,Localism,LINCOLNSHIRE COUNTY CNCL,,,,5000174537,Grant Payable by Exchequer,LN1 1YG,"629,300.00",Yes
Communities & Local Government,DCLG,15/09/2011,Current (non AEF) Grants to Local Authorities,Localism,LIVERPOOL CITY COUNCIL,,,,5000174539,Grant Payable by Exchequer,L1 6JD,"406,818.00",Yes
Communities & Local Government,DCLG,15/09/2011,Current (non AEF) Grants to Local Authorities,Localism,LUTON BC,,,,5000174545,Grant Payable by Exchequer,LU1 1DX,"157,365.00",Yes
Communities & Local Government,DCLG,15/09/2011,Current (non AEF) Grants to Local Authorities,Localism,MALVERN HILLS DC,,,,5000174549,Grant Payable by Exchequer,WR14 3AF,"10,100.00",Yes
Communities & Local Government,DCLG,15/09/2011,Current (non AEF) Grants to Local Authorities,Localism,MANSFIELD DC,,,,5000174553,Grant Payable by Exchequer,NG19 7BH,"14,602.00",Yes
Communities & Local Government,DCLG,15/09/2011,Current (non AEF) Grants to Local Authorities,Localism,MERTON LB,,,,5000174555,Grant Payable by Exchequer,SM4 5DX,"206,060.00",Yes
Communities & Local Government,DCLG,15/09/2011,Current (non AEF) Grants to Local Authorities,Localism,MIDDLESBROUGH BC,,,,5000174561,Grant Payable by Exchequer,TS1 2QQ,"125,279.00",Yes
Communities & Local Government,DCLG,15/09/2011,Current (non AEF) Grants to Local Authorities,Localism,MILTON KEYNES BC,,,,5000174563,Grant Payable by Exchequer,MK9 3WJ,"231,267.00",Yes
Communities & Local Government,DCLG,15/09/2011,Current (non AEF) Grants to Local Authorities,Localism,NEWCASTLE UNDER LYME BC,,,,5000174569,Grant Payable by Exchequer,ST5 2AG,"17,278.00",Yes
Communities & Local Government,DCLG,15/09/2011,Current (non AEF) Grants to Local Authorities,Localism,NEWCASTLE UPON TYNE DC,,,,5000174571,Grant Payable by Exchequer,NE99 1RD,"264,983.00",Yes
Communities & Local Government,DCLG,15/09/2011,Current (non AEF) Grants to Local Authorities,Localism,LONDON BOROUGH OF NEWHAM,,,,5000174577,Grant Payable by Exchequer,E16 2QU,"178,824.00",Yes
Communities & Local Government,DCLG,15/09/2011,Current (non AEF) Grants to Local Authorities,Localism,NORFOLK COUNTY COUNCIL,,,,5000174581,Grant Payable by Exchequer,NR1 2DW,"855,327.00",Yes
Communities & Local Government,DCLG,15/09/2011,Current (non AEF) Grants to Local Authorities,Localism,NORTH EAST DERBYSHIRE DC,,,,5000174585,Grant Payable by Exchequer,S40 1LF,"14,102.00",Yes
Communities & Local Government,DCLG,15/09/2011,Current (non AEF) Grants to Local Authorities,Localism,NORTH KESTEVEN DC,,,,5000174588,Grant Payable by Exchequer,NG34 7EF,"12,773.00",Yes
Communities & Local Government,DCLG,15/09/2011,Current (non AEF) Grants to Local Authorities,Localism,NORTH SOMERSET DC,,,,5000174591,Grant Payable by Exchequer,BS23 1LL,"225,548.00",Yes
Communities & Local Government,DCLG,15/09/2011,Current (non AEF) Grants to Local Authorities,Localism,NORTH TYNESIDE MBC,,,,5000174595,Grant Payable by Exchequer,NE27 0BY,"212,978.00",Yes
Communities & Local Government,DCLG,15/09/2011,Current (non AEF) Grants to Local Authorities,Localism,NORTH YORKSHIRE CC (DL7 8AL),,,,5000174601,Grant Payable by Exchequer,DL7 8AL,"614,885.00",Yes
Communities & Local Government,DCLG,15/09/2011,Current (non AEF) Grants to Local Authorities,Localism,NORTHAMPTON BOROUGH COUNCIL,,,,5000174605,Grant Payable by Exchequer,NN4 7NR,"35,063.00",Yes
Communities & Local Government,DCLG,15/09/2011,Current (non AEF) Grants to Local Authorities,Localism,NORTHAMPTONSHIRE COUNTY COUNCIL,,,,5000174609,Grant Payable by Exchequer,NN4 7BR,"602,139.00",Yes
Communities & Local Government,DCLG,15/09/2011,Current (non AEF) Grants to Local Authorities,Localism,NORWICH CITY CNCL,,,,5000174613,Grant Payable by Exchequer,NR2 1NH,"23,019.00",Yes
Communities & Local Government,DCLG,15/09/2011,Current (non AEF) Grants to Local Authorities,Localism,NOTTINGHAM CITY COUNCIL,,,,5000174617,Grant Payable by Exchequer,NG1 3NG,"251,068.00",Yes
Communities & Local Government,DCLG,15/09/2011,Current (non AEF) Grants to Local Authorities,Localism,NOTTINGHAMSHIRE COUNTY CNCL,,,,5000174621,Grant Payable by Exchequer,NG1 4BU,"767,859.00",Yes
Communities & Local Government,DCLG,15/09/2011,Current (non AEF) Grants to Local Authorities,Localism,NUNEATON & BEDWORTH BC,,,,5000174623,Grant Payable by Exchequer,CV11 5AA,"20,071.00",Yes
Communities & Local Government,DCLG,15/09/2011,Current (non AEF) Grants to Local Authorities,Localism,OLDHAM MBC,,,,5000174629,Grant Payable by Exchequer,OL1 1UH,"211,992.00",Yes
Communities & Local Government,DCLG,15/09/2011,Current (non AEF) Grants to Local Authorities,Localism,OXFORD CITY COUNCIL,,,,5000174633,Grant Payable by Exchequer,OX1 1DF,"30,887.00",Yes
Communities & Local Government,DCLG,15/09/2011,Current (non AEF) Grants to Local Authorities,Localism,OXFORDSHIRE CC,,,,5000174635,Grant Payable by Exchequer,OX1 1TH,"706,684.00",Yes
Communities & Local Government,DCLG,15/09/2011,Current (non AEF) Grants to Local Authorities,Localism,PENDLE BC,,,,5000174641,Grant Payable by Exchequer,BB9 OLX,"15,759.00",Yes
Communities & Local Government,DCLG,15/09/2011,Current (non AEF) Grants to Local Authorities,Localism,PETERBOROUGH CITY CNCL,,,,5000174645,Grant Payable by Exchequer,PE1 1HG,"153,321.00",Yes
Communities & Local Government,DCLG,15/09/2011,Current (non AEF) Grants to Local Authorities,Localism,PLYMOUTH CITY CNCL,,,,5000174647,Grant Payable by Exchequer,PL1 2AA,"239,804.00",Yes
Communities & Local Government,DCLG,15/09/2011,Current (non AEF) Grants to Local Authorities,Localism,PORTSMOUTH CITY COUNCIL,,,,5000174653,Grant Payable by Exchequer,PO1 2AR,"172,123.00",Yes
Communities & Local Government,DCLG,15/09/2011,Current (non AEF) Grants to Local Authorities,Localism,PRESTON BC,,,,5000174657,Grant Payable by Exchequer,PR1 2RL,"26,114.00",Yes
Communities & Local Government,DCLG,15/09/2011,Current (non AEF) Grants to Local Authorities,Localism,READING BC,,,,5000174659,Grant Payable by Exchequer,RG1 7TD,"172,068.00",Yes
Communities & Local Government,DCLG,15/09/2011,Current (non AEF) Grants to Local Authorities,Localism,LONDON BOROUGH OF REDBRIDGE,,,,5000174665,Grant Payable by Exchequer,IG1 1NN,"248,859.00",Yes
Communities & Local Government,DCLG,15/09/2011,Current (non AEF) Grants to Local Authorities,Localism,REDCAR & CLEVELAND BOROUGH COUNCIL,,,,5000174669,Grant Payable by Exchequer,TS6 9AR,"141,170.00",Yes
Communities & Local Government,DCLG,15/09/2011,Current (non AEF) Grants to Local Authorities,Localism,REDDITCH BC,,,,5000174671,Grant Payable by Exchequer,B98 8AH,"14,418.00",Yes
Communities & Local Government,DCLG,15/09/2011,Current (non AEF) Grants to Local Authorities,Localism,REIGATE & BANSTEAD BC,,,,5000174676,Grant Payable by Exchequer,RH2 OSH,"28,587.00",Yes
Communities & Local Government,DCLG,15/09/2011,Current (non AEF) Grants to Local Authorities,Localism,RICHMOND UPON THAMES LB,,,,5000174681,Grant Payable by Exchequer,TW1 3BZ,"287,381.00",Yes
Communities & Local Government,DCLG,15/09/2011,Current (non AEF) Grants to Local Authorities,Localism,ROCHDALE MBC,,,,5000174685,Grant Payable by Exchequer,OL16 1LQ,"197,178.00",Yes
Communities & Local Government,DCLG,15/09/2011,Current (non AEF) Grants to Local Authorities,Localism,ROCHFORD DISTRICT COUNCIL,,,,5000174688,Grant Payable by Exchequer,SS4 1BW,"15,783.00",Yes
Communities & Local Government,DCLG,15/09/2011,Current (non AEF) Grants to Local Authorities,Localism,ROSSENDALE BC,,,,5000174692,Grant Payable by Exchequer,BB4 7LZ,"13,755.00",Yes
Communities & Local Government,DCLG,15/09/2011,Current (non AEF) Grants to Local Authorities,Localism,ROTHERHAM MBC,,,,5000174696,Grant Payable by Exchequer,S65 1UF,"231,589.00",Yes
Communities & Local Government,DCLG,15/09/2011,Current (non AEF) Grants to Local Authorities,Localism,RUGBY BC,,,,5000174701,Grant Payable by Exchequer,CV21 2LA,"15,078.00",Yes
Communities & Local Government,DCLG,15/09/2011,Current (non AEF) Grants to Local Authorities,Localism,RUNNYMEDE BOROUGH COUNCIL,,,,5000174705,Grant Payable by Exchequer,KT15 2AH,"11,517.00",Yes
Communities & Local Government,DCLG,15/09/2011,Current (non AEF) Grants to Local Authorities,Localism,RUSHMOOR BC,,,,5000174707,Grant Payable by Exchequer,GU14 7JU,"14,575.00",Yes
Communities & Local Government,DCLG,15/09/2011,Current (non AEF) Grants to Local Authorities,Localism,RUTLAND CC,,,,5000174713,Grant Payable by Exchequer,LE15 6HP,"52,090.00",Yes
Communities & Local Government,DCLG,15/09/2011,Current (non AEF) Grants to Local Authorities,Localism,SALFORD CITY CNCL,,,,5000174717,Grant Payable by Exchequer,M27 5AW,"232,320.00",Yes
Communities & Local Government,DCLG,15/09/2011,Current (non AEF) Grants to Local Authorities,Localism,SANDWELL MBC,,,,5000174721,Grant Payable by Exchequer,B69 3BS,"252,114.00",Yes
Communities & Local Government,DCLG,15/09/2011,Current (non AEF) Grants to Local Authorities,Localism,SEFTON MBC,,,,5000174723,Grant Payable by Exchequer,L20 3NQ,"294,743.00",Yes
Communities & Local Government,DCLG,15/09/2011,Current (non AEF) Grants to Local Authorities,Localism,SHEFFIELD CITY CNCL,,,,5000174729,Grant Payable by Exchequer,S1 1UR,"491,907.00",Yes
Communities & Local Government,DCLG,15/09/2011,Current (non AEF) Grants to Local Authorities,Localism,SLOUGH BOROUGH COUNCIL,,,,5000174733,Grant Payable by Exchequer,SL1 3UQ,"119,651.00",Yes
Communities & Local Government,DCLG,15/09/2011,Current (non AEF) Grants to Local Authorities,Localism,SOLIHULL MBC,,,,5000174737,Grant Payable by Exchequer,B91 3QR,"234,175.00",Yes
Communities & Local Government,DCLG,15/09/2011,Current (non AEF) Grants to Local Authorities,Localism,SOMERSET COUNTY CNCL,,,,5000174741,Grant Payable by Exchequer,TA1 4DY,"503,557.00",Yes
Communities & Local Government,DCLG,15/09/2011,Current (non AEF) Grants to Local Authorities,Localism,SOUTH RIBBLE BC,,,,5000174745,Grant Payable by Exchequer,PR5 1DH,"18,976.00",Yes
Communities & Local Government,DCLG,15/09/2011,Current (non AEF) Grants to Local Authorities,Localism,SOUTH TYNESIDE COUNCIL,,,,5000174749,Grant Payable by Exchequer,NE33 2RL,"145,014.00",Yes
Communities & Local Government,DCLG,15/09/2011,Current (non AEF) Grants to Local Authorities,Localism,SOUTHAMPTON CITY CNCL,,,,5000174751,Grant Payable by Exchequer,SO14 7LF,"206,465.00",Yes
Communities & Local Government,DCLG,15/09/2011,Current (non AEF) Grants to Local Authorities,Localism,SOUTHEND ON SEA BC,,,,5000174757,Grant Payable by Exchequer,SS2 6EP,"171,593.00",Yes
Communities & Local Government,DCLG,15/09/2011,Current (non AEF) Grants to Local Authorities,Localism,SOUTHWARK LB,,,,5000174761,Grant Payable by Exchequer,SE16 3QN,"225,741.00",Yes
Communities & Local Government,DCLG,15/09/2011,Current (non AEF) Grants to Local Authorities,Localism,ST ALBANS CITY COUNCIL,,,,5000174763,Grant Payable by Exchequer,AL1 3JE,"26,120.00",Yes
Communities & Local Government,DCLG,15/09/2011,Current (non AEF) Grants to Local Authorities,Localism,ST HELENS MBC,,,,5000174769,Grant Payable by Exchequer,WA10 1HP,"161,283.00",Yes
Communities & Local Government,DCLG,15/09/2011,Current (non AEF) Grants to Local Authorities,Localism,STAFFORD BC,,,,5000174773,Grant Payable by Exchequer,ST16 3AQ,"17,220.00",Yes
Communities & Local Government,DCLG,15/09/2011,Current (non AEF) Grants to Local Authorities,Localism,STAFFORDSHIRE COUNTY CNCL,,,,5000174775,Grant Payable by Exchequer,ST16 2LH,"740,422.00",Yes
Communities & Local Government,DCLG,15/09/2011,Current (non AEF) Grants to Local Authorities,Localism,STEVENAGE BC,,,,5000174781,Grant Payable by Exchequer,SG1 1HN,"13,572.00",Yes
Communities & Local Government,DCLG,15/09/2011,Current (non AEF) Grants to Local Authorities,Localism,STOCKPORT MBC,,,,5000174785,Grant Payable by Exchequer,SK1 3XE,"339,520.00",Yes
Communities & Local Government,DCLG,15/09/2011,Current (non AEF) Grants to Local Authorities,Localism,STOKE ON TRENT CITY COUNCIL,,,,5000174789,Grant Payable by Exchequer,ST4 1RJ,"203,852.00",Yes
Communities & Local Government,DCLG,15/09/2011,Current (non AEF) Grants to Local Authorities,Localism,STRATFORD ON AVON DC,,,,5000174793,Grant Payable by Exchequer,CV37 6HX,"16,806.00",Yes
Communities & Local Government,DCLG,15/09/2011,Current (non AEF) Grants to Local Authorities,Localism,SURREY COUNTY CNCL,,,,5000174795,Grant Payable by Exchequer,KT1 2EA,"1,383,685.00",Yes
Communities & Local Government,DCLG,15/09/2011,Current (non AEF) Grants to Local Authorities,Localism,SURREY HEATH BC,,,,5000174801,Grant Payable by Exchequer,GU15 3HD,"17,580.00",Yes
Communities & Local Government,DCLG,15/09/2011,Current (non AEF) Grants to Local Authorities,Localism,SUTTON LB,,,,5000174803,Grant Payable by Exchequer,SM1 1EA,"210,903.00",Yes
Communities & Local Government,DCLG,15/09/2011,Current (non AEF) Grants to Local Authorities,Localism,SWALE BC,,,,5000174809,Grant Payable by Exchequer,ME10 3HT,"19,180.00",Yes
Communities & Local Government,DCLG,15/09/2011,Current (non AEF) Grants to Local Authorities,Localism,SWINDON BC,,,,5000174813,Grant Payable by Exchequer,SN1 2JH,"205,845.00",Yes
Communities & Local Government,DCLG,15/09/2011,Current (non AEF) Grants to Local Authorities,Localism,TAMESIDE MBC,,,,5000174817,Grant Payable by Exchequer,OL6 6DL,"193,414.00",Yes
Communities & Local Government,DCLG,15/09/2011,Current (non AEF) Grants to Local Authorities,Localism,TAMWORTH BOROUGH COUNCIL,,,,5000174821,Grant Payable by Exchequer,B79 7BZ,"8,713.00",Yes
Communities & Local Government,DCLG,15/09/2011,Current (non AEF) Grants to Local Authorities,Localism,TELFORD & WREKIN DC,,,,5000174825,Grant Payable by Exchequer,TF3 4LF,"139,950.00",Yes
Communities & Local Government,DCLG,15/09/2011,Current (non AEF) Grants to Local Authorities,Localism,THREE RIVERS DC,,,,5000174827,Grant Payable by Exchequer,WD3 1RL,"15,005.00",Yes
Communities & Local Government,DCLG,15/09/2011,Current (non AEF) Grants to Local Authorities,Localism,THURROCK  BOROUGH COUNCIL,,,,5000174833,Grant Payable by Exchequer,RM17 6LT,"143,391.00",Yes
Communities & Local Government,DCLG,15/09/2011,Current (non AEF) Grants to Local Authorities,Localism,TORBAY BC,,,,5000174836,Grant Payable by Exchequer,TQ1 3DR,"153,928.00",Yes
Communities & Local Government,DCLG,15/09/2011,Current (non AEF) Grants to Local Authorities,Localism,TRAFFORD MBC,,,,5000174838,Grant Payable by Exchequer,M32 0YY,"220,067.00",Yes
Communities & Local Government,DCLG,15/09/2011,Current (non AEF) Grants to Local Authorities,Localism,CITY OF WAKEFIELD MDC,,,,5000174844,Grant Payable by Exchequer,WF1 2QW,"280,116.00",Yes
Communities & Local Government,DCLG,15/09/2011,Current (non AEF) Grants to Local Authorities,Localism,WALSALL MBC,,,,5000174848,Grant Payable by Exchequer,WS1 1TW,"272,455.00",Yes
Communities & Local Government,DCLG,15/09/2011,Current (non AEF) Grants to Local Authorities,Localism,WALTHAM FOREST LB,,,,5000174852,Grant Payable by Exchequer,E17 4JA,"218,557.00",Yes
Communities & Local Government,DCLG,15/09/2011,Current (non AEF) Grants to Local Authorities,Localism,WANDSWORTH LB,,,,5000174854,Grant Payable by Exchequer,SW18 2PU,"119,623.00",Yes
Communities & Local Government,DCLG,15/09/2011,Current (non AEF) Grants to Local Authorities,Localism,WARRINGTON BC,,,,5000174860,Grant Payable by Exchequer,WA1 1BN,"199,359.00",Yes
Communities & Local Government,DCLG,15/09/2011,Current (non AEF) Grants to Local Authorities,Localism,WARWICK,,,,5000174862,Grant Payable by Exchequer,CV32 4NW,"19,554.00",Yes
Communities & Local Government,DCLG,15/09/2011,Current (non AEF) Grants to Local Authorities,Localism,WARWICKSHIRE COUNTY CNCL,,,,5000174868,Grant Payable by Exchequer,CV34 4RH,"581,675.00",Yes
Communities & Local Government,DCLG,15/09/2011,Current (non AEF) Grants to Local Authorities,Localism,WATFORD COUNCIL,,,,5000174870,Grant Payable by Exchequer,WD17 3EX,"20,469.00",Yes
Communities & Local Government,DCLG,15/09/2011,Current (non AEF) Grants to Local Authorities,Localism,WELLINGBOROUGH,,,,5000174876,Grant Payable by Exchequer,NN8 1BN,"7,981.00",Yes
Communities & Local Government,DCLG,15/09/2011,Current (non AEF) Grants to Local Authorities,Localism,WEST BERKSHIRE COUNCIL,,,,5000174880,Grant Payable by Exchequer,RG14 2AF,"198,300.00",Yes
Communities & Local Government,DCLG,15/09/2011,Current (non AEF) Grants to Local Authorities,Localism,WEST LANCASHIRE BC,,,,5000174884,Grant Payable by Exchequer,L39 2DF,"17,310.00",Yes
Communities & Local Government,DCLG,15/09/2011,Current (non AEF) Grants to Local Authorities,Localism,WEST SUSSEX CC,,,,5000174888,Grant Payable by Exchequer,PO19 1RG,"950,653.00",Yes
Communities & Local Government,DCLG,15/09/2011,Current (non AEF) Grants to Local Authorities,Localism,WESTMINSTER CITY CNCL,,,,5000174892,Grant Payable by Exchequer,SW1E 6QP,"122,805.00",Yes
Communities & Local Government,DCLG,15/09/2011,Current (non AEF) Grants to Local Authorities,Localism,WEYMOUTH & PORTLAND BC,,,,5000174894,Grant Payable by Exchequer,DT4 8TA,"15,384.00",Yes
Communities & Local Government,DCLG,15/09/2011,Current (non AEF) Grants to Local Authorities,Localism,WIGAN MBC,,,,5000174900,Grant Payable by Exchequer,WN1 1YD,"282,986.00",Yes
Communities & Local Government,DCLG,15/09/2011,Current (non AEF) Grants to Local Authorities,Localism,WIRRAL MBC,,,,5000174904,Grant Payable by Exchequer,CH41 6BU,"328,585.00",Yes
Communities & Local Government,DCLG,15/09/2011,Current (non AEF) Grants to Local Authorities,Localism,WOKING BC,,,,5000174908,Grant Payable by Exchequer,GU21 1YL,"20,863.00",Yes
Communities & Local Government,DCLG,15/09/2011,Current (non AEF) Grants to Local Authorities,Localism,WOKINGHAM DC,,,,5000174910,Grant Payable by Exchequer,RG11 1WJ,"196,239.00",Yes
Communities & Local Government,DCLG,15/09/2011,Current (non AEF) Grants to Local Authorities,Localism,WOLVERHAMPTON MBC,,,,5000174916,Grant Payable by Exchequer,WV1 1RL,"233,795.00",Yes
Communities & Local Government,DCLG,15/09/2011,Current (non AEF) Grants to Local Authorities,Localism,WORCESTER CITY CNCL,,,,5000174920,Grant Payable by Exchequer,WR1 2EZ,"13,370.00",Yes
Communities & Local Government,DCLG,15/09/2011,Current (non AEF) Grants to Local Authorities,Localism,WORCESTERSHIRE COUNTY COUNCIL,,,,5000174922,Grant Payable by Exchequer,WR5 2NP,"546,533.00",Yes
Communities & Local Government,DCLG,15/09/2011,Current (non AEF) Grants to Local Authorities,Localism,WORTHING BC,,,,5000174928,Grant Payable by Exchequer,BN11 1HB,"20,977.00",Yes
Communities & Local Government,DCLG,15/09/2011,Current (non AEF) Grants to Local Authorities,Localism,WYRE FOREST DISTRICT COUNCIL,,,,5000174932,Grant Payable by Exchequer,DY10 1DA,"17,344.00",Yes
Communities & Local Government,DCLG,15/09/2011,Current (non AEF) Grants to Local Authorities,Localism,YORK CITY CNCL,,,,5000174936,Grant Payable by Exchequer,YO1 0EG,"182,830.00",Yes
Communities & Local Government,DCLG,15/09/2011,Current (non AEF) Grants to Local Authorities,Localism,CHESHIRE POLICE AUTHORITY (RSG),,,,5000174938,Grant Payable by Exchequer,CW7 2UA,"136,142.00",Yes
Communities & Local Government,DCLG,15/09/2011,Current (non AEF) Grants to Local Authorities,Localism,CLEVELAND POLICE AUTHORITY,,,,5000174940,Grant Payable by Exchequer,TS8 2JX,"79,999.00",Yes
Communities & Local Government,DCLG,15/09/2011,Current (non AEF) Grants to Local Authorities,Localism,CUMBRIA POLICE AUTHORITY (RSG),,,,5000174942,Grant Payable by Exchequer,CA10 2AU,"85,781.00",Yes
Communities & Local Government,DCLG,15/09/2011,Current (non AEF) Grants to Local Authorities,Localism,DERBYSHIRE POLICE AUTHORITY (RSG,,,,5000174944,Grant Payable by Exchequer,DE5 3RS,"135,401.00",Yes
Communities & Local Government,DCLG,15/09/2011,Current (non AEF) Grants to Local Authorities,Localism,DORSET POLICE AUTHORITY (RSG),,,,5000174946,Grant Payable by Exchequer,DT2 8DZ,"133,052.00",Yes
Communities & Local Government,DCLG,15/09/2011,Current (non AEF) Grants to Local Authorities,Localism,GLOUCESTERSHIRE CONSTABULARY (RS,,,,5000174948,Grant Payable by Exchequer,GL51 6QH,"111,676.00",Yes
Communities & Local Government,DCLG,15/09/2011,Current (non AEF) Grants to Local Authorities,Localism,GREATER LONDON AUTHORITY (RSG),,Large,,5000174950,Grant Payable by Exchequer,SE10 1AJ,"717,804.00",Yes
Communities & Local Government,DCLG,15/09/2011,Current (non AEF) Grants to Local Authorities,Localism,GREATER MANCHESTER FIRE (RSG),,,,5000174952,Grant Payable by Exchequer,M27 2US,"166,186.00",Yes
Communities & Local Government,DCLG,15/09/2011,Current (non AEF) Grants to Local Authorities,Localism,GREATER MANCHESTER FIRE (RSG),,,,5000174954,Grant Payable by Exchequer,M27 2US,"105,787.00",Yes
Communities & Local Government,DCLG,15/09/2011,Current (non AEF) Grants to Local Authorities,Localism,GREATER MANCHESTER POL AUTH (RSG,,,,5000174956,Grant Payable by Exchequer,M16 0RE,"289,996.00",Yes
Communities & Local Government,DCLG,15/09/2011,Current (non AEF) Grants to Local Authorities,Localism,KENT POLICE AUTHORITY,,,,5000174958,Grant Payable by Exchequer,ME15 9BZ,"220,349.00",Yes
Communities & Local Government,DCLG,15/09/2011,Current (non AEF) Grants to Local Authorities,Localism,MERSEYSIDE FIRE & RESCUE SERVICE,,,,5000174960,Grant Payable by Exchequer,L30 4YD,"68,104.00",Yes
Communities & Local Government,DCLG,15/09/2011,Current (non AEF) Grants to Local Authorities,Localism,MERSEYSIDE FIRE & RESCUE SERVICE,,,,5000174962,Grant Payable by Exchequer,L30 4YD,"95,242.00",Yes
Communities & Local Government,DCLG,15/09/2011,Current (non AEF) Grants to Local Authorities,Localism,NORFOLK POLICE AUTHORITY (RSG),,,,5000174964,Grant Payable by Exchequer,NR18 0WW,"142,790.00",Yes
Communities & Local Government,DCLG,15/09/2011,Current (non AEF) Grants to Local Authorities,Localism,NORTHUMBRIA POLICE AUTH (RSG),,,,5000174966,Grant Payable by Exchequer,NE1 8DL,"91,192.00",Yes
Communities & Local Government,DCLG,15/09/2011,Current (non AEF) Grants to Local Authorities,Localism,NOTTINGHAMSHIRE POLICE AU (RSG),,,,5000174968,Grant Payable by Exchequer,NG5 8PP,"133,210.00",Yes
Communities & Local Government,DCLG,15/09/2011,Current (non AEF) Grants to Local Authorities,Localism,SOUTH YORKSHIRE FIRE & CD (RSG),,,,5000174970,Grant Payable by Exchequer,S1 3FG,"8,727.00",Yes
Communities & Local Government,DCLG,15/09/2011,Current (non AEF) Grants to Local Authorities,Localism,SOUTH YORKSHIRE FIRE & CD (RSG),,,,5000174972,Grant Payable by Exchequer,S1 3FG,"57,698.00",Yes
Communities & Local Government,DCLG,15/09/2011,Current (non AEF) Grants to Local Authorities,Localism,SUFFOLK COUNTY CNCL (RSG),,,,5000174974,Grant Payable by Exchequer,IP4 2JP,"7,743.00",Yes
Communities & Local Government,DCLG,15/09/2011,Current (non AEF) Grants to Local Authorities,Localism,SUSSEX POLICE AUTHORITY,,,,5000174976,Grant Payable by Exchequer,BN7 2DZ,"217,551.00",Yes
Communities & Local Government,DCLG,15/09/2011,Current (non AEF) Grants to Local Authorities,Localism,THAMES VALLEY POLICE AUTHORITY (,,,,5000174978,Grant Payable by Exchequer,OX5 2NX,"337,242.00",Yes
Communities & Local Government,DCLG,15/09/2011,Current (non AEF) Grants to Local Authorities,Localism,TYNE & WEAR FIRE AUTHORITY (RSG),,,,5000174980,Grant Payable by Exchequer,SR2 7DN,"59,758.00",Yes
Communities & Local Government,DCLG,15/09/2011,Current (non AEF) Grants to Local Authorities,Localism,TYNE & WEAR FIRE AUTHORITY (RSG),,,,5000174982,Grant Payable by Exchequer,SR2 7DN,"91,441.00",Yes
Communities & Local Government,DCLG,15/09/2011,Current (non AEF) Grants to Local Authorities,Localism,W YORKSHIRE FIRE & RESCUE AUTH (RSG,,,,5000174984,Grant Payable by Exchequer,BD11 2DY,"133,041.00",Yes
Communities & Local Government,DCLG,15/09/2011,Current (non AEF) Grants to Local Authorities,Localism,W YORKSHIRE FIRE & RESCUE AUTH (RSG,,,,5000174986,Grant Payable by Exchequer,BD11 2DY,"89,392.00",Yes
Communities & Local Government,DCLG,15/09/2011,Current (non AEF) Grants to Local Authorities,Localism,WEST MIDLANDS FIRE & CIVIL DEFENCE,,,,5000174988,Grant Payable by Exchequer,B4 7DE,"95,772.00",Yes
Communities & Local Government,DCLG,15/09/2011,Current (non AEF) Grants to Local Authorities,Localism,WEST MIDLANDS FIRE & CIVIL DEFENCE,,,,5000174990,Grant Payable by Exchequer,B4 7DE,"96,203.00",Yes
Communities & Local Government,DCLG,15/09/2011,Current (non AEF) Grants to Local Authorities,Localism,WILTSHIRE POLICE (RSG),,,,5000174992,Grant Payable by Exchequer,BA14 8JJ,"99,055.00",Yes
Communities & Local Government,DCLG,15/09/2011,Current (non AEF) Grants to Local Authorities,Localism,BUCKS & MILTON KEYNES FIRE AUTH,,,,5000174994,Grant Payable by Exchequer,HP20 1BD,"43,869.00",Yes
Communities & Local Government,DCLG,15/09/2011,Current (non AEF) Grants to Local Authorities,Localism,BUCKS & MILTON KEYNES FIRE AUTH,,,,5000174996,Grant Payable by Exchequer,HP20 1BD,"82,765.00",Yes
Communities & Local Government,DCLG,15/09/2011,Current (non AEF) Grants to Local Authorities,Localism,ESSEX FIRE AUTHORITY,,Large,,5000174998,Grant Payable by Exchequer,CM13 1AL,"92,148.00",Yes
Communities & Local Government,DCLG,15/09/2011,Current (non AEF) Grants to Local Authorities,Localism,ESSEX FIRE AUTHORITY,,Large,,5000175000,Grant Payable by Exchequer,CM13 1AL,"107,230.00",Yes
Communities & Local Government,DCLG,15/09/2011,Current (non AEF) Grants to Local Authorities,Localism,ROYAL BERKSHIRE FIRE AUTHORITY,,,,5000175002,Grant Payable by Exchequer,RG30 4FS,"46,498.00",Yes
Communities & Local Government,DCLG,15/09/2011,Current (non AEF) Grants to Local Authorities,Localism,ROYAL BERKSHIRE FIRE AUTHORITY,,,,5000175004,Grant Payable by Exchequer,RG30 4FS,"15,614.00",Yes
Communities & Local Government,DCLG,15/09/2011,Current (non AEF) Grants to Local Authorities,Localism,CLEVELAND FIRE AUTHORITY,,Medium,,5000175006,Grant Payable by Exchequer,TS25 5TB,"12,081.00",Yes
Communities & Local Government,DCLG,15/09/2011,Current (non AEF) Grants to Local Authorities,Localism,CLEVELAND FIRE AUTHORITY,,Medium,,5000175008,Grant Payable by Exchequer,TS25 5TB,"27,245.00",Yes
Communities & Local Government,DCLG,15/09/2011,Current (non AEF) Grants to Local Authorities,Localism,HUMBERSIDE FIRE & RESCUE SERVICE,,,,5000175010,Grant Payable by Exchequer,HU4 7BB,"7,245.00",Yes
Communities & Local Government,DCLG,15/09/2011,Current (non AEF) Grants to Local Authorities,Localism,HUMBERSIDE FIRE & RESCUE SERVICE,,,,5000175012,Grant Payable by Exchequer,HU4 7BB,"56,143.00",Yes
Communities & Local Government,DCLG,15/09/2011,Current (non AEF) Grants to Local Authorities,Localism,KENT & MEDWAY TOWNS FIRE AUTHORITY,,Large,,5000175014,Grant Payable by Exchequer,ME15 6XB,"107,966.00",Yes
Communities & Local Government,DCLG,15/09/2011,Current (non AEF) Grants to Local Authorities,Localism,KENT & MEDWAY TOWNS FIRE AUTHORITY,,Large,,5000175016,Grant Payable by Exchequer,ME15 6XB,"98,718.00",Yes
Communities & Local Government,DCLG,15/09/2011,Current (non AEF) Grants to Local Authorities,Localism,CHESHIRE FIRE AUTHORITY,,,,5000175018,Grant Payable by Exchequer,CW7 2FQ,"12,180.00",Yes
Communities & Local Government,DCLG,15/09/2011,Current (non AEF) Grants to Local Authorities,Localism,CHESHIRE FIRE AUTHORITY,,,,5000175020,Grant Payable by Exchequer,CW7 2FQ,"62,575.00",Yes
Communities & Local Government,DCLG,15/09/2011,Current (non AEF) Grants to Local Authorities,Localism,CAMBS & PETERBOROUGH FIRE AUTHORITY,,,,5000175022,Grant Payable by Exchequer,PE29 2NA,"10,926.00",Yes
Communities & Local Government,DCLG,15/09/2011,Current (non AEF) Grants to Local Authorities,Localism,CAMBS & PETERBOROUGH FIRE AUTHORITY,,,,5000175024,Grant Payable by Exchequer,PE29 2NA,"40,017.00",Yes
Communities & Local Government,DCLG,15/09/2011,Current (non AEF) Grants to Local Authorities,Localism,STAFFORDSHIRE  FIRE & RESCUE SERV,,,,5000175026,Grant Payable by Exchequer,ST15 0BS,"60,737.00",Yes
Communities & Local Government,DCLG,15/09/2011,Current (non AEF) Grants to Local Authorities,Localism,STAFFORDSHIRE  FIRE & RESCUE SERV,,,,5000175028,Grant Payable by Exchequer,ST15 0BS,"21,261.00",Yes
Communities & Local Government,DCLG,15/09/2011,Current (non AEF) Grants to Local Authorities,Localism,NOTTS & CITY NOTTINGHAM FIRE AUTH,,Large,,5000175030,Grant Payable by Exchequer,NG5 8PD,"20,094.00",Yes
Communities & Local Government,DCLG,15/09/2011,Current (non AEF) Grants to Local Authorities,Localism,NOTTS & CITY NOTTINGHAM FIRE AUTH,,Large,,5000175032,Grant Payable by Exchequer,NG5 8PD,"57,981.00",Yes
Communities & Local Government,DCLG,15/09/2011,Current (non AEF) Grants to Local Authorities,Localism,DEVON & SOMERSET FIRE & RESCUE SERV,,Large,,5000175034,Grant Payable by Exchequer,EX3 0NW,"109,857.00",Yes
Communities & Local Government,DCLG,15/09/2011,Current (non AEF) Grants to Local Authorities,Localism,DEVON & SOMERSET FIRE & RESCUE SERV,,Large,,5000175036,Grant Payable by Exchequer,EX3 0NW,"136,198.00",Yes
Communities & Local Government,DCLG,15/09/2011,Current (non AEF) Grants to Local Authorities,Localism,BEDS & LUTON FIRE & RESCUE SERVICE,,Medium,,5000175038,Grant Payable by Exchequer,MK42 7NR,"9,701.00",Yes
Communities & Local Government,DCLG,15/09/2011,Current (non AEF) Grants to Local Authorities,Localism,BEDS & LUTON FIRE & RESCUE SERVICE,,Medium,,5000175040,Grant Payable by Exchequer,MK42 7NR,"42,763.00",Yes
Communities & Local Government,DCLG,15/09/2011,Current (non AEF) Grants to Local Authorities,Localism,HEREFORD WORCESTER FIRE BRIGADE,,Large,,5000175042,Grant Payable by Exchequer,WR1 2HQ,"97,411.00",Yes
Communities & Local Government,DCLG,15/09/2011,Current (non AEF) Grants to Local Authorities,Localism,HEREFORD WORCESTER FIRE BRIGADE,,Large,,5000175044,Grant Payable by Exchequer,WR1 2HQ,"51,891.00",Yes
Communities & Local Government,DCLG,15/09/2011,Current (non AEF) Grants to Local Authorities,Localism,WILTSHIRE & SWINDON FIRE AUTHORITY,,Large,,5000175046,Grant Payable by Exchequer,SN10 5PP,"39,165.00",Yes
Communities & Local Government,DCLG,15/09/2011,Current (non AEF) Grants to Local Authorities,Localism,WILTSHIRE & SWINDON FIRE AUTHORITY,,Large,,5000175048,Grant Payable by Exchequer,SN10 5PP,"12,839.00",Yes
Communities & Local Government,DCLG,15/09/2011,Current (non AEF) Grants to Local Authorities,Localism,LANCASHIRE COMBINED FIRE AUTHORITY,,Large,,5000175050,Grant Payable by Exchequer,PR2 3LH,"91,829.00",Yes
Communities & Local Government,DCLG,15/09/2011,Current (non AEF) Grants to Local Authorities,Localism,LANCASHIRE COMBINED FIRE AUTHORITY,,Large,,5000175052,Grant Payable by Exchequer,PR2 3LH,"74,590.00",Yes
Communities & Local Government,DCLG,15/09/2011,Current (non AEF) Grants to Local Authorities,Localism,COUNTY DURHAM & DARLINGTON,,,,5000175054,Grant Payable by Exchequer,DH1 5UE,"41,683.00",Yes
Communities & Local Government,DCLG,15/09/2011,Current (non AEF) Grants to Local Authorities,Localism,COUNTY DURHAM & DARLINGTON,,,,5000175056,Grant Payable by Exchequer,DH1 5UE,"129,586.00",Yes
Communities & Local Government,DCLG,15/09/2011,Current (non AEF) Grants to Local Authorities,Localism,DERBYSHIRE FIRE AUTHORITY,,,,5000175058,Grant Payable by Exchequer,DE55 1RH,"15,789.00",Yes
Communities & Local Government,DCLG,15/09/2011,Current (non AEF) Grants to Local Authorities,Localism,DERBYSHIRE FIRE AUTHORITY,,,,5000175060,Grant Payable by Exchequer,DE55 1RH,"55,544.00",Yes
Communities & Local Government,DCLG,15/09/2011,Current (non AEF) Grants to Local Authorities,Localism,DORSET FIRE AUTHORITY,,Large,,5000175062,Grant Payable by Exchequer,DT1 1FB,"44,658.00",Yes
Communities & Local Government,DCLG,15/09/2011,Current (non AEF) Grants to Local Authorities,Localism,DORSET FIRE AUTHORITY,,Large,,5000175064,Grant Payable by Exchequer,DT1 1FB,"44,639.00",Yes
Communities & Local Government,DCLG,15/09/2011,Current (non AEF) Grants to Local Authorities,Localism,HAMPSHIRE FIRE & RESCUE AUTHORITY,,Large,,5000175066,Grant Payable by Exchequer,SO23 8UB,"95,937.00",Yes
Communities & Local Government,DCLG,15/09/2011,Current (non AEF) Grants to Local Authorities,Localism,HAMPSHIRE FIRE & RESCUE AUTHORITY,,Large,,5000175068,Grant Payable by Exchequer,SO23 8UB,"97,252.00",Yes
Communities & Local Government,DCLG,15/09/2011,Current (non AEF) Grants to Local Authorities,Localism,SHROPSHIRE & WREKIN FIRE AUTHORITY,,,,5000175070,Grant Payable by Exchequer,SY1 2HJ,"33,592.00",Yes
Communities & Local Government,DCLG,15/09/2011,Current (non AEF) Grants to Local Authorities,Localism,SHROPSHIRE & WREKIN FIRE AUTHORITY,,,,5000175072,Grant Payable by Exchequer,SY1 2HJ,"3,583.00",Yes
Communities & Local Government,DCLG,15/09/2011,Current (non AEF) Grants to Local Authorities,Localism,LEICS LEICESTERSHIRE RUTLAND CFA,,,,5000175074,Grant Payable by Exchequer,LE3 8HD,"213,706.00",Yes
Communities & Local Government,DCLG,15/09/2011,Current (non AEF) Grants to Local Authorities,Localism,LEICS LEICESTERSHIRE RUTLAND CFA,,,,5000175076,Grant Payable by Exchequer,LE3 8HD,"42,466.00",Yes
Communities & Local Government,DCLG,15/09/2011,Current (non AEF) Grants to Local Authorities,Localism,EAST SUSSEX FIRE AUTHORITY,,Large,,5000175078,Grant Payable by Exchequer,BN21 1EU,"6,571.00",Yes
Communities & Local Government,DCLG,15/09/2011,Current (non AEF) Grants to Local Authorities,Localism,EAST SUSSEX FIRE AUTHORITY,,Large,,5000175080,Grant Payable by Exchequer,BN21 1EU,"61,686.00",Yes
Communities & Local Government,DCLG,15/09/2011,Current (non AEF) Grants to Local Authorities,Localism,NORTH YORKSHIRE FIRE & RESCUE AUTH,,Large,,5000175082,Grant Payable by Exchequer,DL6 2ND,"6,144.00",Yes
Communities & Local Government,DCLG,15/09/2011,Current (non AEF) Grants to Local Authorities,Localism,NORTH YORKSHIRE FIRE & RESCUE AUTH,,Large,,5000175084,Grant Payable by Exchequer,DL6 2ND,"46,517.00",Yes
Communities & Local Government,DCLG,15/09/2011,Current (non AEF) Grants to Local Authorities,Localism,AVON FIRE AUTHORITY,,Large,,5000175086,Grant Payable by Exchequer,BS1 6EU,"106,060.00",Yes
Communities & Local Government,DCLG,15/09/2011,Current (non AEF) Grants to Local Authorities,Localism,AVON FIRE AUTHORITY,,Large,,5000175088,Grant Payable by Exchequer,BS1 6EU,"55,545.00",Yes
Communities & Local Government,DCLG,15/09/2011,Current (non AEF) Grants to Local Authorities,Localism,WILTSHIRE COUNCIL,,,,5000175092,Grant Payable by Exchequer,BA14 8JN,"547,947.00",Yes
Communities & Local Government,DCLG,15/09/2011,Current (non AEF) Grants to Local Authorities,Localism,NORTHUMBERLAND COUNTY COUNCIL,,,,5000175094,Grant Payable by Exchequer,NE61 2EF,"374,948.00",Yes
Communities & Local Government,DCLG,15/09/2011,Current (non AEF) Grants to Local Authorities,Localism,CENTRAL BEDFORDSHIRE COUNCIL,,,,5000175100,Grant Payable by Exchequer,SG17 5TQ,"320,141.00",Yes
Communities & Local Government,DCLG,15/09/2011,Current (non AEF) Grants to Local Authorities,Localism,CHESHIRE EAST COUNCIL,,,,5000175104,Grant Payable by Exchequer,SK10 1DP,"446,698.00",Yes
Communities & Local Government,DCLG,15/09/2011,Current (non AEF) Grants to Local Authorities,Localism,CHESHIRE WEST & CHESTER COUNCIL,,,,5000175108,Grant Payable by Exchequer,CH1 1SG,"381,176.00",Yes
Communities & Local Government,DCLG,15/09/2011,Current (non AEF) Grants to Local Authorities,Localism,BEDFORD UNITARY AUTHORITY,,,,5000175112,Grant Payable by Exchequer,MK40 1SJ,"183,295.00",Yes
Communities & Local Government,DCLG,15/09/2011,Current (non AEF) Grants to Local Authorities,Localism,SHROPSHIRE UNITARY AUTHORITY,,,,5000175114,Grant Payable by Exchequer,SY2 6ND,"322,474.00",Yes
Communities & Local Government,DCLG,15/09/2011,Current (non AEF) Grants to Local Authorities,Localism,CORNWALL UNITARY AUTHORITY,,,,5000175120,Grant Payable by Exchequer,TR1 3AY,"602,467.00",Yes
Communities & Local Government,DCLG,15/09/2011,Current (non AEF) Grants to Local Authorities,Localism,DURHAM UNITARY AUTHORITY,,,,5000175124,Grant Payable by Exchequer,DH1 5UE,"497,175.00",Yes
Communities & Local Government,DCLG,15/09/2011,Current (non AEF) Grants to Local Authorities,Localism,ISLE OF SCILLY FIRE AND RESCUE SERV,,,,5000175126,Grant Payable by Exchequer,TR21 0NG,917.00,Yes
Communities & Local Government,DCLG,15/09/2011,Current (non AEF) Grants to Local Authorities,Localism,WEST SUSSEX FIRE AND RESCUE SERVICE,,,,5000175128,Grant Payable by Exchequer,PO19 1RG,"57,897.00",Yes
Communities & Local Government,DCLG,15/09/2011,Current (non AEF) Grants to Local Authorities,Localism,NORTHUMBERLAND FIRE & RESCUE SERV,,,,5000175130,Grant Payable by Exchequer,NE23 3JP,"10,516.00",Yes
Communities & Local Government,DCLG,15/09/2011,Current (non AEF) Grants to Local Authorities,Localism,CORNWALL COUNTY FIRE BRIGADE,,,,5000175132,Grant Payable by Exchequer,TR1 3AY,"29,951.00",Yes
Communities & Local Government,DCLG,15/09/2011,Current (non AEF) Grants to Local Authorities,Localism,CUMBRIA COUNTY COUNCIL,,,,5000175134,Grant Payable by Exchequer,CA3 8NA,"8,237.00",Yes
Communities & Local Government,DCLG,15/09/2011,Current (non AEF) Grants to Local Authorities,Localism,GLOUCESTERSHIRE COUNTY COUNCIL,,,,5000175136,Grant Payable by Exchequer,GL2 2AX,"9,791.00",Yes
Communities & Local Government,DCLG,15/09/2011,Current (non AEF) Grants to Local Authorities,Localism,HERTFORDSHIRE CC,,,,5000175138,Grant Payable by Exchequer,SG13 8TN,"11,853.00",Yes
Communities & Local Government,DCLG,15/09/2011,Current (non AEF) Grants to Local Authorities,Localism,ISLE OF WIGHT COUNCIL,,,,5000175140,Grant Payable by Exchequer,PO30 1UD,"4,062.00",Yes
Communities & Local Government,DCLG,15/09/2011,Current (non AEF) Grants to Local Authorities,Localism,LINCOLNSHIRE CC,,,,5000175142,Grant Payable by Exchequer,LN1 1YQ,"101,119.00",Yes
Communities & Local Government,DCLG,15/09/2011,Current (non AEF) Grants to Local Authorities,Localism,NORFOLK COUNTY COUNCIL,,,,5000175144,Grant Payable by Exchequer,NR1 2DH,"82,114.00",Yes
Communities & Local Government,DCLG,15/09/2011,Current (non AEF) Grants to Local Authorities,Localism,NORTHAMPTONSHIRE CC,,,,5000175146,Grant Payable by Exchequer,NN1 1AX,"15,882.00",Yes
Communities & Local Government,DCLG,15/09/2011,Current (non AEF) Grants to Local Authorities,Localism,OXFORDSHIRE CC,,,,5000175148,Grant Payable by Exchequer,OX1 1SD,"12,695.00",Yes
Communities & Local Government,DCLG,15/09/2011,Current (non AEF) Grants to Local Authorities,Localism,SURREY COUNTY COUNCIL,,,,5000175150,Grant Payable by Exchequer,KT1 1AB,"9,399.00",Yes
Communities & Local Government,DCLG,15/09/2011,Current (non AEF) Grants to Local Authorities,Localism,WARWICKSHIRE CC,,,,5000175152,Grant Payable by Exchequer,CV35 7DP,"3,583.00",Yes
Communities & Local Government,DCLG,15/09/2011,Current (non AEF) Grants to Local Authorities,Localism,AVON & SOMERSET POLICE AUTHORITY,,,,5000175154,Grant Payable by Exchequer,TA1 4DY,"236,939.00",Yes
Communities & Local Government,DCLG,15/09/2011,Current (non AEF) Grants to Local Authorities,Localism,BEDFORDSHIRE POLICE AUTHORITY,,,,5000175156,Grant Payable by Exchequer,MK43 9AX,"75,094.00",Yes
Communities & Local Government,DCLG,15/09/2011,Current (non AEF) Grants to Local Authorities,Localism,CAMBRIDGESHIRE POLICE AUTHORITY,,,,5000175158,Grant Payable by Exchequer,P18 8NP,"117,251.00",Yes
Communities & Local Government,DCLG,15/09/2011,Current (non AEF) Grants to Local Authorities,Localism,DEVON & CORNWALL POLICE AUTHORITY,,,,5000175160,Grant Payable by Exchequer,EX2 5YT,"239,226.00",Yes
Communities & Local Government,DCLG,15/09/2011,Current (non AEF) Grants to Local Authorities,Localism,DURHAM POLICE AUTHORITY,,,,5000175162,Grant Payable by Exchequer,DH1 5TT,"72,798.00",Yes
Communities & Local Government,DCLG,15/09/2011,Current (non AEF) Grants to Local Authorities,Localism,ESSEX POLICE AUTHORITY,,,,5000175164,Grant Payable by Exchequer,CM2 6DA,"213,299.00",Yes
Communities & Local Government,DCLG,15/09/2011,Current (non AEF) Grants to Local Authorities,Localism,HAMPSHIRE POLICE AUTHORITY,,,,5000175166,Grant Payable by Exchequer,SO23 8UB,"251,995.00",Yes
Communities & Local Government,DCLG,15/09/2011,Current (non AEF) Grants to Local Authorities,Localism,HERTFORDSHIRE POLICE AUTHORITY,,,,5000175168,Grant Payable by Exchequer,AL8 6XF,"166,030.00",Yes
Communities & Local Government,DCLG,15/09/2011,Current (non AEF) Grants to Local Authorities,Localism,HUMBERSIDE POLICE,,,,5000175170,Grant Payable by Exchequer,HU5 5SF,"119,944.00",Yes
Communities & Local Government,DCLG,15/09/2011,Current (non AEF) Grants to Local Authorities,Localism,LANCASHIRE POLICE AUTHORITY,,,,5000175172,Grant Payable by Exchequer,PR1 0LD,"171,410.00",Yes
Communities & Local Government,DCLG,15/09/2011,Current (non AEF) Grants to Local Authorities,Localism,LEICESTERSHIRE POLICE AUTHORITY,,,,5000175174,Grant Payable by Exchequer,LE99 1A2,"134,947.00",Yes
Communities & Local Government,DCLG,15/09/2011,Current (non AEF) Grants to Local Authorities,Localism,LINCOLNSHIRE POLICE AUTHORITY,,,,5000175176,Grant Payable by Exchequer,LN5 7PH,"105,867.00",Yes
Communities & Local Government,DCLG,15/09/2011,Current (non AEF) Grants to Local Authorities,Localism,MERSEYSIDE POLICE AUTHORITY,,,,5000175178,Grant Payable by Exchequer,L69 1JD,"153,759.00",Yes
Communities & Local Government,DCLG,15/09/2011,Current (non AEF) Grants to Local Authorities,Localism,NORTHAMPTONSHIRE POLICE AUTH,,,,5000175180,Grant Payable by Exchequer,NN1 5DQ,"113,152.00",Yes
Communities & Local Government,DCLG,15/09/2011,Current (non AEF) Grants to Local Authorities,Localism,NORTH YORKSHIRE POLICE AUTHORITY,,,,5000175182,Grant Payable by Exchequer,DL7 9HA,"153,221.00",Yes
Communities & Local Government,DCLG,15/09/2011,Current (non AEF) Grants to Local Authorities,Localism,SOUTH YORKSHIRE P A,,,,5000175184,Grant Payable by Exchequer,S3 8LY,"126,895.00",Yes
Communities & Local Government,DCLG,15/09/2011,Current (non AEF) Grants to Local Authorities,Localism,STAFFORDSHIRE POLICE AUTHORITY,,,,5000175186,Grant Payable by Exchequer,ST16 2NF,"159,485.00",Yes
Communities & Local Government,DCLG,15/09/2011,Current (non AEF) Grants to Local Authorities,Localism,SUFFOLK POLICE AUTHORITY,,,,5000175188,Grant Payable by Exchequer,IP5 3QS,"103,030.00",Yes
Communities & Local Government,DCLG,15/09/2011,Current (non AEF) Grants to Local Authorities,Localism,SURREY POLICE AUTHORITY,,,,5000175190,Grant Payable by Exchequer,KT1 2EA,"246,083.00",Yes
Communities & Local Government,DCLG,15/09/2011,Current (non AEF) Grants to Local Authorities,Localism,WEST MERCIA POLICE AUTHORITY,,,,5000175192,Grant Payable by Exchequer,WR5 2NP,"197,569.00",Yes
Communities & Local Government,DCLG,15/09/2011,Current (non AEF) Grants to Local Authorities,Localism,WARWICKSHIRE POLICE AUTHORITY,,,,5000175194,Grant Payable by Exchequer,CV35 7QB,"87,661.00",Yes
Communities & Local Government,DCLG,15/09/2011,Current (non AEF) Grants to Local Authorities,Localism,WEST MIDLANDS POLICE AUTHORITY,,,,5000175196,Grant Payable by Exchequer,B4 6NQ,"199,134.00",Yes
Communities & Local Government,DCLG,15/09/2011,Current (non AEF) Grants to Local Authorities,Localism,WEST YORKSHIRE POLICE AUTHORITY,,,,5000175198,Grant Payable by Exchequer,WF1 3QP,"222,583.00",Yes
Communities & Local Government,DCLG,15/09/2011,Current (non AEF) Grants to Local Authorities,Localism,GREATER LONDON AUTHORITY,,,,5000175200,Grant Payable by Exchequer,SE10 1AJ,"2,337,222.00",Yes
Communities & Local Government,DCLG,15/09/2011,Subsidies to Central Govt and Local Auth bodies,Neighbourhoods,BRAINTREE DC,,,,5000174289,Grant Payable by Exchequer,CM7 6HB,"91,741.00",Yes
Communities & Local Government,DCLG,15/09/2011,Subsidies to Central Govt and Local Auth bodies,Neighbourhoods,BRENT LB (HSG),,,,5000174290,Grant Payable by Exchequer,HA9 9HD,"863,125.00",Yes
Communities & Local Government,DCLG,15/09/2011,Subsidies to Central Govt and Local Auth bodies,Neighbourhoods,CITY OF LONDON (HSG),,,,5000174293,Grant Payable by Exchequer,EC2P 2EJ,"12,666.00",Yes
Communities & Local Government,DCLG,15/09/2011,Subsidies to Central Govt and Local Auth bodies,Neighbourhoods,LEWISHAM LB (HSG),,,,5000174312,Grant Payable by Exchequer,SE6 4RU,"1,436,969.00",Yes
Communities & Local Government,DCLG,15/09/2011,Subsidies to Central Govt and Local Auth bodies,Neighbourhoods,MANCHESTER CITY CNCL (HSG),,,,5000174313,Grant Payable by Exchequer,M60 2JR,"1,962,962.00",Yes
Communities & Local Government,DCLG,15/09/2011,Subsidies to Central Govt and Local Auth bodies,Neighbourhoods,TOWER HAMLETS LB (HSG),,,,5000174339,Grant Payable by Exchequer,E14 2BG,"1,413,156.00",Yes
Communities & Local Government,DCLG,15/09/2011,Subsidies to Central Govt and Local Auth bodies,Neighbourhoods,BLACKPOOL BC,,,,5000174354,Grant Payable by Exchequer,FY1 1NA,"146,077.00",Yes
